Body Name,Trans.date,Department Code,Department,Expense Area Code,Expense Area,Expense Type Code,Expense Type,Amount Paid (�),Supplier name,Extended Description,TransNo,Period
Rother District Council,24/05/2023,T31DEMSERV,Democratic Services,20163,District Council Elections,D2513,Hired and Contracted services,"6,250.00",1066 Removal Services,Hired and contracted services - Delivery and/or Packaging of Equipm,2041700,202302
Rother District Council,03/04/2023,T33HOUSING,Housing,20200,Housing Needs - HB (Housing Benefit),D2513,Hired and Contracted services,100.00,1066 Removal Services,Hired and Contracted services,2040362,202301
Rother District Council,03/04/2023,T33HOUSING,Housing,20200,Housing Needs - HB (Housing Benefit),D2513,Hired and Contracted services,170.00,1066 Removal Services,Hired and Contracted services,2040363,202301
Rother District Council,03/04/2023,T33HOUSING,Housing,20200,Housing Needs - HB (Housing Benefit),D2513,Hired and Contracted services,170.00,1066 Removal Services,Hired and Contracted services,2040365,202301
Rother District Council,03/04/2023,T33HOUSING,Housing,20200,Housing Needs - HB (Housing Benefit),D2513,Hired and Contracted services,150.00,1066 Removal Services,Hired and Contracted services,2040366,202301
Rother District Council,03/04/2023,T33HOUSING,Housing,20200,Housing Needs - HB (Housing Benefit),D2513,Hired and Contracted services,250.00,1066 Removal Services,Hired and Contracted services,2040367,202301
Rother District Council,03/04/2023,T33HOUSING,Housing,20200,Housing Needs - HB (Housing Benefit),D2513,Hired and Contracted services,170.00,1066 Removal Services,Hired and Contracted services,2040368,202301
Rother District Council,03/04/2023,T33HOUSING,Housing,20200,Housing Needs - HB (Housing Benefit),D2513,Hired and Contracted services,170.00,1066 Removal Services,Hired and Contracted services,2040369,202301
Rother District Council,03/04/2023,T33HOUSING,Housing,20200,Housing Needs - HB (Housing Benefit),D2513,Hired and Contracted services,100.00,1066 Removal Services,Hired and Contracted services,2040370,202301
Rother District Council,24/04/2023,T33HOUSING,Housing,20200,Housing Needs - HB (Housing Benefit),D2508,Removals and Storage,400.00,1066 Removal Services,Removals and Storage,2040947,202301
Rother District Council,24/04/2023,T33HOUSING,Housing,20200,Housing Needs - HB (Housing Benefit),D2508,Removals and Storage,170.00,1066 Removal Services,Removals and Storage,2040948,202301
Rother District Council,24/04/2023,T33HOUSING,Housing,20200,Housing Needs - HB (Housing Benefit),D2508,Removals and Storage,170.00,1066 Removal Services,Removals and Storage,2040999,202301
Rother District Council,02/05/2023,T33HOUSING,Housing,20200,Housing Needs - HB (Housing Benefit),D2508,Removals and Storage,100.00,1066 Removal Services,Removals and Storage,2041107,202302
Rother District Council,02/05/2023,T33HOUSING,Housing,20200,Housing Needs - HB (Housing Benefit),D2508,Removals and Storage,170.00,1066 Removal Services,Removals and Storage,2041108,202302
Rother District Council,02/05/2023,T33HOUSING,Housing,20200,Housing Needs - HB (Housing Benefit),D2508,Removals and Storage,170.00,1066 Removal Services,Removals and Storage,2041109,202302
Rother District Council,02/05/2023,T33HOUSING,Housing,20200,Housing Needs - HB (Housing Benefit),D2508,Removals and Storage,150.00,1066 Removal Services,Removals and Storage,2041110,202302
Rother District Council,02/05/2023,T33HOUSING,Housing,20200,Housing Needs - HB (Housing Benefit),D2508,Removals and Storage,170.00,1066 Removal Services,Removals and Storage,2041111,202302
Rother District Council,02/05/2023,T33HOUSING,Housing,20200,Housing Needs - HB (Housing Benefit),D2508,Removals and Storage,250.00,1066 Removal Services,Removals and Storage,2041112,202302
Rother District Council,02/05/2023,T33HOUSING,Housing,20200,Housing Needs - HB (Housing Benefit),D2508,Removals and Storage,170.00,1066 Removal Services,Removals and Storage,2041151,202302
Rother District Council,02/05/2023,T33HOUSING,Housing,20200,Housing Needs - HB (Housing Benefit),D2508,Removals and Storage,170.00,1066 Removal Services,Removals and Storage,2041152,202302
Rother District Council,02/05/2023,T33HOUSING,Housing,20200,Housing Needs - HB (Housing Benefit),D2508,Removals and Storage,100.00,1066 Removal Services,Removals and Storage,2041153,202302
Rother District Council,02/05/2023,T33HOUSING,Housing,20200,Housing Needs - HB (Housing Benefit),D2508,Removals and Storage,395.00,1066 Removal Services,Removals and Storage,2041154,202302
Rother District Council,24/05/2023,T33HOUSING,Housing,20200,Housing Needs - HB (Housing Benefit),D2508,Removals and Storage,950.00,1066 Removal Services,Removals and Storage,2041699,202303
Rother District Council,05/06/2023,T33HOUSING,Housing,20200,Housing Needs - HB (Housing Benefit),D2508,Removals and Storage,100.00,1066 Removal Services,Removals and Storage,2041857,202303
Rother District Council,05/06/2023,T33HOUSING,Housing,20200,Housing Needs - HB (Housing Benefit),D2508,Removals and Storage,170.00,1066 Removal Services,Removals and Storage,2041858,202303
Rother District Council,05/06/2023,T33HOUSING,Housing,20200,Housing Needs - HB (Housing Benefit),D2508,Removals and Storage,170.00,1066 Removal Services,Removals and Storage,2041859,202303
Rother District Council,05/06/2023,T33HOUSING,Housing,20200,Housing Needs - HB (Housing Benefit),D2508,Removals and Storage,150.00,1066 Removal Services,Removals and Storage,2041860,202303
Rother District Council,05/06/2023,T33HOUSING,Housing,20200,Housing Needs - HB (Housing Benefit),D2508,Removals and Storage,170.00,1066 Removal Services,Removals and Storage,2041861,202303
Rother District Council,05/06/2023,T33HOUSING,Housing,20200,Housing Needs - HB (Housing Benefit),D2508,Removals and Storage,300.00,1066 Removal Services,Removals and Storage,2041862,202303
Rother District Council,05/06/2023,T33HOUSING,Housing,20200,Housing Needs - HB (Housing Benefit),D2508,Removals and Storage,250.00,1066 Removal Services,Removals and Storage,2041863,202303
Rother District Council,05/06/2023,T33HOUSING,Housing,20200,Housing Needs - HB (Housing Benefit),D2508,Removals and Storage,170.00,1066 Removal Services,Removals and Storage,2041864,202303
Rother District Council,05/06/2023,T33HOUSING,Housing,20200,Housing Needs - HB (Housing Benefit),D2508,Removals and Storage,125.00,1066 Removal Services,Removals and Storage,2041865,202303
Rother District Council,05/06/2023,T33HOUSING,Housing,20200,Housing Needs - HB (Housing Benefit),D2508,Removals and Storage,170.00,1066 Removal Services,Removals and Storage,2041866,202303
Rother District Council,05/06/2023,T33HOUSING,Housing,20200,Housing Needs - HB (Housing Benefit),D2508,Removals and Storage,170.00,1066 Removal Services,Removals and Storage,2041867,202303
Rother District Council,05/06/2023,T33HOUSING,Housing,20200,Housing Needs - HB (Housing Benefit),D2508,Removals and Storage,100.00,1066 Removal Services,Removals and Storage,2041868,202303
Rother District Council,24/06/2023,T33HOUSING,Housing,20200,Housing Needs - HB (Housing Benefit),D2508,Removals and Storage,400.00,1066 Removal Services,Removals and Storage,2042286,202303
Rother District Council,28/06/2023,T33HREGEN,Regeneration,20118,Tourism,D2923,Grants made,"2,500.00",18 Hours Ltd,Grants made - SLA Contribution,2042456,202303
Rother District Council,30/04/2023,T33HOUSING,Housing,20206,UK Resettlement (Syrians),D2513,Hired and Contracted services,34.44,247 Transport Solutions Ltd,Hired and Contracted services,2041159,202302
Rother District Council,30/04/2023,T33HOUSING,Housing,20200,Housing Needs - HB (Housing Benefit),D2513,Hired and Contracted services,187.64,247 Transport Solutions Ltd,Hired and Contracted services,2041166,202302
Rother District Council,31/05/2023,T33HOUSING,Housing,20200,Housing Needs - HB (Housing Benefit),D2513,Hired and Contracted services,140.28,247 Transport Solutions Ltd,Hired and Contracted services,2041850,202303
Rother District Council,03/04/2023,T33HOUSING,Housing,20337,Homes for Ukraine Accommodation,D2514,Accommodation Costs,439.00,47-48 Havelock Road Ltd,Accommodation Costs,2040282,202301
Rother District Council,11/04/2023,T33HOUSING,Housing,20337,Homes for Ukraine Accommodation,D2514,Accommodation Costs,439.00,47-48 Havelock Road Ltd,Accommodation Costs,2040326,202301
Rother District Council,17/04/2023,T33HOUSING,Housing,20337,Homes for Ukraine Accommodation,D2514,Accommodation Costs,439.00,47-48 Havelock Road Ltd,Accommodation Costs,2040818,202301
Rother District Council,24/04/2023,T33HOUSING,Housing,20337,Homes for Ukraine Accommodation,D2514,Accommodation Costs,439.00,47-48 Havelock Road Ltd,Accommodation Costs,2040929,202301
Rother District Council,01/05/2023,T33HOUSING,Housing,20337,Homes for Ukraine Accommodation,D2514,Accommodation Costs,439.00,47-48 Havelock Road Ltd,Accommodation Costs,2041312,202302
Rother District Council,08/05/2023,T33HOUSING,Housing,20337,Homes for Ukraine Accommodation,D2514,Accommodation Costs,439.00,47-48 Havelock Road Ltd,Accommodation Costs,2041316,202302
Rother District Council,15/05/2023,T33HOUSING,Housing,20337,Homes for Ukraine Accommodation,D2514,Accommodation Costs,439.00,47-48 Havelock Road Ltd,Accommodation Costs,2041482,202302
Rother District Council,26/05/2023,T33HOUSING,Housing,20337,Homes for Ukraine Accommodation,D2514,Accommodation Costs,439.00,47-48 Havelock Road Ltd,Accommodation Costs,2041698,202302
Rother District Council,31/05/2023,T33HOUSING,Housing,20337,Homes for Ukraine Accommodation,D2514,Accommodation Costs,439.00,47-48 Havelock Road Ltd,Accommodation Costs,2041749,202303
Rother District Council,06/06/2023,T33HOUSING,Housing,20337,Homes for Ukraine Accommodation,D2514,Accommodation Costs,439.00,47-48 Havelock Road Ltd,Accommodation Costs,2041971,202303
Rother District Council,13/06/2023,T33HOUSING,Housing,20337,Homes for Ukraine Accommodation,D2514,Accommodation Costs,439.00,47-48 Havelock Road Ltd,Accommodation Costs,2042022,202303
Rother District Council,20/06/2023,T33HOUSING,Housing,20337,Homes for Ukraine Accommodation,D2514,Accommodation Costs,439.00,47-48 Havelock Road Ltd,Accommodation Costs,2042077,202303
Rother District Council,27/06/2023,T33HOUSING,Housing,20337,Homes for Ukraine Accommodation,D2514,Accommodation Costs,439.00,47-48 Havelock Road Ltd,Accommodation Costs,2042281,202303
Rother District Council,15/03/2023,T33HOUSING,Housing,20261,"TA Purchases (prev - 41 Jameson Mews, Bexhill on Sea)",D2513,Hired and Contracted services,"1,385.00",A&A Cleaning & Property Services Ltd,Hired and contracted services - Service fee paid,2041917,202303
Rother District Council,31/03/2023,T33HOUSING,Housing,20261,"TA Purchases (prev - 41 Jameson Mews, Bexhill on Sea)",D2513,Hired and Contracted services,150.00,A&A Cleaning & Property Services Ltd,Hired and contracted services - Service fee paid,2040664,202301
Rother District Council,25/04/2023,T33HOUSING,Housing,20304,Housing First,D2513,Hired and Contracted services,25.00,A&A Cleaning & Property Services Ltd,Hired and contracted services - Service fee paid,2041188,202302
Rother District Council,14/05/2023,T33HOUSING,Housing,20304,Housing First,D2513,Hired and Contracted services,50.00,A&A Cleaning & Property Services Ltd,Hired and contracted services - Service fee paid,2041508,202302
Rother District Council,23/05/2023,T33HOUSING,Housing,20261,"TA Purchases (prev - 41 Jameson Mews, Bexhill on Sea)",D2513,Hired and Contracted services,55.00,A&A Cleaning & Property Services Ltd,Hired and contracted services - Service fee paid,2041704,202302
Rother District Council,26/05/2023,T33HOUSING,Housing,20304,Housing First,D2513,Hired and Contracted services,25.00,A&A Cleaning & Property Services Ltd,Hired and contracted services - Service fee paid,2042296,202303
Rother District Council,03/06/2023,T33HOUSING,Housing,20261,"TA Purchases (prev - 41 Jameson Mews, Bexhill on Sea)",D2513,Hired and Contracted services,60.00,A&A Cleaning & Property Services Ltd,Hired and contracted services - Service fee paid,2042536,202303
Rother District Council,16/06/2023,T33HOUSING,Housing,20304,Housing First,D2513,Hired and Contracted services,50.00,A&A Cleaning & Property Services Ltd,Hired and contracted services - Service fee paid,2042297,202303
Rother District Council,17/06/2023,T33HOUSING,Housing,20261,"TA Purchases (prev - 41 Jameson Mews, Bexhill on Sea)",D2513,Hired and Contracted services,60.00,A&A Cleaning & Property Services Ltd,Hired and contracted services - Service fee paid,2042298,202303
Rother District Council,30/06/2023,T33HOUSING,Housing,20261,"TA Purchases (prev - 41 Jameson Mews, Bexhill on Sea)",D2513,Hired and Contracted services,40.00,A&A Cleaning & Property Services Ltd,Hired and contracted services - Service fee paid,2040963,202301
Rother District Council,03/01/2023,T3ZCAPITAL,Capital,70751,Capital - Temporary Accommodation,N1003,Construction/Conversion,150.00,A&A Cleaning & Property Services Ltd,Construction/Conversion Capital-Contract Payments - General,2040573,202301
Rother District Council,13/01/2023,T3ZCAPITAL,Capital,70751,Capital - Temporary Accommodation,N1005,Other fees,150.00,A&A Cleaning & Property Services Ltd,Other Fees - Capital exp Std VAT,2042508,202303
Rother District Council,30/03/2023,T3ZCAPITAL,Capital,70751,Capital - Temporary Accommodation,N1005,Other fees,120.00,A&A Cleaning & Property Services Ltd,Other Fees - Capital exp Std VAT,2041934,202303
Rother District Council,13/04/2023,T3ZCAPITAL,Capital,70751,Capital - Temporary Accommodation,N1003,Construction/Conversion,180.00,A&A Cleaning & Property Services Ltd,Construction/Conversion Capital-Contract Payments - General,2041507,202302
Rother District Council,21/04/2023,T3ZCAPITAL,Capital,70751,Capital - Temporary Accommodation,N1003,Construction/Conversion,"5,900.00",A&A Cleaning & Property Services Ltd,Construction/Conversion Capital-Contract Payments - General,2041497,202302
Rother District Council,26/05/2023,T3ZCAPITAL,Capital,70751,Capital - Temporary Accommodation,N1005,Other fees,125.00,A&A Cleaning & Property Services Ltd,Other Fees - Capital exp Std VAT,2041935,202303
Rother District Council,23/05/2023,T3ZCAPITAL,Capital,70706,Capital - Disabled Facilities Grant,N1012,Capital Advances,"8,130.37",A&AJ Bishop Ltd,Capital Advances Disabled Facilities Grant,2041536,202302
Rother District Council,19/06/2023,T3ZCAPITAL,Capital,70706,Capital - Disabled Facilities Grant,N1012,Capital Advances,"9,324.88",A&AJ Bishop Ltd,Capital Advances Disabled Facilities Grant,2042148,202303
Rother District Council,13/05/2023,T33HREGEN,Regeneration,20154,Committee Property Account,D2513,Hired and Contracted services,"1,700.00",A.G.I.S.,Hired and contracted services - Service fee paid,2041465,202302
Rother District Council,06/06/2023,T33HREGEN,Regeneration,20155,Investment properties,D2513,Hired and Contracted services,480.00,A.G.I.S.,Hired and contracted services - Service fee paid,2042143,202303
Rother District Council,26/05/2023,T3ZCAPITAL,Capital,70751,Capital - Temporary Accommodation,N1005,Other fees,498.00,A.G.I.S.,Other Fees - Capital exp Std VAT,2041768,202303
Rother District Council,06/06/2023,T3ZCAPITAL,Capital,70751,Capital - Temporary Accommodation,N1005,Other fees,705.00,A.G.I.S.,Other Fees - Capital exp Std VAT,2042144,202303
Rother District Council,31/03/2023,T31HUMANRES,Human Resources,20173,Administrative Offices - Town Hall,B2611,Contract cleaning,268.00,Abacus Main Ltd,Contract cleaning - Office Cleaning,2040430,202301
Rother District Council,31/05/2023,T31HUMANRES,Human Resources,20173,Administrative Offices - Town Hall,B2611,Contract cleaning,238.00,Abacus Main Ltd,Contract cleaning - Office Cleaning,2042454,202303
Rother District Council,31/05/2023,T31HUMANRES,Human Resources,20175,Admin Building - Amherst Rd (fmr Treasurer�s building),B2611,Contract cleaning,30.00,Abacus Main Ltd,Contract cleaning - Office Cleaning,2042454,202303
Rother District Council,31/03/2023,T33NBHDSERV,Neighbourhood Services,20123,Cemeteries,B2611,Contract cleaning,60.00,Abacus Main Ltd,Contract cleaning - Cemeteries - Chapel Cleaning,2040429,202301
Rother District Council,31/03/2023,T33NBHDSERV,Neighbourhood Services,20108,Bexhill Promenade & Foreshore,B2611,Contract cleaning,153.00,Abacus Main Ltd,Contract cleaning - Office Cleaning,2040428,202301
Rother District Council,30/04/2023,T33NBHDSERV,Neighbourhood Services,20138,Residual Highway Services,B2611,Contract cleaning,500.00,Abacus Main Ltd,Contract cleaning - Bus Shelter Cleaning Contract,2041564,202303
Rother District Council,30/04/2023,T33NBHDSERV,Neighbourhood Services,20108,Bexhill Promenade & Foreshore,B2611,Contract cleaning,153.00,Abacus Main Ltd,Contract cleaning - Office Cleaning,2041565,202303
Rother District Council,31/05/2023,T33NBHDSERV,Neighbourhood Services,20108,Bexhill Promenade & Foreshore,B2611,Contract cleaning,153.00,Abacus Main Ltd,Contract cleaning - Office Cleaning,2042453,202303
Rother District Council,28/06/2023,T31DEMSERV,Democratic Services,20156,Representing Local Interest,D2737,Vice Chairmans Allowance,45.00,ABF The Soldiers� Charity,Vice -Chairmans Allowance -Vice  Chairmans Allowance,2042450,202303
Rother District Council,05/05/2023,T31HUMANRES,Human Resources,20176,Administrative Offices - Print Room,B1100,Repairs to Premises,124.85,ADT Fire and  Security Plc,Repairs to Premises - Intruder Alarm System Monitor/Maint,2041659,202302
Rother District Council,02/03/2023,T33HREGEN,Regeneration,20308,Amherst Road as Investment Property,B1100,Repairs to Premises,96.00,ADT Fire and  Security Plc,Repairs to Premises - Intruder Alarm System Monitor/Maint,2040307,202301
Rother District Council,25/04/2023,T33NBHDSERV,Neighbourhood Services,20102,Rother Museum Services,B1100,Repairs to Premises,383.50,ADT Fire and  Security Plc,Repairs to Premises - Fire Alarm System Maintenance,2041125,202302
Rother District Council,26/04/2023,T33NBHDSERV,Neighbourhood Services,20102,Rother Museum Services,B1100,Repairs to Premises,"2,053.66",ADT Fire and  Security Plc,Repairs to Premises - Fire Alarm System Maintenance,2041124,202302
Rother District Council,01/05/2023,T33NBHDSERV,Neighbourhood Services,20102,Rother Museum Services,B1100,Repairs to Premises,407.77,ADT Fire and  Security Plc,Repairs to Premises - Fire Alarm System Maintenance,2041357,202302
Rother District Council,16/04/2023,T31HUMANRES,Human Resources,20171,Human Resources,D2922,Subscriptions,79.80,Agora Business Publications LLP,Subscriptions - Subscription to Organisations,2041123,202302
Rother District Council,16/04/2023,T32REVBEN,Revenues & Benefits,20215,Revenue and Benefits,A2203,Training,153.00,Airey Consultancy Services Ltd (ACS),Training,2040801,202301
Rother District Council,26/05/2023,T31HUMANRES,Human Resources,20173,Administrative Offices - Town Hall,B1100,Repairs to Premises,"1,855.17",AirTight Security Systems Ltd,Repairs to Premises - Repairs - Electrical Works,2041898,202303
Rother District Council,05/06/2023,T33NBHDSERV,Neighbourhood Services,20108,Bexhill Promenade & Foreshore,D2513,Hired and Contracted services,318.60,AirTight Security Systems Ltd,Hired and contracted services - CCTV System Maintenance,2041957,202303
Rother District Council,24/02/2023,T33NBHDSERV,Neighbourhood Services,20137,Car Parks,B1100,Repairs to Premises,"1,200.00",AJL Roadmarking Ltd,Repairs to Premises - Car Park Maintenance,2040456,202301
Rother District Council,28/02/2023,T33NBHDSERV,Neighbourhood Services,20137,Car Parks,B1100,Repairs to Premises,995.00,AJL Roadmarking Ltd,Repairs to Premises - Car Park Maintenance,2040458,202301
Rother District Council,06/04/2023,T33NBHDSERV,Neighbourhood Services,20137,Car Parks,B1100,Repairs to Premises,"1,900.00",AJL Roadmarking Ltd,Repairs to Premises - Car Park Maintenance,2040459,202301
Rother District Council,12/05/2023,T33NBHDSERV,Neighbourhood Services,20137,Car Parks,B1100,Repairs to Premises,"4,750.00",AJL Roadmarking Ltd,Repairs to Premises - Car Park Maintenance,2041614,202302
Rother District Council,23/01/2023,T31HUMANRES,Human Resources,20176,Administrative Offices - Print Room,B1100,Repairs to Premises,189.71,Alfa Electric Ltd,Repairs to Premises - Repairs - Electrical Works,2040907,202301
Rother District Council,23/01/2023,T31HUMANRES,Human Resources,20173,Administrative Offices - Town Hall,B1100,Repairs to Premises,75.00,Alfa Electric Ltd,Repairs to Premises - Repairs - Electrical Works,2040908,202301
Rother District Council,22/03/2023,T31HUMANRES,Human Resources,20173,Administrative Offices - Town Hall,B1100,Repairs to Premises,194.72,Alfa Electric Ltd,Repairs to Premises - Repairs - Electrical Works,2040950,202301
Rother District Council,02/05/2023,T31HUMANRES,Human Resources,20173,Administrative Offices - Town Hall,B1100,Repairs to Premises,369.71,Alfa Electric Ltd,Repairs to Premises - Repairs - Electrical Works,2041661,202302
Rother District Council,05/06/2023,T31HUMANRES,Human Resources,20173,Administrative Offices - Town Hall,B1100,Repairs to Premises,50.00,Alfa Electric Ltd,Repairs to Premises - Repairs - Electrical Works,2042389,202303
Rother District Council,07/06/2023,T32ENVSERV,"Environmental Services, Licensing & Community Safety",32134,EH Pollution R + W Partnership,D1201,Equipment & Materials,123.54,Alfa Electric Ltd,Equipment & Materials - Electrical Equipment,2042388,202303
Rother District Council,10/05/2023,T33HOUSING,Housing,20304,Housing First,D2513,Hired and Contracted services,59.50,Alfa Electric Ltd,Hired and contracted services - Service fee paid,2041437,202302
Rother District Council,11/04/2023,T33HREGEN,Regeneration,20154,Committee Property Account,B1100,Repairs to Premises,729.36,Alfa Electric Ltd,Repairs to Premises - Repairs - Electrical Works,2040913,202301
Rother District Council,14/04/2023,T33HREGEN,Regeneration,20153,"Elva Business Centre, Bexhill",B1100,Repairs to Premises,198.16,Alfa Electric Ltd,Repairs to Premises - Repairs - Electrical Works,2040911,202301
Rother District Council,11/05/2023,T33HREGEN,Regeneration,20148,Misc Land & Buildings,B1100,Repairs to Premises,109.12,Alfa Electric Ltd,Repairs to Premises - Repairs - Electrical Works,2041897,202303
Rother District Council,25/05/2023,T33HREGEN,Regeneration,20308,Amherst Road as Investment Property,B1100,Repairs to Premises,289.62,Alfa Electric Ltd,Repairs to Premises - Repairs - Electrical Works,2041916,202303
Rother District Council,15/06/2023,T33HREGEN,Regeneration,20154,Committee Property Account,B1100,Repairs to Premises,"1,088.68",Alfa Electric Ltd,Repairs to Premises - Repairs - Electrical Works,2042393,202303
Rother District Council,04/04/2023,T33NBHDSERV,Neighbourhood Services,20128,Public Conveniences,B1100,Repairs to Premises,65.13,Alfa Electric Ltd,Repairs to Premises - Repairs - Electrical Works,2040910,202301
Rother District Council,14/04/2023,T33NBHDSERV,Neighbourhood Services,20115,Rye Area Parks & Gardens,B1100,Repairs to Premises,528.57,Alfa Electric Ltd,Repairs to Premises - Repairs - Electrical Works,2040912,202301
Rother District Council,18/04/2023,T33NBHDSERV,Neighbourhood Services,20137,Car Parks,B1100,Repairs to Premises,129.56,Alfa Electric Ltd,Repairs to Premises - Repairs - Electrical Works,2040909,202301
Rother District Council,19/04/2023,T33NBHDSERV,Neighbourhood Services,20107,Camber Beach & Foreshore,B1100,Repairs to Premises,149.63,Alfa Electric Ltd,Repairs to Premises - Electrical Installation,2041435,202302
Rother District Council,19/04/2023,T33NBHDSERV,Neighbourhood Services,20128,Public Conveniences,B1100,Repairs to Premises,121.13,Alfa Electric Ltd,Repairs to Premises - Repairs - Electrical Works,2041436,202302
Rother District Council,19/04/2023,T33NBHDSERV,Neighbourhood Services,20107,Camber Beach & Foreshore,B1100,Repairs to Premises,149.63,Alfa Electric Ltd,Repairs to Premises - Repairs - Electrical Works,2042317,202303
Rother District Council,19/04/2023,T33NBHDSERV,Neighbourhood Services,20128,Public Conveniences,B1100,Repairs to Premises,121.13,Alfa Electric Ltd,Repairs to Premises - Repairs - Electrical Works,2042317,202303
Rother District Council,26/04/2023,T33NBHDSERV,Neighbourhood Services,20137,Car Parks,B1100,Repairs to Premises,543.19,Alfa Electric Ltd,Repairs to Premises - Car Park Maintenance,2041022,202301
Rother District Council,10/05/2023,T33NBHDSERV,Neighbourhood Services,20128,Public Conveniences,B1100,Repairs to Premises,229.51,Alfa Electric Ltd,Repairs to Premises - Repairs - Electrical Works,2041752,202303
Rother District Council,10/05/2023,T33NBHDSERV,Neighbourhood Services,20137,Car Parks,B1100,Repairs to Premises,439.61,Alfa Electric Ltd,Repairs to Premises - Repairs - Electrical Works,2041753,202303
Rother District Council,11/05/2023,T33NBHDSERV,Neighbourhood Services,20128,Public Conveniences,B1100,Repairs to Premises,119.71,Alfa Electric Ltd,Repairs to Premises - Repairs - Electrical Works,2041886,202303
Rother District Council,31/05/2023,T33NBHDSERV,Neighbourhood Services,20111,Rye Sports Centre & Pool,B1100,Repairs to Premises,129.36,Alfa Electric Ltd,Repairs to Premises - Specified Repairs and Works listed,2042319,202303
Rother District Council,07/06/2023,T33NBHDSERV,Neighbourhood Services,20128,Public Conveniences,B1100,Repairs to Premises,471.07,Alfa Electric Ltd,Repairs to Premises - Repairs - Electrical Works,2042318,202303
Rother District Council,07/06/2023,T33NBHDSERV,Neighbourhood Services,20114,Bexhill Parks & Open Spaces,B1100,Repairs to Premises,125.84,Alfa Electric Ltd,Repairs to Premises - Repairs - Electrical Works,2042387,202303
Rother District Council,13/06/2023,T33NBHDSERV,Neighbourhood Services,20128,Public Conveniences,B1100,Repairs to Premises,395.83,Alfa Electric Ltd,Repairs to Premises - Repairs - Plumbing Works,2042390,202303
Rother District Council,19/06/2023,T33NBHDSERV,Neighbourhood Services,20108,Bexhill Promenade & Foreshore,B1100,Repairs to Premises,236.11,Alfa Electric Ltd,Repairs to Premises - Repairs - Electrical Works,2042392,202303
Rother District Council,28/02/2023,T3ZCAPITAL,Capital,70736,Capital - 18-40 Beeching Road Refurbishment,N1003,Construction/Conversion,"17,534.13",Alfa Electric Ltd,Construction/Conversion Capital-Contract Payments - General,2040849,202301
Rother District Council,02/03/2023,T3ZCAPITAL,Capital,70706,Capital - Disabled Facilities Grant,N1012,Capital Advances,"5,635.15",Alfa Electric Ltd,Capital Advances Disabled Facilities Grant,2041231,202302
Rother District Council,11/04/2023,T3ZCAPITAL,Capital,70706,Capital - Disabled Facilities Grant,N1012,Capital Advances,"8,000.00",Alfa Electric Ltd,Capital Advances Disabled Facilities Grant,2040802,202301
Rother District Council,11/04/2023,T3ZCAPITAL,Capital,70706,Capital - Disabled Facilities Grant,N1012,Capital Advances,"7,500.00",Alfa Electric Ltd,Capital Advances Disabled Facilities Grant,2040876,202301
Rother District Council,13/04/2023,T3ZCAPITAL,Capital,70706,Capital - Disabled Facilities Grant,N1012,Capital Advances,"9,148.73",Alfa Electric Ltd,Capital Advances Disabled Facilities Grant,2040872,202301
Rother District Council,17/04/2023,T3ZCAPITAL,Capital,70706,Capital - Disabled Facilities Grant,N1012,Capital Advances,"6,208.47",Alfa Electric Ltd,Capital Advances Disabled Facilities Grant,2040864,202301
Rother District Council,17/04/2023,T3ZCAPITAL,Capital,70706,Capital - Disabled Facilities Grant,N1012,Capital Advances,"4,851.96",Alfa Electric Ltd,Capital Advances Disabled Facilities Grant,2040875,202301
Rother District Council,02/05/2023,T3ZCAPITAL,Capital,70706,Capital - Disabled Facilities Grant,N1012,Capital Advances,"18,000.00",Alfa Electric Ltd,Capital Advances Disabled Facilities Grant,2041234,202302
Rother District Council,03/05/2023,T3ZCAPITAL,Capital,70706,Capital - Disabled Facilities Grant,N1012,Capital Advances,629.01,Alfa Electric Ltd,Capital Advances Disabled Facilities Grant,2041236,202302
Rother District Council,17/05/2023,T3ZCAPITAL,Capital,70706,Capital - Disabled Facilities Grant,N1012,Capital Advances,"6,012.28",Alfa Electric Ltd,Capital Advances Disabled Facilities Grant,2041516,202302
Rother District Council,18/05/2023,T3ZCAPITAL,Capital,70706,Capital - Disabled Facilities Grant,N1012,Capital Advances,"12,672.76",Alfa Electric Ltd,Capital Advances Disabled Facilities Grant,2041518,202302
Rother District Council,22/05/2023,T3ZCAPITAL,Capital,70706,Capital - Disabled Facilities Grant,N1012,Capital Advances,"31,055.34",Alfa Electric Ltd,Capital Advances Disabled Facilities Grant,2041712,202302
Rother District Council,26/05/2023,T3ZCAPITAL,Capital,70706,Capital - Disabled Facilities Grant,N1012,Capital Advances,"5,997.30",Alfa Electric Ltd,Capital Advances Disabled Facilities Grant,2041711,202302
Rother District Council,08/06/2023,T3ZCAPITAL,Capital,70706,Capital - Disabled Facilities Grant,N1012,Capital Advances,"7,500.00",Alfa Electric Ltd,Capital Advances Disabled Facilities Grant,2042385,202303
Rother District Council,03/03/2023,T33HOUSING,Housing,20205,Housing Loans Account,D2514,Accommodation Costs,583.40,Allicin International Ltd,Accommodation Costs - Homelessness services Rent in Advance for Homeless,2040384,202301
Rother District Council,03/03/2023,T33HOUSING,Housing,20205,Housing Loans Account,D2514,Accommodation Costs,583.40,Allicin International Ltd,Accommodation Costs - Homelessness services Rent in Advance for Homeless,2040965,202301
Rother District Council,05/06/2023,T33HOUSING,Housing,20205,Housing Loans Account,D2514,Accommodation Costs,583.40,Allicin International Ltd,Accommodation Costs - Homelessness services Rent in Advance for Homeless,2041713,202303
Rother District Council,31/03/2023,T31CHFFIN,Chief Finance Officer (S151),20209,Corporate management,D2513,Hired and Contracted services,15.24,allpay.net Ltd,Hired and contracted services - Allpay Card/Rep/Let Chrg - Vatable,2042179,202303
Rother District Council,31/03/2023,T31CHFFIN,Chief Finance Officer (S151),20209,Corporate management,D2513,Hired and Contracted services,24.03,allpay.net Ltd,Hired and contracted services - Allpay Card/Rep/Let Chrg - Vatable,2042180,202303
Rother District Council,31/03/2023,T31CHFFIN,Chief Finance Officer (S151),20209,Corporate management,D2513,Hired and Contracted services,502.59,allpay.net Ltd,Hired and contracted services - Allpay Card/Rep/Let Chrg - Vatable,2042181,202303
Rother District Council,31/03/2023,T31CHFFIN,Chief Finance Officer (S151),20209,Corporate management,D2513,Hired and Contracted services,11.63,allpay.net Ltd,Hired and contracted services - Allpay Card/Rep/Let Chrg - Vatable,2042182,202303
Rother District Council,15/03/2023,T32ENVSERV,"Environmental Services, Licensing & Community Safety",32136,EH Pest Control R + W Partnership,C1104,Derv,122.50,Allstar Business Solutions,Derv,2042183,202303
Rother District Council,15/03/2023,T32ENVSERV,"Environmental Services, Licensing & Community Safety",32136,EH Pest Control R + W Partnership,C1104,Derv,3.80,Allstar Business Solutions,Derv - Fuel Service fee payable on fuel cards,2042183,202303
Rother District Council,31/03/2023,T32ENVSERV,"Environmental Services, Licensing & Community Safety",32136,EH Pest Control R + W Partnership,C1104,Derv,116.67,Allstar Business Solutions,Derv,2042184,202303
Rother District Council,31/03/2023,T32ENVSERV,"Environmental Services, Licensing & Community Safety",32136,EH Pest Control R + W Partnership,C1104,Derv,3.80,Allstar Business Solutions,Derv - Fuel Service fee payable on fuel cards,2042184,202303
Rother District Council,15/04/2023,T32ENVSERV,"Environmental Services, Licensing & Community Safety",32136,EH Pest Control R + W Partnership,C1104,Derv,114.17,Allstar Business Solutions,Derv,2042185,202303
Rother District Council,15/04/2023,T32ENVSERV,"Environmental Services, Licensing & Community Safety",32136,EH Pest Control R + W Partnership,C1104,Derv,3.80,Allstar Business Solutions,Derv - Fuel Service fee payable on fuel cards,2042185,202303
Rother District Council,30/04/2023,T32ENVSERV,"Environmental Services, Licensing & Community Safety",32136,EH Pest Control R + W Partnership,C1104,Derv,105.01,Allstar Business Solutions,Derv,2042186,202303
Rother District Council,30/04/2023,T32ENVSERV,"Environmental Services, Licensing & Community Safety",32136,EH Pest Control R + W Partnership,C1104,Derv,3.80,Allstar Business Solutions,Derv - Fuel Service fee payable on fuel cards,2042186,202303
Rother District Council,15/03/2023,T33HREGEN,Regeneration,20145,Maintenance Services,C1104,Derv,157.18,Allstar Business Solutions,Derv,2042183,202303
Rother District Council,15/03/2023,T33HREGEN,Regeneration,20145,Maintenance Services,C1104,Derv,141.95,Allstar Business Solutions,Derv,2042183,202303
Rother District Council,15/03/2023,T33HREGEN,Regeneration,20145,Maintenance Services,C1104,Derv,83.29,Allstar Business Solutions,Derv,2042183,202303
Rother District Council,15/03/2023,T33HREGEN,Regeneration,20145,Maintenance Services,C1104,Derv,95.06,Allstar Business Solutions,Derv,2042183,202303
Rother District Council,15/03/2023,T33HREGEN,Regeneration,20145,Maintenance Services,C1104,Derv,9.50,Allstar Business Solutions,Derv - Fuel Service fee payable on fuel cards,2042183,202303
Rother District Council,31/03/2023,T33HREGEN,Regeneration,20145,Maintenance Services,C1104,Derv,84.61,Allstar Business Solutions,Derv,2042184,202303
Rother District Council,31/03/2023,T33HREGEN,Regeneration,20145,Maintenance Services,C1104,Derv,78.03,Allstar Business Solutions,Derv,2042184,202303
Rother District Council,31/03/2023,T33HREGEN,Regeneration,20145,Maintenance Services,C1104,Derv,163.94,Allstar Business Solutions,Derv,2042184,202303
Rother District Council,31/03/2023,T33HREGEN,Regeneration,20145,Maintenance Services,C1104,Derv,7.60,Allstar Business Solutions,Derv - Fuel Service fee payable on fuel cards,2042184,202303
Rother District Council,15/04/2023,T33HREGEN,Regeneration,20145,Maintenance Services,C1104,Derv,76.37,Allstar Business Solutions,Derv,2042185,202303
Rother District Council,15/04/2023,T33HREGEN,Regeneration,20145,Maintenance Services,C1104,Derv,221.61,Allstar Business Solutions,Derv,2042185,202303
Rother District Council,15/04/2023,T33HREGEN,Regeneration,20145,Maintenance Services,C1104,Derv,74.29,Allstar Business Solutions,Derv,2042185,202303
Rother District Council,15/04/2023,T33HREGEN,Regeneration,20145,Maintenance Services,C1104,Derv,11.40,Allstar Business Solutions,Derv - Fuel Service fee payable on fuel cards,2042185,202303
Rother District Council,30/04/2023,T33HREGEN,Regeneration,20145,Maintenance Services,C1104,Derv,68.51,Allstar Business Solutions,Derv,2042186,202303
Rother District Council,30/04/2023,T33HREGEN,Regeneration,20145,Maintenance Services,C1104,Derv,86.42,Allstar Business Solutions,Derv,2042186,202303
Rother District Council,30/04/2023,T33HREGEN,Regeneration,20145,Maintenance Services,C1104,Derv,90.00,Allstar Business Solutions,Derv,2042186,202303
Rother District Council,30/04/2023,T33HREGEN,Regeneration,20145,Maintenance Services,C1104,Derv,5.70,Allstar Business Solutions,Derv - Fuel Service fee payable on fuel cards,2042186,202303
Rother District Council,15/03/2023,T33NBHDSERV,Neighbourhood Services,20107,Camber Beach & Foreshore,C1104,Derv,162.32,Allstar Business Solutions,Derv,2042183,202303
Rother District Council,15/03/2023,T33NBHDSERV,Neighbourhood Services,20107,Camber Beach & Foreshore,C1104,Derv,3.80,Allstar Business Solutions,Derv - Fuel Service fee payable on fuel cards,2042183,202303
Rother District Council,15/04/2023,T33NBHDSERV,Neighbourhood Services,20107,Camber Beach & Foreshore,C1104,Derv,50.02,Allstar Business Solutions,Derv,2042185,202303
Rother District Council,15/04/2023,T33NBHDSERV,Neighbourhood Services,20107,Camber Beach & Foreshore,C1104,Derv,1.90,Allstar Business Solutions,Derv - Fuel Service fee payable on fuel cards,2042185,202303
Rother District Council,30/04/2023,T33NBHDSERV,Neighbourhood Services,20107,Camber Beach & Foreshore,C1104,Derv,62.62,Allstar Business Solutions,Derv,2042186,202303
Rother District Council,30/04/2023,T33NBHDSERV,Neighbourhood Services,20107,Camber Beach & Foreshore,C1104,Derv,1.90,Allstar Business Solutions,Derv - Fuel Service fee payable on fuel cards,2042186,202303
Rother District Council,28/02/2023,T33NBHDSERV,Neighbourhood Services,20108,Bexhill Promenade & Foreshore,B1100,Repairs to Premises,698.40,Alsford Timber Ltd,Repairs to Premises - Purchase of Materials - Build Maint,2040800,202301
Rother District Council,09/05/2023,T33HREGEN,Regeneration,20146,West Trading Estate,B1100,Repairs to Premises,250.00,Amstech Asbestos Removals Ltd,Repairs to Premises - Specified Repairs and Works listed,2041795,202303
Rother District Council,16/05/2023,T3ZCAPITAL,Capital,70751,Capital - Temporary Accommodation,N1005,Other fees,"1,405.00",Amstech Asbestos Removals Ltd,Other Fees - Capital exp Std VAT,2041792,202303
Rother District Council,24/03/2023,T33HOUSING,Housing,20261,"TA Purchases (prev - 41 Jameson Mews, Bexhill on Sea)",D2513,Hired and Contracted services,350.00,Amstech Inspections & Testing Ltd,Hired and contracted services - Service fee paid,2040750,202301
Rother District Council,31/05/2023,T33HREGEN,Regeneration,20150,Peasmarsh Workshops,B1100,Repairs to Premises,150.00,Amstech Inspections & Testing Ltd,Repairs to Premises - Specified Repairs and Works listed,2041908,202303
Rother District Council,31/05/2023,T33HREGEN,Regeneration,20150,Peasmarsh Workshops,B1100,Repairs to Premises,150.00,Amstech Inspections & Testing Ltd,Repairs to Premises - Specified Repairs and Works listed,2041908,202303
Rother District Council,31/05/2023,T33HREGEN,Regeneration,20267,Property Investment Strategy - 18-40 Beeching Road ( Land and Buildings),B1100,Repairs to Premises,700.00,Amstech Inspections & Testing Ltd,Repairs to Premises - Specified Repairs and Works listed,2041910,202303
Rother District Council,27/02/2023,T3ZCAPITAL,Capital,70751,Capital - Temporary Accommodation,N1005,Other fees,250.00,Amstech Inspections & Testing Ltd,Other Fees - Capital exp Std VAT,2040577,202301
Rother District Council,28/02/2023,T3ZCAPITAL,Capital,70751,Capital - Temporary Accommodation,N1005,Other fees,750.00,Amstech Inspections & Testing Ltd,Other Fees - Capital exp Std VAT,2040578,202301
Rother District Council,21/04/2023,T3ZCAPITAL,Capital,70751,Capital - Temporary Accommodation,N1005,Other fees,85.00,Amstech Inspections & Testing Ltd,Other Fees - Capital exp Std VAT,2040966,202301
Rother District Council,21/04/2023,T3ZCAPITAL,Capital,70751,Capital - Temporary Accommodation,N1005,Other fees,250.00,Amstech Inspections & Testing Ltd,Other Fees - Capital exp Std VAT,2040967,202301
Rother District Council,21/04/2023,T3ZCAPITAL,Capital,70751,Capital - Temporary Accommodation,N1005,Other fees,250.00,Amstech Inspections & Testing Ltd,Other Fees - Capital exp Std VAT,2040968,202301
Rother District Council,05/04/2023,T32ENVSERV,"Environmental Services, Licensing & Community Safety",32135,EH Dog Control R + W Partnership,D2513,Hired and Contracted services,"2,950.00",Animal Wardens Ltd,Hired and contracted services - Rother Collection of Dogs EnvH,2040842,202301
Rother District Council,05/04/2023,T32ENVSERV,"Environmental Services, Licensing & Community Safety",32135,EH Dog Control R + W Partnership,D2513,Hired and Contracted services,"3,369.00",Animal Wardens Ltd,Hired and contracted services - Wealden Stray Dogs Kennelling Costs EnvH,2040843,202301
Rother District Council,05/05/2023,T32ENVSERV,"Environmental Services, Licensing & Community Safety",32135,EH Dog Control R + W Partnership,D2513,Hired and Contracted services,"2,950.00",Animal Wardens Ltd,Hired and contracted services - Rother Collection of Dogs EnvH,2041345,202302
Rother District Council,05/05/2023,T32ENVSERV,"Environmental Services, Licensing & Community Safety",32135,EH Dog Control R + W Partnership,D2513,Hired and Contracted services,"3,369.00",Animal Wardens Ltd,Hired and contracted services - Wealden Stray Dogs Kennelling Costs EnvH,2041344,202302
Rother District Council,27/04/2023,T3ZCAPITAL,Capital,70754,Capital - King Offa Residential Development Scheme,D2507,Security Services,620.00,AP Security (APS) Ltd,Security services provided,2041183,202302
Rother District Council,05/04/2023,T3ZCAPITAL,Capital,70751,Capital - Temporary Accommodation,N1005,Other fees,310.00,APS Tree Surgery,Other Fees - Capital exp Std VAT,2040665,202301
Rother District Council,18/04/2023,T3ZCAPITAL,Capital,70751,Capital - Temporary Accommodation,N1005,Other fees,400.00,APS Tree Surgery,Other Fees - Capital exp Std VAT,2040916,202301
Rother District Council,12/05/2023,T3ZCAPITAL,Capital,70751,Capital - Temporary Accommodation,N1005,Other fees,150.00,APS Tree Surgery,Other Fees - Capital exp Std VAT,2041658,202302
Rother District Council,30/03/2023,T33CLIMCHNG,Climate Change Strategy,20273,Environment Strategy,A2203,Training,"1,264.00",APSE Southern Region,Training,2040964,202301
Rother District Council,17/04/2023,T33NBHDSERV,Neighbourhood Services,20114,Bexhill Parks & Open Spaces,D2513,Hired and Contracted services,915.63,Architectural Plants,Hired and contracted services - Levelling Up Parks Fund- tree/plants supply and planting c/c 20114,2040848,202301
Rother District Council,31/03/2023,T31CHFFIN,Chief Finance Officer (S151),20222,Accountancy,D2636,Computer Software,"1,100.87",Arribatec UK Ltd,Computer Software - charged to departments,2040743,202301
Rother District Council,30/05/2023,T31CHFFIN,Chief Finance Officer (S151),20222,Accountancy,D2636,Computer Software,"1,100.87",Arribatec UK Ltd,Computer Software - charged to departments,2041279,202302
Rother District Council,31/05/2023,T31CHFFIN,Chief Finance Officer (S151),20222,Accountancy,D2636,Computer Software,"1,100.87",Arribatec UK Ltd,Computer Software - charged to departments,2041845,202303
Rother District Council,27/04/2023,T31CHFFIN,Chief Finance Officer (S151),20212,Risk Management/Insurance,D2520,Insurance,"42,244.16",Arthur J. Gallagher Insurance Brokers Ltd,Insurance - Property building Insurance,2041646,202302
Rother District Council,27/04/2023,T31CHFFIN,Chief Finance Officer (S151),20212,Risk Management/Insurance,D2520,Insurance,"36,125.60",Arthur J. Gallagher Insurance Brokers Ltd,Insurance - Property building Insurance,2041647,202302
Rother District Council,23/05/2023,T31CHFFIN,Chief Finance Officer (S151),20212,Risk Management/Insurance,D2520,Insurance,81.89,Arthur J. Gallagher Insurance Brokers Ltd,Insurance - Property building Insurance,2041648,202302
Rother District Council,20/04/2023,T31HUMANRES,Human Resources,20171,Human Resources,A2203,Training,"1,600.00",Arun District Council,Training,2040923,202301
Rother District Council,21/03/2023,T32ENVSERV,"Environmental Services, Licensing & Community Safety",20141,Private Sector Housing,D2922,Subscriptions,120.00,Arun District Council,Subscriptions - Sussex Empty Homes Forum and Network membership,2041270,202302
Rother District Council,24/05/2023,T32REVBEN,Revenues & Benefits,20201,Household Support Fund (HFS) from 202108,D2639,Departmental Systems,"7,700.00",Ascendant Solutions Limited,Departmental Systems - Software for Academy System,2041608,202302
Rother District Council,07/06/2023,T32REVBEN,Revenues & Benefits,20201,Household Support Fund (HFS) from 202108,D2639,Departmental Systems,975.00,Ascendant Solutions Limited,Departmental Systems - Software for Academy System,2042535,202303
Rother District Council,01/04/2023,T341PRECEPTS,Precepts,42203,Parish Precepts,F1201,Parish precepts,"6,825.00",Ashburnham and  Penhurst Parish Council,Parish precepts,2042042,202303
Rother District Council,09/02/2023,T31DEMSERV,Democratic Services,20163,District Council Elections,D2513,Hired and Contracted services,200.00,Ashburnham and Penhurst Village Hall,Hire of Premises (RDC) - Hire of Premises (RDC),2041475,202302
Rother District Council,19/04/2023,T3ZCAPITAL,Capital,70750,Capital - Development of Council Owned Sites,N1004,Architects & Consultant Fees,364.88,Ashdown Site Investigation Ltd,Architects & Consultant Fees Capital-Architect and Conslt Fees,2040862,202301
Rother District Council,03/03/2023,T32ENVSERV,"Environmental Services, Licensing & Community Safety",32133,EH Food Hyg / Idc / Water Purity R + W Partnership,A1119,Staff seconded from other organisations,"2,962.10",Ashford Borough Council Collection Account,Env Health - Staff seconded from other organisations,2040684,202301
Rother District Council,03/03/2023,T32ENVSERV,"Environmental Services, Licensing & Community Safety",32133,EH Food Hyg / Idc / Water Purity R + W Partnership,A1119,Staff seconded from other organisations,105.03,Ashford Borough Council Collection Account,Env Health - Staff seconded from other organisations (Other costs),2040684,202301
Rother District Council,21/03/2023,T33NBHDSERV,Neighbourhood Services,20137,Car Parks,B1100,Repairs to Premises,"1,000.00",Aspect Roadmarkings Limited,Repairs to Premises - White Lining in Car Parks,2040915,202301
Rother District Council,29/04/2023,T3ZCAPITAL,Capital,70754,Capital - King Offa Residential Development Scheme,N1003,Construction/Conversion,"3,685.13",Aspect Roadmarkings Limited,Construction/Conversion Capital-Contract Payments - General,2041101,202302
Rother District Council,30/05/2023,T33PLANPOL,Planning Policy,20255,Local Development Framework,D2513,Hired and Contracted services,"3,850.00",Aspinall Verdi Limited,Hired and contracted services - LDF Consultancy,2041822,202303
Rother District Council,28/04/2023,T33HREGEN,Regeneration,20145,Maintenance Services,C1101,Vehicle Repairs & Servicing,24.70,Autolec Motor Factors / Alliance Automotive UK LV Ltd,Vehicle Repairs & Servicing,2041169,202302
Rother District Council,03/05/2023,T33HREGEN,Regeneration,20145,Maintenance Services,D1201,Equipment & Materials,123.13,Autolec Motor Factors / Alliance Automotive UK LV Ltd,Equipment & Materials - Purchase of Tools,2041271,202302
Rother District Council,30/05/2023,T33HREGEN,Regeneration,20145,Maintenance Services,C1101,Vehicle Repairs & Servicing,6.07,Autolec Motor Factors / Alliance Automotive UK LV Ltd,Vehicle Repairs & Servicing,2041911,202303
Rother District Council,02/06/2023,T33HREGEN,Regeneration,20145,Maintenance Services,C1101,Vehicle Repairs & Servicing,12.88,Autolec Motor Factors / Alliance Automotive UK LV Ltd,Vehicle Repairs & Servicing,2041923,202303
Rother District Council,24/04/2023,T31HUMANRES,Human Resources,20171,Human Resources,D2513,Hired and Contracted services,136.14,AVC Wise Ltd,Hired and contracted services - Service fee paid,2041282,202302
Rother District Council,24/05/2023,T31HUMANRES,Human Resources,20171,Human Resources,D2513,Hired and Contracted services,151.80,AVC Wise Ltd,Hired and contracted services - Service fee paid,2041773,202303
Rother District Council,28/04/2023,T31HUMANRES,Human Resources,20173,Administrative Offices - Town Hall,B1100,Repairs to Premises,450.00,B and G Environmental Services Limited,Repairs to Premises - Drainage Clearance,2041149,202302
Rother District Council,11/04/2023,T33HOUSING,Housing,20261,"TA Purchases (prev - 41 Jameson Mews, Bexhill on Sea)",D2513,Hired and Contracted services,275.00,B and G Environmental Services Limited,Hired and contracted services - Service fee paid,2040944,202301
Rother District Council,30/03/2023,T33HREGEN,Regeneration,20146,West Trading Estate,B1100,Repairs to Premises,125.00,B and G Environmental Services Limited,Repairs to Premises - Drainage Clearance,2040890,202301
Rother District Council,27/03/2023,T33NBHDSERV,Neighbourhood Services,20137,Car Parks,B1100,Repairs to Premises,760.00,B and G Environmental Services Limited,Repairs to Premises - Drainage Clearance,2040724,202301
Rother District Council,29/03/2023,T33NBHDSERV,Neighbourhood Services,20128,Public Conveniences,B1100,Repairs to Premises,635.00,B and G Environmental Services Limited,Repairs to Premises - Drainage Clearance,2040943,202301
Rother District Council,12/04/2023,T33NBHDSERV,Neighbourhood Services,20128,Public Conveniences,B1100,Repairs to Premises,275.00,B and G Environmental Services Limited,Repairs to Premises - Drainage Clearance,2040889,202301
Rother District Council,10/04/2023,T33NBHDSERV,Neighbourhood Services,20114,Bexhill Parks & Open Spaces,D1201,Equipment & Materials,100.00,B.F.J. Engraving Ltd,Equipment & Materials - Parks Purchase of Seats/ Benches/Plaques,2041023,202301
Rother District Council,10/04/2023,T33NBHDSERV,Neighbourhood Services,20114,Bexhill Parks & Open Spaces,D2513,Hired and Contracted services,6.00,B.F.J. Engraving Ltd,Hired and contracted services - Delivery and/or Packaging of Equipm,2041023,202301
Rother District Council,01/05/2023,T33NBHDSERV,Neighbourhood Services,20114,Bexhill Parks & Open Spaces,D1201,Equipment & Materials,130.00,B.F.J. Engraving Ltd,Equipment & Materials - Parks Purchase of Seats/ Benches/Plaques,2041355,202302
Rother District Council,01/05/2023,T33NBHDSERV,Neighbourhood Services,20114,Bexhill Parks & Open Spaces,D2513,Hired and Contracted services,15.00,B.F.J. Engraving Ltd,Hired and contracted services - Delivery and/or Packaging of Equipm,2041355,202302
Rother District Council,01/06/2023,T33NBHDSERV,Neighbourhood Services,20114,Bexhill Parks & Open Spaces,D1201,Equipment & Materials,55.00,B.F.J. Engraving Ltd,Equipment & Materials - Parks Purchase of Seats/ Benches/Plaques,2041765,202303
Rother District Council,01/06/2023,T33NBHDSERV,Neighbourhood Services,20114,Bexhill Parks & Open Spaces,D1201,Equipment & Materials,115.00,B.F.J. Engraving Ltd,Equipment & Materials - Parks Purchase of Seats/ Benches/Plaques,2041765,202303
Rother District Council,01/06/2023,T33NBHDSERV,Neighbourhood Services,20114,Bexhill Parks & Open Spaces,D2513,Hired and Contracted services,15.00,B.F.J. Engraving Ltd,Hired and contracted services - Delivery and/or Packaging of Equipm,2041765,202303
Rother District Council,27/03/2023,T3ZCAPITAL,Capital,70725,Capital - Blackfriars,N1004,Architects & Consultant Fees,"8,385.57",Baily Garner LLP,Architects & Consultant Fees Capital-Architect and Conslt Fees,2041001,202302
Rother District Council,26/04/2023,T3ZCAPITAL,Capital,70725,Capital - Blackfriars,N1004,Architects & Consultant Fees,"16,743.19",Baily Garner LLP,Architects & Consultant Fees Capital-Architect and Conslt Fees,2041438,202302
Rother District Council,22/05/2023,T3ZCAPITAL,Capital,70725,Capital - Blackfriars,N1004,Architects & Consultant Fees,"1,200.00",Baily Garner LLP,Architects & Consultant Fees Capital-Architect and Conslt Fees,2042126,202303
Rother District Council,10/01/2023,T32DIGCUSSER,Digital & Customer Services,20241,Stationery,D2420,General office supplies (Stationery purchased from ext suppliers),90.00,Banner Group Ltd,General office supplies - Stationery (Stationery Services to buy ONLY),2038154,202301
Rother District Council,05/04/2023,T32DIGCUSSER,Digital & Customer Services,20241,Stationery,D2420,General office supplies (Stationery purchased from ext suppliers),9.04,Banner Group Ltd,General office supplies - Stationery (Stationery Services to buy ONLY),2040769,202301
Rother District Council,11/04/2023,T32DIGCUSSER,Digital & Customer Services,20241,Stationery,D2420,General office supplies (Stationery purchased from ext suppliers),-11.25,Banner Group Ltd,General office supplies - Stationery (Stationery Services to buy ONLY),2040353,202301
Rother District Council,11/04/2023,T32DIGCUSSER,Digital & Customer Services,20241,Stationery,D2420,General office supplies (Stationery purchased from ext suppliers),71.56,Banner Group Ltd,General office supplies - Stationery (Stationery Services to buy ONLY),2040595,202301
Rother District Council,02/05/2023,T32DIGCUSSER,Digital & Customer Services,20241,Stationery,D2420,General office supplies (Stationery purchased from ext suppliers),136.98,Banner Group Ltd,General office supplies - Stationery (Stationery Services to buy ONLY),2041194,202302
Rother District Council,22/05/2023,T32DIGCUSSER,Digital & Customer Services,20241,Stationery,D2420,General office supplies (Stationery purchased from ext suppliers),144.30,Banner Group Ltd,General office supplies - Stationery (Stationery Services to buy ONLY),2041874,202303
Rother District Council,22/05/2023,T32DIGCUSSER,Digital & Customer Services,20241,Stationery,D2420,General office supplies (Stationery purchased from ext suppliers),47.68,Banner Group Ltd,General office supplies - Stationery (Stationery Services to buy ONLY),2041875,202303
Rother District Council,01/06/2023,T32DIGCUSSER,Digital & Customer Services,20241,Stationery,D2420,General office supplies (Stationery purchased from ext suppliers),21.90,Banner Group Ltd,General office supplies - Stationery (Stationery Services to buy ONLY),2041924,202303
Rother District Council,05/06/2023,T32DIGCUSSER,Digital & Customer Services,20241,Stationery,D2420,General office supplies (Stationery purchased from ext suppliers),78.54,Banner Group Ltd,General office supplies - Stationery (Stationery Services to buy ONLY),2041993,202303
Rother District Council,07/06/2023,T32DIGCUSSER,Digital & Customer Services,20241,Stationery,D2420,General office supplies (Stationery purchased from ext suppliers),-2.74,Banner Group Ltd,General office supplies - Stationery (Stationery Services to buy ONLY),2042141,202303
Rother District Council,29/03/2023,T33NBHDSERV,Neighbourhood Services,20114,Bexhill Parks & Open Spaces,D2513,Hired and Contracted services,"3,527.00",Barcham Trees Plc,Hired and contracted services - Levelling Up Parks Fund- tree/plants supply and planting c/c 20114,2040746,202301
Rother District Council,26/06/2023,T33HREGEN,Regeneration,20118,Tourism,D2923,Grants made,"9,000.00",Battle Chamber of Commerce Marketing,Grants made - SLA Contribution,2042291,202303
Rother District Council,22/05/2023,T31DEMSERV,Democratic Services,20163,District Council Elections,D2513,Hired and Contracted services,480.50,Battle Methodist Church,Hire of Premises (RDC) - Hire of Premises (RDC),2041558,202302
Rother District Council,18/04/2023,T33NBHDSERV,Neighbourhood Services,20102,Rother Museum Services,D2923,Grants made,600.00,Battle Museum Of Local History,Grants made - Rother Museum Services  - Annual Support Grant,2040788,202301
Rother District Council,05/06/2023,T341PRECEPTS,Precepts,42203,Parish Precepts,F1201,Parish precepts,"199,888.50",Battle Town Council,Parish precepts,2042044,202303
Rother District Council,18/05/2023,T31DEMSERV,Democratic Services,20163,District Council Elections,D2513,Hired and Contracted services,280.00,Beatrice Drewe Trust,Hire of Premises (RDC) - Hire of Premises (RDC),2041649,202302
Rother District Council,01/04/2023,T341PRECEPTS,Precepts,42203,Parish Precepts,F1201,Parish precepts,"12,500.00",Beckley Parish Council,Parish precepts,2042043,202303
Rother District Council,09/06/2023,T3ZCAPITAL,Capital,70714,Capital - Community Grants,N1011,Capital Grants,419.14,Beckley Parish Council,Capital Grants - Community Grants Scheme,2042306,202303
Rother District Council,27/04/2023,T31DEMSERV,Democratic Services,20163,District Council Elections,D2513,Hired and Contracted services,296.00,Beckley Village Hall,Hire of Premises (RDC) - Hire of Premises (RDC),2041664,202302
Rother District Council,31/05/2023,T31DEMSERV,Democratic Services,20156,Representing Local Interest,D2734,Members Training and Seminars,756.00,Beckwith Consulting Ltd,Members Training and Seminars,2041811,202303
Rother District Council,03/04/2023,T33HOUSING,Housing,20261,"TA Purchases (prev - 41 Jameson Mews, Bexhill on Sea)",D2513,Hired and Contracted services,205.00,Ben Smith Appliances,Hired and contracted services - Service fee paid,2040946,202301
Rother District Council,24/05/2023,T33HOUSING,Housing,20304,Housing First,D2513,Hired and Contracted services,245.00,Ben Smith Appliances,Hired and contracted services - Service fee paid,2041892,202303
Rother District Council,25/04/2023,T3ZCAPITAL,Capital,70751,Capital - Temporary Accommodation,N1005,Other fees,505.00,Ben Smith Appliances,Other Fees - Capital exp Std VAT,2041029,202301
Rother District Council,12/05/2023,T3ZCAPITAL,Capital,70751,Capital - Temporary Accommodation,N1005,Other fees,160.00,Ben Smith Appliances,Other Fees - Capital exp Std VAT,2041677,202302
Rother District Council,15/02/2023,T31DEMSERV,Democratic Services,20163,District Council Elections,D2513,Hired and Contracted services,160.00,Beulah Baptist Church,Hire of Premises (RDC) - Hire of Premises (RDC),2041474,202302
Rother District Council,15/02/2023,T31DEMSERV,Democratic Services,20164,Parish Council Elections,D2513,Hired and Contracted services,160.00,Beulah Baptist Church,Hire of Premises (RDC) - Hire of Premises (RDC),2041474,202302
Rother District Council,17/04/2023,T3ZCAPITAL,Capital,70754,Capital - King Offa Residential Development Scheme,N1005,Other fees,"7,000.00",Bevan Brittan LLP,Other Fees - Capital exp Std VAT,2040899,202301
Rother District Council,04/04/2023,T33HOUSING,Housing,20309,Homelessness Prevention Grant,D2513,Hired and Contracted services,"7,500.00",Bexhill & Rother Homelessness Unity Group (HUG) CIO,Hired and contracted services - Service fee paid,2040627,202301
Rother District Council,31/03/2023,T33NBHDSERV,Neighbourhood Services,20114,Bexhill Parks & Open Spaces,B1100,Repairs to Premises,342.00,Bexhill Electrical Ltd,Repairs to Premises - Repairs - Electrical Works,2040604,202301
Rother District Council,14/04/2023,T33NBHDSERV,Neighbourhood Services,20114,Bexhill Parks & Open Spaces,D1201,Equipment & Materials,514.08,Bexhill Electrical Ltd,Equipment & Materials - Light Bulbs,2040726,202301
Rother District Council,14/04/2023,T33NBHDSERV,Neighbourhood Services,20114,Bexhill Parks & Open Spaces,B1100,Repairs to Premises,312.00,Bexhill Electrical Ltd,Repairs to Premises - Parks - Electrical Works,2040723,202301
Rother District Council,13/06/2023,T33NBHDSERV,Neighbourhood Services,20114,Bexhill Parks & Open Spaces,B1100,Repairs to Premises,75.00,Bexhill Electrical Ltd,Repairs to Premises - Parks - Electrical Works,2042320,202303
Rother District Council,29/06/2023,T3ZCAPITAL,Capital,70714,Capital - Community Grants,N1011,Capital Grants,364.00,Bexhill Environmental Group,Capital Grants - Community Grants Scheme,2042491,202303
Rother District Council,05/04/2023,T33NBHDSERV,Neighbourhood Services,20123,Cemeteries,D2513,Hired and Contracted services,655.00,Bexhill Funeral Service / Dignity,Hired and contracted services - Parks-Public Health Burials,2040610,202301
Rother District Council,15/05/2023,T33NBHDSERV,Neighbourhood Services,20114,Bexhill Parks & Open Spaces,D2923,Grants made,750.00,Bexhill In Bloom,Grants made - Parks-Bexhill in Bloom,2041529,202302
Rother District Council,01/05/2023,T3ZCAPITAL,Capital,70714,Capital - Community Grants,N1011,Capital Grants,222.87,Bexhill In Bloom,Capital Grants - Community Grants Scheme,2041555,202302
Rother District Council,14/03/2023,T33NBHDSERV,Neighbourhood Services,20102,Rother Museum Services,E2302,Third party payment private contractors,"1,262.62",Bexhill Museum Ltd,Third party payment private contractors - Payments to Contractor,2040477,202301
Rother District Council,06/04/2023,T33NBHDSERV,Neighbourhood Services,20102,Rother Museum Services,D2923,Grants made,"8,500.00",Bexhill Museum Ltd,Grants made - Rother Museum Services  - Annual Support Grant,2040590,202301
Rother District Council,05/06/2023,T341PRECEPTS,Precepts,42203,Parish Precepts,F1201,Parish precepts,"325,857.50",Bexhill Town Council,Parish precepts,2042045,202303
Rother District Council,31/03/2023,T33NBHDSERV,Neighbourhood Services,20133,Refuse Collection,E2302,Third party payment private contractors,349.91,Biffa Waste Services Ltd,Third party payment private contractors - Waste Collection Contract Variable cost to RDC,2040662,202301
Rother District Council,31/03/2023,T33NBHDSERV,Neighbourhood Services,20133,Refuse Collection,E2302,Third party payment private contractors,174.80,Biffa Waste Services Ltd,Third party payment private contractors - Waste Collection Contract Variable cost to RDC,2040685,202301
Rother District Council,31/03/2023,T33NBHDSERV,Neighbourhood Services,20133,Refuse Collection,E2302,Third party payment private contractors,87.40,Biffa Waste Services Ltd,Third party payment private contractors - Waste Collection Contract Variable cost to RDC,2040686,202301
Rother District Council,31/03/2023,T33NBHDSERV,Neighbourhood Services,20133,Refuse Collection,E2302,Third party payment private contractors,174.35,Biffa Waste Services Ltd,Third party payment private contractors - Waste Collection Contract Variable cost to RDC,2040687,202301
Rother District Council,31/03/2023,T33NBHDSERV,Neighbourhood Services,20133,Refuse Collection,E2302,Third party payment private contractors,47.55,Biffa Waste Services Ltd,Third party payment private contractors - Waste Collection Contract Variable cost to RDC,2040688,202301
Rother District Council,30/04/2023,T33NBHDSERV,Neighbourhood Services,20133,Refuse Collection,E2302,Third party payment private contractors,131.10,Biffa Waste Services Ltd,Third party payment private contractors - Commercial Waste Collection Contract,2041319,202302
Rother District Council,30/04/2023,T33NBHDSERV,Neighbourhood Services,20133,Refuse Collection,E2302,Third party payment private contractors,87.40,Biffa Waste Services Ltd,Third party payment private contractors - Commercial Waste Collection Contract,2041320,202302
Rother District Council,30/04/2023,T33NBHDSERV,Neighbourhood Services,20133,Refuse Collection,E2302,Third party payment private contractors,110.95,Biffa Waste Services Ltd,Third party payment private contractors - Commercial Waste Collection Contract,2041321,202302
Rother District Council,30/04/2023,T33NBHDSERV,Neighbourhood Services,20133,Refuse Collection,E2302,Third party payment private contractors,31.70,Biffa Waste Services Ltd,Third party payment private contractors - Commercial Waste Collection Contract,2041322,202302
Rother District Council,30/04/2023,T33NBHDSERV,Neighbourhood Services,20133,Refuse Collection,E2302,Third party payment private contractors,349.91,Biffa Waste Services Ltd,Third party payment private contractors - Commercial Waste Collection Contract,2041323,202302
Rother District Council,31/05/2023,T33NBHDSERV,Neighbourhood Services,20133,Refuse Collection,E2302,Third party payment private contractors,218.50,Biffa Waste Services Ltd,Third party payment private contractors - Commercial Waste Collection Contract,2042102,202303
Rother District Council,31/05/2023,T33NBHDSERV,Neighbourhood Services,20133,Refuse Collection,E2302,Third party payment private contractors,109.25,Biffa Waste Services Ltd,Third party payment private contractors - Commercial Waste Collection Contract,2042210,202303
Rother District Council,31/05/2023,T33NBHDSERV,Neighbourhood Services,20133,Refuse Collection,E2302,Third party payment private contractors,126.80,Biffa Waste Services Ltd,Third party payment private contractors - Commercial Waste Collection Contract,2042211,202303
Rother District Council,31/05/2023,T33NBHDSERV,Neighbourhood Services,20133,Refuse Collection,E2302,Third party payment private contractors,31.70,Biffa Waste Services Ltd,Third party payment private contractors - Commercial Waste Collection Contract,2042212,202303
Rother District Council,31/05/2023,T33NBHDSERV,Neighbourhood Services,20133,Refuse Collection,E2302,Third party payment private contractors,349.91,Biffa Waste Services Ltd,Third party payment private contractors - Commercial Waste Collection Contract,2042338,202303
Rother District Council,02/03/2023,T31HUMANRES,Human Resources,20173,Administrative Offices - Town Hall,B1100,Repairs to Premises,"4,370.00",Black Sheep Engineering Ltd,Repairs to Premises - Intruder Alarm System Monitor/Maint,2040409,202301
Rother District Council,23/05/2023,T33HREGEN,Regeneration,20153,"Elva Business Centre, Bexhill",B1100,Repairs to Premises,125.00,Black Sheep Engineering Ltd,Repairs to Premises - Fire Alarm System Maintenance,2041877,202303
Rother District Council,31/03/2023,T33HOUSING,Housing,20200,Housing Needs - HB (Housing Benefit),D2514,Accommodation Costs,295.00,BNM Parkstone LLP T/A Fourways Residential,Accommodation Costs,2040285,202301
Rother District Council,17/04/2023,T33HOUSING,Housing,20200,Housing Needs - HB (Housing Benefit),D2514,Accommodation Costs,59.00,BNM Parkstone LLP T/A Fourways Residential,Accommodation Costs,2040891,202301
Rother District Council,23/04/2023,T33HOUSING,Housing,20200,Housing Needs - HB (Housing Benefit),D2514,Accommodation Costs,413.00,BNM Parkstone LLP T/A Fourways Residential,Accommodation Costs,2041025,202301
Rother District Council,30/05/2023,T341PRECEPTS,Precepts,42203,Parish Precepts,F1201,Parish precepts,"5,710.00",Bodiam Parish Council,Parish precepts,2042046,202303
Rother District Council,18/05/2023,T33HOUSING,Housing,20261,"TA Purchases (prev - 41 Jameson Mews, Bexhill on Sea)",D2513,Hired and Contracted services,50.00,Booker and Best Ltd,Hired and contracted services - Service fee paid,2041965,202303
Rother District Council,16/05/2023,T33HREGEN,Regeneration,20308,Amherst Road as Investment Property,B1100,Repairs to Premises,170.00,Booker and Best Ltd,Repairs to Premises - Servicing of Boiler,2041540,202302
Rother District Council,31/03/2023,T3ZCAPITAL,Capital,70751,Capital - Temporary Accommodation,N1003,Construction/Conversion,"18,174.07",Booker and Best Ltd,Construction/Conversion Capital-Contract Payments - General,2040535,202301
Rother District Council,14/04/2023,T3ZCAPITAL,Capital,70751,Capital - Temporary Accommodation,N1003,Construction/Conversion,"18,174.07",Booker and Best Ltd,Construction/Conversion Capital-Contract Payments - General,2040672,202301
Rother District Council,05/05/2023,T3ZCAPITAL,Capital,70751,Capital - Temporary Accommodation,N1003,Construction/Conversion,"60,647.93",Booker and Best Ltd,Construction/Conversion Capital-Contract Payments - General,2041301,202302
Rother District Council,16/05/2023,T3ZCAPITAL,Capital,70751,Capital - Temporary Accommodation,N1003,Construction/Conversion,"4,689.11",Booker and Best Ltd,Construction/Conversion Capital-Contract Payments - General,2041541,202303
Rother District Council,24/05/2023,T3ZCAPITAL,Capital,70751,Capital - Temporary Accommodation,N1003,Construction/Conversion,634.75,Booker and Best Ltd,Construction/Conversion Capital-Contract Payments - General,2041885,202303
Rother District Council,05/06/2023,T3ZCAPITAL,Capital,70751,Capital - Temporary Accommodation,N1005,Other fees,202.00,Booker and Best Ltd,Other Fees - Capital exp Std VAT,2041954,202303
Rother District Council,30/04/2023,T33NBHDSERV,Neighbourhood Services,20114,Bexhill Parks & Open Spaces,D1201,Equipment & Materials,74.00,Bourne Amenity Ltd,Equipment & Materials - Parks - Horticultural Sundries,2041215,202302
Rother District Council,30/04/2023,T33NBHDSERV,Neighbourhood Services,20114,Bexhill Parks & Open Spaces,D1201,Equipment & Materials,456.00,Bourne Amenity Ltd,Equipment & Materials - Parks - Horticultural Sundries,2041216,202302
Rother District Council,30/04/2023,T33NBHDSERV,Neighbourhood Services,20114,Bexhill Parks & Open Spaces,D1201,Equipment & Materials,71.50,Bourne Amenity Ltd,Equipment & Materials - Parks - Horticultural Sundries,2041217,202302
Rother District Council,30/04/2023,T33NBHDSERV,Neighbourhood Services,20114,Bexhill Parks & Open Spaces,D1201,Equipment & Materials,74.00,Bourne Amenity Ltd,Equipment & Materials - Parks - Horticultural Sundries,2041218,202302
Rother District Council,30/04/2023,T33NBHDSERV,Neighbourhood Services,20114,Bexhill Parks & Open Spaces,D1201,Equipment & Materials,74.00,Bourne Amenity Ltd,Equipment & Materials - Parks - Horticultural Sundries,2041219,202302
Rother District Council,01/06/2023,T3ZCAPITAL,Capital,70714,Capital - Community Grants,N1011,Capital Grants,223.00,Brede Parish Council,Capital Grants - Community Grants Scheme,2041810,202303
Rother District Council,28/02/2023,T31DEMSERV,Democratic Services,20163,District Council Elections,D2513,Hired and Contracted services,192.00,Brede Village Hall,Hire of Premises (RDC) - Hire of Premises (RDC),2041615,202302
Rother District Council,30/05/2023,T341PRECEPTS,Precepts,42203,Parish Precepts,F1201,Parish precepts,"19,972.50",Brede Village Hall,Parish precepts,2042047,202303
Rother District Council,31/03/2023,T3ZCAPITAL,Capital,70725,Capital - Blackfriars,N1003,Construction/Conversion,"27,017.05",Breheny Civil Engineering Ltd,Construction/Conversion Capital-Contract Payments - General,2040692,202301
Rother District Council,06/04/2023,T3ZCAPITAL,Capital,70725,Capital - Blackfriars,N1003,Construction/Conversion,"221,448.80",Breheny Civil Engineering Ltd,Construction/Conversion Capital-Contract Payments - General,2040730,202301
Rother District Council,24/05/2023,T3ZCAPITAL,Capital,70725,Capital - Blackfriars,N1003,Construction/Conversion,"398,264.97",Breheny Civil Engineering Ltd,Construction/Conversion Capital-Contract Payments - General,2041581,202303
Rother District Council,30/05/2023,T341PRECEPTS,Precepts,42203,Parish Precepts,F1201,Parish precepts,"3,947.00",Brightling Parish Council,Parish precepts,2042048,202303
Rother District Council,19/05/2023,T31DEMSERV,Democratic Services,20163,District Council Elections,D2513,Hired and Contracted services,350.00,Brightling Village Hall Committee,Hire of Premises (RDC) - Hire of Premises (RDC),2041826,202303
Rother District Council,20/04/2023,T33HOUSING,Housing,20309,Homelessness Prevention Grant,D2513,Hired and Contracted services,"5,901.75",Brighton Housing Trust (BHT),Hired and contracted services - Service fee paid,2040903,202301
Rother District Council,21/04/2023,T33HOUSING,Housing,20261,"TA Purchases (prev - 41 Jameson Mews, Bexhill on Sea)",B2202,Gas,1.42,British Gas Business (600 Accounts only),Gas - Gas Charges,2040925,202301
Rother District Council,21/04/2023,T33HOUSING,Housing,20261,"TA Purchases (prev - 41 Jameson Mews, Bexhill on Sea)",B2202,Gas,235.84,British Gas Business (600 Accounts only),Gas - Gas Charges,2040926,202301
Rother District Council,21/04/2023,T33HOUSING,Housing,20261,"TA Purchases (prev - 41 Jameson Mews, Bexhill on Sea)",B2202,Gas,28.95,British Gas Business (600 Accounts only),Gas - Gas Charges,2040927,202301
Rother District Council,21/04/2023,T33HOUSING,Housing,20261,"TA Purchases (prev - 41 Jameson Mews, Bexhill on Sea)",B2422,Sewerage,165.88,British Gas Business (600 Accounts only),Gas - Gas Charges,2040924,202301
Rother District Council,21/04/2023,T33HOUSING,Housing,20261,"TA Purchases (prev - 41 Jameson Mews, Bexhill on Sea)",B2422,Sewerage,45.00,British Gas Business (600 Accounts only),Gas - Gas Charges,2040924,202301
Rother District Council,02/05/2023,T33HOUSING,Housing,20261,"TA Purchases (prev - 41 Jameson Mews, Bexhill on Sea)",B2202,Gas,218.28,British Gas Business (600 Accounts only),Gas - Gas Charges,2041445,202302
Rother District Council,18/05/2023,T33HOUSING,Housing,20261,"TA Purchases (prev - 41 Jameson Mews, Bexhill on Sea)",B2202,Gas,16.28,British Gas Business (600 Accounts only),Gas - Gas Charges,2041730,202303
Rother District Council,11/04/2023,T33HREGEN,Regeneration,20146,West Trading Estate,B2202,Gas,67.87,British Gas Lite,Electricity - Electricity Charges,2040729,202301
Rother District Council,11/05/2023,T33HREGEN,Regeneration,20146,West Trading Estate,B2202,Gas,68.21,British Gas Lite,Electricity - Electricity Charges,2041441,202302
Rother District Council,17/03/2023,T33HOUSING,Housing,20261,"TA Purchases (prev - 41 Jameson Mews, Bexhill on Sea)",B2202,Gas,399.74,British Gas Trading Ltd (Residential),Gas - Gas Charges,2040753,202301
Rother District Council,17/04/2023,T33HOUSING,Housing,20261,"TA Purchases (prev - 41 Jameson Mews, Bexhill on Sea)",B2202,Gas,120.87,British Gas Trading Ltd (Residential),Gas - Gas Charges,2040959,202301
Rother District Council,17/04/2023,T33HOUSING,Housing,20261,"TA Purchases (prev - 41 Jameson Mews, Bexhill on Sea)",B2202,Gas,13.00,British Gas Trading Ltd (Residential),Gas - Gas Charges,2040959,202301
Rother District Council,17/05/2023,T33HOUSING,Housing,20304,Housing First,B2201,Electricity,33.70,British Gas Trading Ltd (Residential),Electricity - Electricity Charges,2041724,202303
Rother District Council,17/05/2023,T33HOUSING,Housing,20261,"TA Purchases (prev - 41 Jameson Mews, Bexhill on Sea)",B2202,Gas,100.42,British Gas Trading Ltd (Residential),Gas - Gas Charges,2041723,202303
Rother District Council,17/05/2023,T33HOUSING,Housing,20304,Housing First,B2202,Gas,16.31,British Gas Trading Ltd (Residential),Gas - Gas Charges,2041725,202303
Rother District Council,27/02/2023,T32DIGCUSSER,Digital & Customer Services,20242,Communications-Phones,D2621,Telephones,40.00,BT British Telecommunications plc,Telephones - BT-Rental-General,2039383,202301
Rother District Council,27/02/2023,T32DIGCUSSER,Digital & Customer Services,20242,Communications-Phones,D2621,Telephones,335.17,BT British Telecommunications plc,Telephones - BT-Rental-General,2039383,202301
Rother District Council,12/03/2023,T32DIGCUSSER,Digital & Customer Services,20242,Communications-Phones,D2621,Telephones,452.51,BT British Telecommunications plc,Telephones - BT-Rental-General,2040109,202301
Rother District Council,12/03/2023,T32DIGCUSSER,Digital & Customer Services,20242,Communications-Phones,D2621,Telephones,40.00,BT British Telecommunications plc,Telephones - BT-Rental-General,2040109,202301
Rother District Council,27/03/2023,T32DIGCUSSER,Digital & Customer Services,20242,Communications-Phones,D2621,Telephones,333.67,BT British Telecommunications plc,Telephones - BT-Rental-General,2040712,202301
Rother District Council,27/04/2023,T32DIGCUSSER,Digital & Customer Services,20242,Communications-Phones,D2621,Telephones,80.00,BT British Telecommunications plc,Telephones - BT-Rental-General,2041356,202303
Rother District Council,27/04/2023,T32DIGCUSSER,Digital & Customer Services,20242,Communications-Phones,D2621,Telephones,381.61,BT British Telecommunications plc,Telephones - BT-Rental-General,2041356,202303
Rother District Council,27/05/2023,T32DIGCUSSER,Digital & Customer Services,20242,Communications-Phones,D2621,Telephones,378.31,BT British Telecommunications plc,Telephones - BT-Rental-General,2041951,202303
Rother District Council,06/03/2023,T33PLANDEV,Planning Development Management,20246,Planning Applications,D2509,Consultants and Other Services,540.00,Buckley Heritage Planning,Consultants and other services - Consultants Fees,2040707,202301
Rother District Council,25/04/2023,T33NBHDSERV,Neighbourhood Services,20114,Bexhill Parks & Open Spaces,B1100,Repairs to Premises,"2,575.00",Building For Wildlife,Repairs to Premises - Parks- Fencing Installation,2041380,202302
Rother District Council,29/04/2023,T33HOUSING,Housing,20261,"TA Purchases (prev - 41 Jameson Mews, Bexhill on Sea)",B2202,Gas,823.97,Bulb Energy Ltd,Gas - Gas Charges,2041140,202302
Rother District Council,12/06/2023,T33NBHDSERV,Neighbourhood Services,20137,Car Parks,B1100,Repairs to Premises,"1,200.00",Burwash Parish Council,Repairs to Premises - White Lining in Car Parks,2042321,202303
Rother District Council,30/05/2023,T341PRECEPTS,Precepts,42203,Parish Precepts,F1201,Parish precepts,"52,896.00",Burwash Parish Council,Parish precepts,2042056,202303
Rother District Council,07/02/2023,T31DEMSERV,Democratic Services,20163,District Council Elections,D2513,Hired and Contracted services,302.00,Burwash Village Hall,Hire of Premises (RDC) - Hire of Premises (RDC),2039536,202303
Rother District Council,18/05/2023,T31DEMSERV,Democratic Services,20163,District Council Elections,D2513,Hired and Contracted services,192.00,Burwash Weald and Common Memorial Fund Playing Field,Hire of Premises (RDC) - Hire of Premises (RDC),2041691,202302
Rother District Council,31/03/2023,T31HUMANRES,Human Resources,20173,Administrative Offices - Town Hall,B1100,Repairs to Premises,9.11,C Brewer and Sons Ltd,Repairs to Premises - Purchase of Materials - Build Maint,2040545,202301
Rother District Council,31/03/2023,T33NBHDSERV,Neighbourhood Services,20108,Bexhill Promenade & Foreshore,B1100,Repairs to Premises,31.26,C Brewer and Sons Ltd,Repairs to Premises - Purchase of Materials - Build Maint,2040544,202301
Rother District Council,31/03/2023,T33NBHDSERV,Neighbourhood Services,20108,Bexhill Promenade & Foreshore,B1100,Repairs to Premises,13.06,C Brewer and Sons Ltd,Repairs to Premises - Purchase of Materials - Build Maint,2040546,202301
Rother District Council,31/03/2023,T33NBHDSERV,Neighbourhood Services,20138,Residual Highway Services,B1100,Repairs to Premises,48.98,C Brewer and Sons Ltd,Repairs to Premises - Purchase of Materials - Build Maint,2040547,202301
Rother District Council,30/04/2023,T33NBHDSERV,Neighbourhood Services,20114,Bexhill Parks & Open Spaces,B1100,Repairs to Premises,11.65,C Brewer and Sons Ltd,Repairs to Premises,2041347,202302
Rother District Council,09/03/2023,T32ENVSERV,"Environmental Services, Licensing & Community Safety",32134,EH Pollution R + W Partnership,D2513,Hired and Contracted services,"1,640.90",C P J Field & Co Ltd,Hired and contracted services - Parks-Public Health Burials,2040930,202301
Rother District Council,04/05/2023,T32ENVSERV,"Environmental Services, Licensing & Community Safety",32134,EH Pollution R + W Partnership,D2513,Hired and Contracted services,"1,368.00",C P J Field & Co Ltd,Hired and contracted services - Parks-Public Health Burials,2041336,202302
Rother District Council,12/06/2023,T32ENVSERV,"Environmental Services, Licensing & Community Safety",32134,EH Pollution R + W Partnership,D2513,Hired and Contracted services,"1,624.00",C P J Field & Co Ltd,Hired and contracted services - Parks-Public Health Burials,2042268,202303
Rother District Council,02/05/2023,T31DEMSERV,Democratic Services,20163,District Council Elections,D2513,Hired and Contracted services,320.38,Camber Memorial Hall,Hire of Premises (RDC) - Hire of Premises (RDC),2041669,202302
Rother District Council,30/05/2023,T341PRECEPTS,Precepts,42203,Parish Precepts,F1201,Parish precepts,"31,749.00",Camber Parish Council,Parish precepts,2042057,202303
Rother District Council,05/04/2023,T32DIGCUSSER,Digital & Customer Services,20240,Printing Services,D2638,Photocopier Contracts,"1,481.46",Canon (UK) Ltd,Photocopier Contracts,2040770,202301
Rother District Council,03/05/2023,T32DIGCUSSER,Digital & Customer Services,20240,Printing Services,D2638,Photocopier Contracts,"2,500.15",Canon (UK) Ltd,Photocopier Contracts,2041226,202302
Rother District Council,04/05/2023,T32DIGCUSSER,Digital & Customer Services,20240,Printing Services,D2638,Photocopier Contracts,"4,011.61",Canon (UK) Ltd,Photocopier Contracts,2041227,202302
Rother District Council,04/05/2023,T32DIGCUSSER,Digital & Customer Services,20240,Printing Services,D2638,Photocopier Contracts,260.40,Canon (UK) Ltd,Photocopier Contracts,2041228,202302
Rother District Council,22/05/2023,T32DIGCUSSER,Digital & Customer Services,20240,Printing Services,D2417,Photocopy Paper by external suppliers,298.05,Canon (UK) Ltd,Photocopy Paper by external supplier - Wide Format Consumables,2041873,202303
Rother District Council,24/05/2023,T32DIGCUSSER,Digital & Customer Services,20240,Printing Services,D2417,Photocopy Paper by external suppliers,296.89,Canon (UK) Ltd,Photocopy Paper by external supplier - Wide Format Consumables,2041894,202303
Rother District Council,31/05/2023,T32DIGCUSSER,Digital & Customer Services,20240,Printing Services,D2417,Photocopy Paper by external suppliers,812.00,Canon (UK) Ltd,Photocopy Paper by external suppliers - White,2041919,202303
Rother District Council,07/06/2023,T32DIGCUSSER,Digital & Customer Services,20240,Printing Services,D2638,Photocopier Contracts,945.68,Canon (UK) Ltd,Photocopier Contracts,2042213,202303
Rother District Council,07/06/2023,T32DIGCUSSER,Digital & Customer Services,20240,Printing Services,D2638,Photocopier Contracts,170.01,Canon (UK) Ltd,Photocopier Contracts,2042219,202303
Rother District Council,05/05/2023,T33NBHDSERV,Neighbourhood Services,20125,Coast Protection,D2922,Subscriptions,400.00,Canterbury City Council,Subscriptions - Subscription to Organisations,2041460,202302
Rother District Council,25/04/2023,T32REVBEN,Revenues & Benefits,20216,Cost Of Collection,D2639,Departmental Systems,"1,750.00",Capita Business Services Ltd,Departmental Systems - Software for Academy System,2040989,202302
Rother District Council,23/05/2023,T32REVBEN,Revenues & Benefits,20216,Cost Of Collection,D2639,Departmental Systems,"9,926.69",Capita Business Services Ltd,Departmental Systems - Software for Academy System,2042187,202303
Rother District Council,25/04/2023,T33PLANDEV,Planning Development Management,20246,Planning Applications,A1110,Agency Staff,"8,091.56",Capita Business Services Ltd,Agency Staff,2041173,202302
Rother District Council,23/05/2023,T33PLANDEV,Planning Development Management,20246,Planning Applications,A1110,Agency Staff,"6,659.14",Capita Property & Infrastructure Ltd,Agency Staff,2041887,202303
Rother District Council,30/03/2023,T33PLANDEV,Planning Development Management,20246,Planning Applications,A1110,Agency Staff,"1,073.00",Carrington West Ltd,Agency Staff,2040695,202301
Rother District Council,30/03/2023,T33PLANDEV,Planning Development Management,20246,Planning Applications,A1110,Agency Staff,"1,073.00",Carrington West Ltd,Agency Staff,2040696,202301
Rother District Council,30/03/2023,T33PLANDEV,Planning Development Management,20246,Planning Applications,A1110,Agency Staff,720.00,Carrington West Ltd,Agency Staff,2040697,202301
Rother District Council,06/04/2023,T33PLANDEV,Planning Development Management,20246,Planning Applications,A1110,Agency Staff,681.50,Carrington West Ltd,Agency Staff,2040773,202301
Rother District Council,06/04/2023,T33PLANDEV,Planning Development Management,20246,Planning Applications,A1110,Agency Staff,600.00,Carrington West Ltd,Agency Staff,2040774,202301
Rother District Council,13/04/2023,T33PLANDEV,Planning Development Management,20246,Planning Applications,A1110,Agency Staff,594.50,Carrington West Ltd,Agency Staff,2040609,202301
Rother District Council,20/04/2023,T33PLANDEV,Planning Development Management,20246,Planning Applications,A1110,Agency Staff,600.00,Carrington West Ltd,Agency Staff,2040894,202301
Rother District Council,20/04/2023,T33PLANDEV,Planning Development Management,20246,Planning Applications,A1110,Agency Staff,240.00,Carrington West Ltd,Agency Staff,2040895,202301
Rother District Council,20/04/2023,T33PLANDEV,Planning Development Management,20246,Planning Applications,A1110,Agency Staff,870.00,Carrington West Ltd,Agency Staff,2040896,202301
Rother District Council,27/04/2023,T33PLANDEV,Planning Development Management,20246,Planning Applications,A1110,Agency Staff,960.00,Carrington West Ltd,Agency Staff,2041048,202302
Rother District Council,04/05/2023,T33PLANDEV,Planning Development Management,20246,Planning Applications,A1110,Agency Staff,"1,073.00",Carrington West Ltd,Agency Staff,2041242,202302
Rother District Council,11/05/2023,T33PLANDEV,Planning Development Management,20246,Planning Applications,A1110,Agency Staff,600.00,Carrington West Ltd,Agency Staff,2041425,202302
Rother District Council,11/05/2023,T33PLANDEV,Planning Development Management,20246,Planning Applications,A1110,Agency Staff,600.00,Carrington West Ltd,Agency Staff,2041426,202302
Rother District Council,11/05/2023,T33PLANDEV,Planning Development Management,20246,Planning Applications,A1110,Agency Staff,841.00,Carrington West Ltd,Agency Staff,2041427,202302
Rother District Council,18/05/2023,T33PLANDEV,Planning Development Management,20246,Planning Applications,A1110,Agency Staff,600.00,Carrington West Ltd,Agency Staff,2041684,202302
Rother District Council,18/05/2023,T33PLANDEV,Planning Development Management,20246,Planning Applications,A1110,Agency Staff,870.00,Carrington West Ltd,Agency Staff,2041685,202302
Rother District Council,25/05/2023,T33PLANDEV,Planning Development Management,20246,Planning Applications,A1110,Agency Staff,870.00,Carrington West Ltd,Agency Staff,2041836,202303
Rother District Council,27/05/2023,T33PLANDEV,Planning Development Management,20246,Planning Applications,A1110,Agency Staff,"1,073.00",Carrington West Ltd,Agency Staff,2041241,202302
Rother District Council,01/06/2023,T33PLANDEV,Planning Development Management,20246,Planning Applications,A1110,Agency Staff,720.00,Carrington West Ltd,Agency Staff,2041837,202303
Rother District Council,01/06/2023,T33PLANDEV,Planning Development Management,20246,Planning Applications,A1110,Agency Staff,"1,073.00",Carrington West Ltd,Agency Staff,2041838,202303
Rother District Council,01/06/2023,T33PLANDEV,Planning Development Management,20246,Planning Applications,A1110,Agency Staff,600.00,Carrington West Ltd,Agency Staff,2041839,202303
Rother District Council,28/02/2023,T31HUMANRES,Human Resources,20159,Corporate Policy Making,D2312,Refreshments,"1,158.50",Cascade Water Systems Ltd,Refreshments - Watercooler Service,2040405,202301
Rother District Council,31/03/2023,T31HUMANRES,Human Resources,20173,Administrative Offices - Town Hall,D2312,Refreshments,65.00,Cascade Water Systems Ltd,Refreshments - Water Cooler,2040739,202301
Rother District Council,31/01/2023,T33HREGEN,Regeneration,20338,7-12 Beeching Road Studios ( Regeneration Project ),D2312,Refreshments,67.45,Cascade Water Systems Ltd,Refreshments - Watercooler Service,2041018,202302
Rother District Council,31/03/2023,T33HOUSING,Housing,20200,Housing Needs - HB (Housing Benefit),D2514,Accommodation Costs,"2,015.00",Castle Accommodation Ltd,Accommodation Costs,2040625,202301
Rother District Council,31/03/2023,T33HOUSING,Housing,20337,Homes for Ukraine Accommodation,D2514,Accommodation Costs,"2,325.00",Castle Accommodation Ltd,Accommodation Costs,2040625,202301
Rother District Council,31/03/2023,T33HOUSING,Housing,20200,Housing Needs - HB (Housing Benefit),D2514,Accommodation Costs,"2,015.00",Castle Accommodation Ltd,Accommodation Costs,2040625,202301
Rother District Council,31/03/2023,T33HOUSING,Housing,20329,Rough Sleeping Initiative,D2514,Accommodation Costs,"1,550.00",Castle Accommodation Ltd,Accommodation Costs,2040625,202301
Rother District Council,31/03/2023,T33HOUSING,Housing,20200,Housing Needs - HB (Housing Benefit),D2514,Accommodation Costs,"1,550.00",Castle Accommodation Ltd,Accommodation Costs,2040625,202301
Rother District Council,31/03/2023,T33HOUSING,Housing,20200,Housing Needs - HB (Housing Benefit),D2514,Accommodation Costs,"1,550.00",Castle Accommodation Ltd,Accommodation Costs,2040625,202301
Rother District Council,31/03/2023,T33HOUSING,Housing,20200,Housing Needs - HB (Housing Benefit),D2514,Accommodation Costs,"1,550.00",Castle Accommodation Ltd,Accommodation Costs,2040625,202301
Rother District Council,31/03/2023,T33HOUSING,Housing,20200,Housing Needs - HB (Housing Benefit),D2514,Accommodation Costs,"1,105.00",Castle Accommodation Ltd,Accommodation Costs,2040625,202301
Rother District Council,31/03/2023,T33HOUSING,Housing,20200,Housing Needs - HB (Housing Benefit),D2514,Accommodation Costs,"1,360.00",Castle Accommodation Ltd,Accommodation Costs,2040625,202301
Rother District Council,31/03/2023,T33HOUSING,Housing,20200,Housing Needs - HB (Housing Benefit),D2514,Accommodation Costs,"1,275.00",Castle Accommodation Ltd,Accommodation Costs,2040625,202301
Rother District Council,31/03/2023,T33HOUSING,Housing,20200,Housing Needs - HB (Housing Benefit),D2514,Accommodation Costs,"1,105.00",Castle Accommodation Ltd,Accommodation Costs,2040625,202301
Rother District Council,31/03/2023,T33HOUSING,Housing,20200,Housing Needs - HB (Housing Benefit),D2514,Accommodation Costs,255.00,Castle Accommodation Ltd,Accommodation Costs,2040625,202301
Rother District Council,30/04/2023,T33HOUSING,Housing,20200,Housing Needs - HB (Housing Benefit),D2514,Accommodation Costs,"15,250.00",Castle Accommodation Ltd,Accommodation Costs,2041330,202302
Rother District Council,30/04/2023,T33HOUSING,Housing,20337,Homes for Ukraine Accommodation,D2514,Accommodation Costs,"2,250.00",Castle Accommodation Ltd,Accommodation Costs,2041330,202302
Rother District Council,30/04/2023,T33HOUSING,Housing,20329,Rough Sleeping Initiative,D2514,Accommodation Costs,"1,500.00",Castle Accommodation Ltd,Accommodation Costs,2041330,202302
Rother District Council,31/05/2023,T33HOUSING,Housing,20337,Homes for Ukraine Accommodation,D2514,Accommodation Costs,567.67,Castle Accommodation Ltd,Accommodation Costs,2041987,202303
Rother District Council,31/05/2023,T33HOUSING,Housing,20337,Homes for Ukraine Accommodation,D2514,Accommodation Costs,351.47,Castle Accommodation Ltd,Accommodation Costs,2041987,202303
Rother District Council,31/05/2023,T33HOUSING,Housing,20337,Homes for Ukraine Accommodation,D2514,Accommodation Costs,"1,405.86",Castle Accommodation Ltd,Accommodation Costs,2041987,202303
Rother District Council,31/05/2023,T33HOUSING,Housing,20200,Housing Needs - HB (Housing Benefit),D2514,Accommodation Costs,"4,082.35",Castle Accommodation Ltd,Accommodation Costs,2041987,202303
Rother District Council,31/05/2023,T33HOUSING,Housing,20200,Housing Needs - HB (Housing Benefit),D2514,Accommodation Costs,"2,527.53",Castle Accommodation Ltd,Accommodation Costs,2041987,202303
Rother District Council,31/05/2023,T33HOUSING,Housing,20200,Housing Needs - HB (Housing Benefit),D2514,Accommodation Costs,"10,110.08",Castle Accommodation Ltd,Accommodation Costs,2041987,202303
Rother District Council,23/03/2023,T31HUMANRES,Human Resources,20173,Administrative Offices - Town Hall,B2421,Water,48.55,Castle Water Ltd,Water - Water Charges,2040680,202301
Rother District Council,21/03/2023,T33NBHDSERV,Neighbourhood Services,20114,Bexhill Parks & Open Spaces,B2421,Water,"2,434.77",Castle Water Ltd,Water - Water Charges,2040675,202301
Rother District Council,21/03/2023,T33NBHDSERV,Neighbourhood Services,20128,Public Conveniences,B2421,Water,608.59,Castle Water Ltd,Water - Water Charges,2040675,202301
Rother District Council,21/03/2023,T33NBHDSERV,Neighbourhood Services,20114,Bexhill Parks & Open Spaces,B2421,Water,"1,032.52",Castle Water Ltd,Water - Water Charges,2040676,202301
Rother District Council,23/03/2023,T33NBHDSERV,Neighbourhood Services,20114,Bexhill Parks & Open Spaces,B2421,Water,40.27,Castle Water Ltd,Water - Water Charges,2040679,202301
Rother District Council,28/03/2023,T33NBHDSERV,Neighbourhood Services,20128,Public Conveniences,B2421,Water,634.72,Castle Water Ltd,Water - Water Charges,2040749,202301
Rother District Council,25/04/2023,T33NBHDSERV,Neighbourhood Services,20128,Public Conveniences,B2421,Water,214.26,Castle Water Ltd,Water - Water Charges,2041067,202302
Rother District Council,25/04/2023,T33NBHDSERV,Neighbourhood Services,20128,Public Conveniences,B2421,Water,529.77,Castle Water Ltd,Water - Water Charges,2041069,202302
Rother District Council,25/04/2023,T33NBHDSERV,Neighbourhood Services,20114,Bexhill Parks & Open Spaces,B2421,Water,58.87,Castle Water Ltd,Water - Water Charges,2041069,202302
Rother District Council,25/04/2023,T33NBHDSERV,Neighbourhood Services,20114,Bexhill Parks & Open Spaces,B2421,Water,77.82,Castle Water Ltd,Water - Water Charges,2041070,202302
Rother District Council,25/04/2023,T33NBHDSERV,Neighbourhood Services,20114,Bexhill Parks & Open Spaces,B2421,Water,254.81,Castle Water Ltd,Water - Water Charges,2041071,202302
Rother District Council,26/04/2023,T33NBHDSERV,Neighbourhood Services,20105,Allotments- Bexhill,B2421,Water,40.45,Castle Water Ltd,Water - Water Charges,2041288,202302
Rother District Council,24/05/2023,T33NBHDSERV,Neighbourhood Services,20128,Public Conveniences,B2421,Water,245.06,Castle Water Ltd,Water - Water Charges,2041948,202303
Rother District Council,30/05/2023,T341PRECEPTS,Precepts,42203,Parish Precepts,F1201,Parish precepts,"16,000.00",Catsfield Parish Council,Parish precepts,2042058,202303
Rother District Council,18/05/2023,T31DEMSERV,Democratic Services,20163,District Council Elections,D2513,Hired and Contracted services,150.00,Catsfield Village Hall,Hire of Premises (RDC) - Hire of Premises (RDC),2041640,202302
Rother District Council,19/04/2023,T32ENVSERV,"Environmental Services, Licensing & Community Safety",32133,EH Food Hyg / Idc / Water Purity R + W Partnership,D2513,Hired and Contracted services,416.00,CEFAS,Hired and contracted services - EnvH- Food Analysis,2040998,202301
Rother District Council,31/03/2023,T33NBHDSERV,Neighbourhood Services,20133,Refuse Collection,E2302,Third party payment private contractors,10.25,CFH Docmail Ltd,Third party payment private contractors - Payments to Contractor,2040401,202301
Rother District Council,31/03/2023,T33NBHDSERV,Neighbourhood Services,20133,Refuse Collection,E2302,Third party payment private contractors,48.20,CFH Docmail Ltd,Third party payment private contractors - Payments to Contractor,2040402,202301
Rother District Council,28/04/2023,T33NBHDSERV,Neighbourhood Services,20133,Refuse Collection,E2302,Third party payment private contractors,"12,900.00",CFH Docmail Ltd,Third party payment private contractors - Payments to Contractor,2041758,202303
Rother District Council,30/04/2023,T33NBHDSERV,Neighbourhood Services,20133,Refuse Collection,E2302,Third party payment private contractors,15.01,CFH Docmail Ltd,Third party payment private contractors - Payments to Contractor,2041759,202303
Rother District Council,30/04/2023,T33NBHDSERV,Neighbourhood Services,20133,Refuse Collection,E2302,Third party payment private contractors,55.12,CFH Docmail Ltd,Third party payment private contractors - Payments to Contractor,2041760,202303
Rother District Council,31/05/2023,T33NBHDSERV,Neighbourhood Services,20133,Refuse Collection,E2302,Third party payment private contractors,22.06,CFH Docmail Ltd,Third party payment private contractors - Payments to Contractor,2041763,202303
Rother District Council,31/05/2023,T33NBHDSERV,Neighbourhood Services,20133,Refuse Collection,E2302,Third party payment private contractors,117.92,CFH Docmail Ltd,Third party payment private contractors - Payments to Contractor,2041764,202303
Rother District Council,25/11/2022,T33NBHDSERV,Neighbourhood Services,20116,Rural Open Spaces & Amenities,B1100,Repairs to Premises,"6,894.85",Chaffin Works,Repairs to Premises - Parks - Tree Works,2037420,202301
Rother District Council,11/05/2023,T3ZCAPITAL,Capital,70714,Capital - Community Grants,N1011,Capital Grants,500.00,Chamber Enterprise Network CIC (CEN),Capital Grants - Community Grants Scheme,2041493,202302
Rother District Council,29/04/2023,T33NBHDSERV,Neighbourhood Services,20116,Rural Open Spaces & Amenities,D1201,Equipment & Materials,236.54,Channon�s Country Store,Equipment & Materials - Parks- Fencing Products,2041145,202302
Rother District Council,03/04/2023,T33HOUSING,Housing,20200,Housing Needs - HB (Housing Benefit),D2508,Removals and Storage,140.00,Chapmans of Hastings,Removals and Storage,2040612,202301
Rother District Council,03/04/2023,T33HOUSING,Housing,20200,Housing Needs - HB (Housing Benefit),D2513,Hired and Contracted services,35.71,Chapmans of Hastings,Hired and Contracted services,2040322,202301
Rother District Council,03/04/2023,T33HOUSING,Housing,20200,Housing Needs - HB (Housing Benefit),D2513,Hired and Contracted services,160.00,Chapmans of Hastings,Hired and Contracted services,2040324,202301
Rother District Council,06/04/2023,T33HOUSING,Housing,20200,Housing Needs - HB (Housing Benefit),D2513,Hired and Contracted services,425.00,Chapmans of Hastings,Hired and Contracted services,2040323,202301
Rother District Council,17/04/2023,T33HOUSING,Housing,20200,Housing Needs - HB (Housing Benefit),D2508,Removals and Storage,280.00,Chapmans of Hastings,Removals and Storage,2040819,202301
Rother District Council,19/04/2023,T33HOUSING,Housing,20200,Housing Needs - HB (Housing Benefit),D2508,Removals and Storage,270.00,Chapmans of Hastings,Removals and Storage,2041281,202302
Rother District Council,24/04/2023,T33HOUSING,Housing,20200,Housing Needs - HB (Housing Benefit),D2508,Removals and Storage,308.57,Chapmans of Hastings,Removals and Storage,2041027,202301
Rother District Council,02/05/2023,T33HOUSING,Housing,20200,Housing Needs - HB (Housing Benefit),D2508,Removals and Storage,140.00,Chapmans of Hastings,Removals and Storage,2041280,202302
Rother District Council,02/05/2023,T33HOUSING,Housing,20200,Housing Needs - HB (Housing Benefit),D2508,Removals and Storage,160.00,Chapmans of Hastings,Removals and Storage,2041473,202302
Rother District Council,30/05/2023,T33HOUSING,Housing,20200,Housing Needs - HB (Housing Benefit),D2508,Removals and Storage,580.00,Chapmans of Hastings,Removals and Storage,2041849,202303
Rother District Council,26/06/2023,T33HOUSING,Housing,20200,Housing Needs - HB (Housing Benefit),D2508,Removals and Storage,480.00,Chapmans of Hastings,Removals and Storage,2042279,202303
Rother District Council,18/04/2023,T33HOUSING,Housing,20329,Rough Sleeping Initiative,D2514,Accommodation Costs,"1,550.00",Charles Lucas Property Management Ltd (Client Account),Accommodation Costs,2040860,202301
Rother District Council,14/05/2023,T33HOUSING,Housing,20329,Rough Sleeping Initiative,D2514,Accommodation Costs,"1,650.00",Charles Lucas Property Management Ltd (Client Account),Accommodation Costs,2041505,202302
Rother District Council,18/05/2023,T33HOUSING,Housing,20337,Homes for Ukraine Accommodation,D2514,Accommodation Costs,360.00,Charles Lucas Property Management Ltd (Client Account),Accommodation Costs,2041484,202302
Rother District Council,18/05/2023,T33HOUSING,Housing,20200,Housing Needs - HB (Housing Benefit),D2514,Accommodation Costs,770.00,Charles Lucas Property Management Ltd (Client Account),Accommodation Costs,2041485,202302
Rother District Council,18/05/2023,T33HOUSING,Housing,20200,Housing Needs - HB (Housing Benefit),D2514,Accommodation Costs,385.00,Charles Lucas Property Management Ltd (Client Account),Accommodation Costs,2041486,202302
Rother District Council,18/05/2023,T33HOUSING,Housing,20200,Housing Needs - HB (Housing Benefit),D2514,Accommodation Costs,612.00,Charles Lucas Property Management Ltd (Client Account),Accommodation Costs,2041487,202302
Rother District Council,22/05/2023,T33HOUSING,Housing,20337,Homes for Ukraine Accommodation,D2514,Accommodation Costs,360.00,Charles Lucas Property Management Ltd (Client Account),Accommodation Costs,2041532,202302
Rother District Council,22/05/2023,T33HOUSING,Housing,20337,Homes for Ukraine Accommodation,D2514,Accommodation Costs,405.00,Charles Lucas Property Management Ltd (Client Account),Accommodation Costs,2041533,202302
Rother District Council,02/06/2023,T33HOUSING,Housing,20200,Housing Needs - HB (Housing Benefit),D2514,Accommodation Costs,"2,365.00",Charles Lucas Property Management Ltd (Client Account),Accommodation Costs,2041851,202303
Rother District Council,15/06/2023,T33HOUSING,Housing,20200,Housing Needs - HB (Housing Benefit),D2514,Accommodation Costs,"1,080.00",Charles Lucas Property Management Ltd (Client Account),Accommodation Costs,2042028,202303
Rother District Council,15/06/2023,T33HOUSING,Housing,20200,Housing Needs - HB (Housing Benefit),D2514,Accommodation Costs,"1,705.00",Charles Lucas Property Management Ltd (Client Account),Accommodation Costs,2042029,202303
Rother District Council,15/06/2023,T33HOUSING,Housing,20200,Housing Needs - HB (Housing Benefit),D2514,Accommodation Costs,"1,705.00",Charles Lucas Property Management Ltd (Client Account),Accommodation Costs,2042030,202303
Rother District Council,23/02/2023,T33HOUSING,Housing,20204,Housing Administration Account,D2922,Subscriptions,245.00,Chartered Institute of Housing,Subscriptions - Chartered Institue of Housing,2040404,202301
Rother District Council,24/04/2023,T33HOUSING,Housing,20200,Housing Needs - HB (Housing Benefit),D2922,Subscriptions,858.00,Chartered Institute of Housing,Subscriptions - Chartered Institue of Housing,2040941,202301
Rother District Council,27/04/2023,T33HOUSING,Housing,20200,Housing Needs - HB (Housing Benefit),D2922,Subscriptions,-245.00,Chartered Institute of Housing,Subscriptions - Chartered Institue of Housing,2041496,202303
Rother District Council,05/06/2023,T33HOUSING,Housing,20285,Housing Development Team,A2203,Training,175.00,Chartered Institute of Housing,Training,2041984,202303
Rother District Council,04/05/2023,T31DEMSERV,Democratic Services,20163,District Council Elections,D2513,Hired and Contracted services,210.00,Christchurch Methodist Church,Hire of Premises (RDC) - Hire of Premises (RDC),2041446,202302
Rother District Council,26/04/2023,T32CORPPOL,Corporate Policy & Projects,20219,Support To Elect Bodies/Grant,D2923,Grants made,"21,250.00",Citizens Advice 1066,Grants made - Bexhill and Rother CAB,2041011,202301
Rother District Council,30/06/2023,T32CORPPOL,Corporate Policy & Projects,20219,Support To Elect Bodies/Grant,D2923,Grants made,"21,250.00",Citizens Advice 1066,Grants made - Bexhill and Rother CAB,2042276,202303
Rother District Council,27/01/2023,T31DEMSERV,Democratic Services,20162,Electoral Registration,D2415,Printing by external suppliers,43.20,Civica Election Services Ltd,Printing by external suppliers - Printing (Not from RDC Print Room),2041488,202302
Rother District Council,31/03/2023,T31DEMSERV,Democratic Services,20162,Electoral Registration,D2415,Printing by external suppliers,242.38,Civica Election Services Ltd,Printing by external suppliers - Printing (Not from RDC Print Room),2040741,202301
Rother District Council,28/04/2023,T31DEMSERV,Democratic Services,20163,District Council Elections,D2415,Printing by external suppliers,"7,932.14",Civica Election Services Ltd,Printing by external suppliers,2041193,202302
Rother District Council,28/04/2023,T31DEMSERV,Democratic Services,20163,District Council Elections,D2626,Postages,"39,660.69",Civica Election Services Ltd,Postages,2041193,202302
Rother District Council,28/04/2023,T31DEMSERV,Democratic Services,20162,Electoral Registration,D2415,Printing by external suppliers,256.28,Civica Election Services Ltd,Printing by external suppliers - Printing (Not from RDC Print Room),2041089,202302
Rother District Council,07/03/2023,T31DEMSERV,Democratic Services,20163,District Council Elections,D2513,Hired and Contracted services,416.67,Claverton Hotel,Hire of Premises (RDC) - Hire of Premises (RDC),2041674,202302
Rother District Council,15/05/2023,T33NBHDSERV,Neighbourhood Services,20114,Bexhill Parks & Open Spaces,B2422,Sewerage,171.00,Cleansing Service Group Ltd,Sewerage Parks- Emptying of Cesspit,2041641,202303
Rother District Council,16/05/2023,T33NBHDSERV,Neighbourhood Services,20114,Bexhill Parks & Open Spaces,B2422,Sewerage,171.00,Cleansing Service Group Ltd,Sewerage Parks- Emptying of Cesspit,2041642,202303
Rother District Council,22/05/2023,T33NBHDSERV,Neighbourhood Services,20114,Bexhill Parks & Open Spaces,B2422,Sewerage,171.00,Cleansing Service Group Ltd,Sewerage Parks- Emptying of Cesspit,2041643,202303
Rother District Council,30/05/2023,T33NBHDSERV,Neighbourhood Services,20114,Bexhill Parks & Open Spaces,B2422,Sewerage,171.00,Cleansing Service Group Ltd,Sewerage Parks- Emptying of Cesspit,2041819,202303
Rother District Council,19/06/2023,T33NBHDSERV,Neighbourhood Services,20114,Bexhill Parks & Open Spaces,B2422,Sewerage,171.00,Cleansing Service Group Ltd,Sewerage Parks- Emptying of Cesspit,2042209,202303
Rother District Council,25/04/2023,T3ZCAPITAL,Capital,70706,Capital - Disabled Facilities Grant,N1012,Capital Advances,"6,105.00",Clearwell Mobility Ltd,Capital Advances Disabled Facilities Grant,2041051,202301
Rother District Council,31/03/2023,T32DIGCUSSER,Digital & Customer Services,20239,Computer Services,D2633,Computer Equipment,"7,435.31",CloudConnX Ltd,Computer Equipment - New - Computer Hardware,2041394,202302
Rother District Council,01/04/2023,T32DIGCUSSER,Digital & Customer Services,20239,Computer Services,D2631,Computer Equip Maintenance,61.60,CloudConnX Ltd,Computer Equip Maintenance - Maintenance of Network Equipment,2040548,202301
Rother District Council,01/05/2023,T32DIGCUSSER,Digital & Customer Services,20239,Computer Services,D2631,Computer Equip Maintenance,61.60,CloudConnX Ltd,Computer Equip Maintenance - Maintenance of Network Equipment,2041172,202302
Rother District Council,01/06/2023,T32DIGCUSSER,Digital & Customer Services,20239,Computer Services,D2631,Computer Equip Maintenance,42.00,CloudConnX Ltd,Computer Equip Maintenance - Maintenance of Network Equipment,2041931,202303
Rother District Council,01/06/2023,T32DIGCUSSER,Digital & Customer Services,20239,Computer Services,D2633,Computer Equipment,19.60,CloudConnX Ltd,Computer Equipment - New - Computer Hardware,2041931,202303
Rother District Council,06/04/2023,T33NBHDSERV,Neighbourhood Services,20108,Bexhill Promenade & Foreshore,B1100,Repairs to Premises,60.00,CMJ Joinery (Southern) Ltd,Repairs to Premises - Purchase of Materials - Build Maint,2040611,202301
Rother District Council,20/03/2023,T33HOUSING,Housing,20200,Housing Needs - HB (Housing Benefit),D2514,Accommodation Costs,390.00,Coast Holiday Lettings Ltd,Accommodation Costs,2040280,202301
Rother District Council,20/03/2023,T33HOUSING,Housing,20200,Housing Needs - HB (Housing Benefit),D2514,Accommodation Costs,390.00,Coast Holiday Lettings Ltd,Accommodation Costs,2040280,202301
Rother District Council,20/03/2023,T33HOUSING,Housing,20337,Homes for Ukraine Accommodation,D2514,Accommodation Costs,420.00,Coast Holiday Lettings Ltd,Accommodation Costs,2040280,202301
Rother District Council,03/04/2023,T33HOUSING,Housing,20200,Housing Needs - HB (Housing Benefit),D2514,Accommodation Costs,390.00,Coast Holiday Lettings Ltd,Accommodation Costs,2040281,202301
Rother District Council,03/04/2023,T33HOUSING,Housing,20200,Housing Needs - HB (Housing Benefit),D2514,Accommodation Costs,390.00,Coast Holiday Lettings Ltd,Accommodation Costs,2040281,202301
Rother District Council,03/04/2023,T33HOUSING,Housing,20337,Homes for Ukraine Accommodation,D2514,Accommodation Costs,420.00,Coast Holiday Lettings Ltd,Accommodation Costs,2040281,202301
Rother District Council,11/04/2023,T33HOUSING,Housing,20200,Housing Needs - HB (Housing Benefit),D2514,Accommodation Costs,390.00,Coast Holiday Lettings Ltd,Accommodation Costs,2040340,202301
Rother District Council,11/04/2023,T33HOUSING,Housing,20200,Housing Needs - HB (Housing Benefit),D2514,Accommodation Costs,390.00,Coast Holiday Lettings Ltd,Accommodation Costs,2040340,202301
Rother District Council,11/04/2023,T33HOUSING,Housing,20200,Housing Needs - HB (Housing Benefit),D2514,Accommodation Costs,420.00,Coast Holiday Lettings Ltd,Accommodation Costs,2040340,202301
Rother District Council,17/04/2023,T33HOUSING,Housing,20200,Housing Needs - HB (Housing Benefit),D2514,Accommodation Costs,780.00,Coast Holiday Lettings Ltd,Accommodation Costs,2040820,202301
Rother District Council,17/04/2023,T33HOUSING,Housing,20337,Homes for Ukraine Accommodation,D2514,Accommodation Costs,420.00,Coast Holiday Lettings Ltd,Accommodation Costs,2040820,202301
Rother District Council,24/04/2023,T33HOUSING,Housing,20200,Housing Needs - HB (Housing Benefit),D2514,Accommodation Costs,780.00,Coast Holiday Lettings Ltd,Accommodation Costs,2040928,202301
Rother District Council,24/04/2023,T33HOUSING,Housing,20337,Homes for Ukraine Accommodation,D2514,Accommodation Costs,420.00,Coast Holiday Lettings Ltd,Accommodation Costs,2040928,202301
Rother District Council,24/04/2023,T33HOUSING,Housing,20200,Housing Needs - HB (Housing Benefit),D2514,Accommodation Costs,780.00,Coast Holiday Lettings Ltd,Consultants and other services - Consultants Fees,2041142,202302
Rother District Council,24/04/2023,T33HOUSING,Housing,20337,Homes for Ukraine Accommodation,D2514,Accommodation Costs,420.00,Coast Holiday Lettings Ltd,Consultants and other services - Consultants Fees,2041142,202302
Rother District Council,01/05/2023,T33HOUSING,Housing,20200,Housing Needs - HB (Housing Benefit),D2514,Accommodation Costs,780.00,Coast Holiday Lettings Ltd,Accommodation Costs,2041311,202302
Rother District Council,01/05/2023,T33HOUSING,Housing,20337,Homes for Ukraine Accommodation,D2514,Accommodation Costs,420.00,Coast Holiday Lettings Ltd,Accommodation Costs,2041311,202302
Rother District Council,08/05/2023,T33HOUSING,Housing,20337,Homes for Ukraine Accommodation,D2514,Accommodation Costs,420.00,Coast Holiday Lettings Ltd,Accommodation Costs,2041315,202302
Rother District Council,08/05/2023,T33HOUSING,Housing,20200,Housing Needs - HB (Housing Benefit),D2514,Accommodation Costs,780.00,Coast Holiday Lettings Ltd,Accommodation Costs,2041315,202302
Rother District Council,16/05/2023,T33HOUSING,Housing,20200,Housing Needs - HB (Housing Benefit),D2514,Accommodation Costs,780.00,Coast Holiday Lettings Ltd,Accommodation Costs,2041512,202302
Rother District Council,16/05/2023,T33HOUSING,Housing,20337,Homes for Ukraine Accommodation,D2514,Accommodation Costs,420.00,Coast Holiday Lettings Ltd,Accommodation Costs,2041512,202302
Rother District Council,26/05/2023,T33HOUSING,Housing,20200,Housing Needs - HB (Housing Benefit),D2514,Accommodation Costs,780.00,Coast Holiday Lettings Ltd,Accommodation Costs,2041696,202303
Rother District Council,26/05/2023,T33HOUSING,Housing,20337,Homes for Ukraine Accommodation,D2514,Accommodation Costs,420.00,Coast Holiday Lettings Ltd,Accommodation Costs,2041696,202303
Rother District Council,31/05/2023,T33HOUSING,Housing,20200,Housing Needs - HB (Housing Benefit),D2514,Accommodation Costs,780.00,Coast Holiday Lettings Ltd,Accommodation Costs,2041745,202303
Rother District Council,31/05/2023,T33HOUSING,Housing,20337,Homes for Ukraine Accommodation,D2514,Accommodation Costs,420.00,Coast Holiday Lettings Ltd,Accommodation Costs,2041745,202303
Rother District Council,06/06/2023,T33HOUSING,Housing,20200,Housing Needs - HB (Housing Benefit),D2514,Accommodation Costs,780.00,Coast Holiday Lettings Ltd,Accommodation Costs,2041972,202303
Rother District Council,06/06/2023,T33HOUSING,Housing,20337,Homes for Ukraine Accommodation,D2514,Accommodation Costs,420.00,Coast Holiday Lettings Ltd,Accommodation Costs,2041972,202303
Rother District Council,13/06/2023,T33HOUSING,Housing,20200,Housing Needs - HB (Housing Benefit),D2514,Accommodation Costs,"1,200.00",Coast Holiday Lettings Ltd,Accommodation Costs,2042021,202303
Rother District Council,20/06/2023,T33HOUSING,Housing,20200,Housing Needs - HB (Housing Benefit),D2514,Accommodation Costs,780.00,Coast Holiday Lettings Ltd,Hired and contracted services - Service fee paid,2042076,202303
Rother District Council,20/06/2023,T33HOUSING,Housing,20337,Homes for Ukraine Accommodation,D2514,Accommodation Costs,420.00,Coast Holiday Lettings Ltd,Hired and contracted services - Service fee paid,2042076,202303
Rother District Council,24/03/2023,T33HREGEN,Regeneration,20148,Misc Land & Buildings,B1100,Repairs to Premises,264.00,Colours Timber Ltd,Repairs to Premises,2040503,202301
Rother District Council,09/03/2023,T33NBHDSERV,Neighbourhood Services,20108,Bexhill Promenade & Foreshore,B1100,Repairs to Premises,7.20,Colours Timber Ltd,Repairs to Premises - Purchase of Materials - Build Maint,2040501,202301
Rother District Council,29/03/2023,T33NBHDSERV,Neighbourhood Services,20114,Bexhill Parks & Open Spaces,B1100,Repairs to Premises,143.00,Colours Timber Ltd,Repairs to Premises - Purchase of Materials - Build Maint,2040505,202301
Rother District Council,29/03/2023,T33NBHDSERV,Neighbourhood Services,20114,Bexhill Parks & Open Spaces,B1100,Repairs to Premises,8.10,Colours Timber Ltd,Repairs to Premises - Purchase of Materials - Build Maint,2040506,202301
Rother District Council,31/03/2023,T33NBHDSERV,Neighbourhood Services,20108,Bexhill Promenade & Foreshore,B1100,Repairs to Premises,48.00,Colours Timber Ltd,Repairs to Premises - Purchase of Materials - Build Maint,2040507,202301
Rother District Council,03/04/2023,T33NBHDSERV,Neighbourhood Services,20128,Public Conveniences,B1100,Repairs to Premises,21.60,Colours Timber Ltd,Repairs to Premises - Purchase of Materials - Build Maint,2041374,202302
Rother District Council,06/04/2023,T33NBHDSERV,Neighbourhood Services,20128,Public Conveniences,B1100,Repairs to Premises,18.90,Colours Timber Ltd,Repairs to Premises - Purchase of Materials - Build Maint,2041375,202302
Rother District Council,02/05/2023,T33NBHDSERV,Neighbourhood Services,20114,Bexhill Parks & Open Spaces,B1100,Repairs to Premises,68.00,Colours Timber Ltd,Repairs to Premises - Purchase of Materials - Build Maint,2041376,202302
Rother District Council,10/05/2023,T33NBHDSERV,Neighbourhood Services,20114,Bexhill Parks & Open Spaces,B1100,Repairs to Premises,94.50,Colours Timber Ltd,Repairs to Premises - Purchase of Materials - Build Maint,2041992,202303
Rother District Council,19/05/2023,T33NBHDSERV,Neighbourhood Services,20114,Bexhill Parks & Open Spaces,B1100,Repairs to Premises,31.50,Colours Timber Ltd,Repairs to Premises - Purchase of Materials - Build Maint,2041983,202303
Rother District Council,16/05/2023,T33PLANPOL,Planning Policy,20253,Conservation & Preservation,D2513,Hired and Contracted services,"157,888.22",Combe Valley Countryside Park Community Interest Company,Hired & Contracted Services - S106 Worsham to CVCP CIC,2041501,202302
Rother District Council,29/03/2023,T31HUMANRES,Human Resources,20171,Human Resources,D2513,Hired and Contracted services,8.00,Computershare Voucher Services,Hired and contracted services - Child Care Voucher Service Charge,2042469,202303
Rother District Council,31/05/2023,T31HUMANRES,Human Resources,20171,Human Resources,D2513,Hired and Contracted services,8.00,Computershare Voucher Services,Hired and contracted services - Child Care Voucher Service Charge,2042468,202303
Rother District Council,29/03/2023,T3ZZNOREPORT,Resources department,90000,Balance sheet all accounts,T1002,Childcare Vouchers,100.00,Computershare Voucher Services,Childcare Vouchers,2042469,202303
Rother District Council,31/05/2023,T3ZZNOREPORT,Resources department,90000,Balance sheet all accounts,T1002,Childcare Vouchers,100.00,Computershare Voucher Services,Childcare Vouchers,2042468,202303
Rother District Council,29/04/2023,T33NBHDSERV,Neighbourhood Services,20114,Bexhill Parks & Open Spaces,D2513,Hired and Contracted services,422.00,Construction Testing Solutions Ltd,Hired and contracted services - Parks-Consultants Fees,2041148,202302
Rother District Council,31/05/2023,T33NBHDSERV,Neighbourhood Services,20114,Bexhill Parks & Open Spaces,D2513,Hired and Contracted services,52.00,Construction Testing Solutions Ltd,Hired and contracted services - Parks-Consultants Fees,2041781,202303
Rother District Council,14/04/2023,T33NBHDSERV,Neighbourhood Services,20114,Bexhill Parks & Open Spaces,D2513,Hired and Contracted services,"4,145.38",Constructive Evaluation Limited,Hired and contracted services - Parks-Consultants Fees,2040727,202301
Rother District Council,14/04/2023,T33NBHDSERV,Neighbourhood Services,20114,Bexhill Parks & Open Spaces,D2513,Hired and Contracted services,"1,331.07",Constructive Evaluation Limited,Hired and contracted services - Parks-Consultants Fees,2042277,202303
Rother District Council,31/05/2023,T33NBHDSERV,Neighbourhood Services,20107,Camber Beach & Foreshore,D1201,Equipment & Materials,911.26,Contract Sign Systems,Equipment & Materials - Purchase of Signs,2041921,202303
Rother District Council,18/05/2023,T31DEMSERV,Democratic Services,20163,District Council Elections,D2513,Hired and Contracted services,500.00,Cooden Beach Sports and Social Club,Hire of Premises (RDC) - Hire of Premises (RDC),2041690,202302
Rother District Council,24/03/2023,T33NBHDSERV,Neighbourhood Services,20125,Coast Protection,B1100,Repairs to Premises,"1,731.80",Coppard Plant Hire Ltd,Repairs to Premises - Beach maintenance,2040713,202301
Rother District Council,22/05/2023,T3ZCAPITAL,Capital,70754,Capital - King Offa Residential Development Scheme,N1003,Construction/Conversion,659.60,Coppard Plant Hire Ltd,Construction/Conversion Capital-Contract Payments - General,2041820,202303
Rother District Council,26/05/2023,T31HUMANRES,Human Resources,20173,Administrative Offices - Town Hall,B1100,Repairs to Premises,738.00,Core Cable Networks Ltd,Repairs to Premises - Repairs - Electrical Works,2041782,202303
Rother District Council,28/03/2023,T32ENVSERV,"Environmental Services, Licensing & Community Safety",32134,EH Pollution R + W Partnership,D2513,Hired and Contracted services,93.21,Corserv Care Limited,Hired and contracted services - RDC ENV H Out Of Hours Call Answering Service,2040540,202301
Rother District Council,06/04/2023,T32ENVSERV,"Environmental Services, Licensing & Community Safety",32134,EH Pollution R + W Partnership,D2513,Hired and Contracted services,77.53,Corserv Care Limited,Hired and contracted services - RDC ENV H Out Of Hours Call Answering Service,2040711,202301
Rother District Council,28/03/2023,T33HOUSING,Housing,20204,Housing Administration Account,D2513,Hired and Contracted services,420.42,Corserv Care Limited,Hired and contracted services - RDC Homelessness Out Of Hours Call Answering Service,2040540,202301
Rother District Council,06/04/2023,T33HOUSING,Housing,20204,Housing Administration Account,D2513,Hired and Contracted services,267.54,Corserv Care Limited,Hired and contracted services - RDC Homelessness Out Of Hours Call Answering Service,2040711,202301
Rother District Council,14/04/2023,T32ENVSERV,"Environmental Services, Licensing & Community Safety",20187,Pollution,D1201,Equipment & Materials,"1,162.67",CountyClean Environmental Services Ltd,Equipment & Materials - EnvH- Pollution Equipment,2040789,202301
Rother District Council,14/04/2023,T32ENVSERV,"Environmental Services, Licensing & Community Safety",20187,Pollution,D2513,Hired and Contracted services,702.67,CountyClean Environmental Services Ltd,Hired and contracted services - Service fee paid,2040790,202301
Rother District Council,28/04/2023,T32ENVSERV,"Environmental Services, Licensing & Community Safety",20187,Pollution,D2513,Hired and Contracted services,"1,700.13",CountyClean Environmental Services Ltd,Hired and contracted services - Service fee paid,2041247,202302
Rother District Council,31/05/2023,T32ENVSERV,"Environmental Services, Licensing & Community Safety",20187,Pollution,D2513,Hired and Contracted services,979.48,CountyClean Environmental Services Ltd,Hired and contracted services - Service fee paid,2041929,202303
Rother District Council,15/03/2023,T33HREGEN,Regeneration,20154,Committee Property Account,B1100,Repairs to Premises,175.00,CountyClean Environmental Services Ltd,Repairs to Premises - Cesspool Pumping station service/Call out,2040411,202301
Rother District Council,15/03/2023,T33HREGEN,Regeneration,20153,"Elva Business Centre, Bexhill",B1100,Repairs to Premises,195.00,CountyClean Environmental Services Ltd,Repairs to Premises - Cesspool Pumping station service/Call out,2040411,202301
Rother District Council,15/03/2023,T33HREGEN,Regeneration,20154,Committee Property Account,B2422,Sewerage,242.00,CountyClean Environmental Services Ltd,Sewerage - Sewage/Cesspool Emptying,2040411,202301
Rother District Council,13/04/2023,T33HREGEN,Regeneration,20154,Committee Property Account,B1100,Repairs to Premises,175.00,CountyClean Environmental Services Ltd,Repairs to Premises - Cesspool Pumping station service/Call out,2041002,202301
Rother District Council,13/04/2023,T33HREGEN,Regeneration,20154,Committee Property Account,B1100,Repairs to Premises,175.00,CountyClean Environmental Services Ltd,Repairs to Premises - Cesspool Pumping station service/Call out,2041002,202301
Rother District Council,13/04/2023,T33HREGEN,Regeneration,20153,"Elva Business Centre, Bexhill",B1100,Repairs to Premises,430.00,CountyClean Environmental Services Ltd,Repairs to Premises - Cesspool Pumping station service/Call out,2041002,202301
Rother District Council,13/04/2023,T33HREGEN,Regeneration,20154,Committee Property Account,B2422,Sewerage,235.00,CountyClean Environmental Services Ltd,Sewerage - Sewage/Cesspool Emptying,2041002,202301
Rother District Council,13/04/2023,T33HREGEN,Regeneration,20154,Committee Property Account,B2422,Sewerage,165.00,CountyClean Environmental Services Ltd,Sewerage - Sewage/Cesspool Emptying,2041002,202301
Rother District Council,13/04/2023,T33HREGEN,Regeneration,20153,"Elva Business Centre, Bexhill",B2422,Sewerage,235.00,CountyClean Environmental Services Ltd,Sewerage - Sewage/Cesspool Emptying,2041002,202301
Rother District Council,15/03/2023,T33NBHDSERV,Neighbourhood Services,20137,Car Parks,B1100,Repairs to Premises,175.19,CountyClean Environmental Services Ltd,Repairs to Premises - Cesspool Pumping station service/Call out,2040411,202301
Rother District Council,15/03/2023,T33NBHDSERV,Neighbourhood Services,20128,Public Conveniences,B1100,Repairs to Premises,175.19,CountyClean Environmental Services Ltd,Repairs to Premises - Cesspool Pumping station service/Call out,2040411,202301
Rother District Council,15/03/2023,T33NBHDSERV,Neighbourhood Services,20137,Car Parks,B2422,Sewerage,242.00,CountyClean Environmental Services Ltd,Sewerage - Sewage/Cesspool Emptying,2040411,202301
Rother District Council,15/03/2023,T33NBHDSERV,Neighbourhood Services,20128,Public Conveniences,B2422,Sewerage,242.00,CountyClean Environmental Services Ltd,Sewerage - Sewage/Cesspool Emptying,2040411,202301
Rother District Council,05/04/2023,T33NBHDSERV,Neighbourhood Services,20128,Public Conveniences,B2422,Sewerage,400.93,CountyClean Environmental Services Ltd,Sewerage - Sewage/Cesspool Emptying,2040764,202301
Rother District Council,13/04/2023,T33NBHDSERV,Neighbourhood Services,20137,Car Parks,B1100,Repairs to Premises,175.00,CountyClean Environmental Services Ltd,Repairs to Premises - Cesspool Pumping station service/Call out,2041002,202301
Rother District Council,13/04/2023,T33NBHDSERV,Neighbourhood Services,20128,Public Conveniences,B1100,Repairs to Premises,175.00,CountyClean Environmental Services Ltd,Repairs to Premises - Cesspool Pumping station service/Call out,2041002,202301
Rother District Council,13/04/2023,T33NBHDSERV,Neighbourhood Services,20137,Car Parks,B2422,Sewerage,235.00,CountyClean Environmental Services Ltd,Sewerage - Sewage/Cesspool Emptying,2041002,202301
Rother District Council,13/04/2023,T33NBHDSERV,Neighbourhood Services,20128,Public Conveniences,B2422,Sewerage,235.00,CountyClean Environmental Services Ltd,Sewerage - Sewage/Cesspool Emptying,2041002,202301
Rother District Council,14/04/2023,T33NBHDSERV,Neighbourhood Services,20114,Bexhill Parks & Open Spaces,B2422,Sewerage,248.68,CountyClean Environmental Services Ltd,Sewerage Parks- Emptying of Cesspit,2040792,202301
Rother District Council,19/04/2023,T33NBHDSERV,Neighbourhood Services,20128,Public Conveniences,B2422,Sewerage,400.93,CountyClean Environmental Services Ltd,Sewerage - Sewage/Cesspool Emptying,2040882,202301
Rother District Council,27/04/2023,T33NBHDSERV,Neighbourhood Services,20114,Bexhill Parks & Open Spaces,B2422,Sewerage,248.68,CountyClean Environmental Services Ltd,Sewerage Parks- Emptying of Cesspit,2041147,202302
Rother District Council,30/04/2023,T33NBHDSERV,Neighbourhood Services,20128,Public Conveniences,B2422,Sewerage,400.93,CountyClean Environmental Services Ltd,Sewerage - Sewage/Cesspool Emptying,2041248,202302
Rother District Council,04/05/2023,T33NBHDSERV,Neighbourhood Services,20128,Public Conveniences,B2422,Sewerage,614.08,CountyClean Environmental Services Ltd,Sewerage - Sewage/Cesspool Emptying,2041578,202302
Rother District Council,12/05/2023,T33NBHDSERV,Neighbourhood Services,20114,Bexhill Parks & Open Spaces,B2422,Sewerage,265.93,CountyClean Environmental Services Ltd,Sewerage Parks- Emptying of Cesspit,2041579,202303
Rother District Council,17/05/2023,T33NBHDSERV,Neighbourhood Services,20128,Public Conveniences,B2422,Sewerage,411.08,CountyClean Environmental Services Ltd,Sewerage - Sewage/Cesspool Emptying,2041580,202302
Rother District Council,31/05/2023,T33NBHDSERV,Neighbourhood Services,20128,Public Conveniences,B2422,Sewerage,411.08,CountyClean Environmental Services Ltd,Sewerage - Sewage/Cesspool Emptying,2041928,202303
Rother District Council,06/06/2023,T33NBHDSERV,Neighbourhood Services,20114,Bexhill Parks & Open Spaces,B2422,Sewerage,842.45,CountyClean Environmental Services Ltd,Sewerage Parks- Emptying of Cesspit,2042146,202303
Rother District Council,16/05/2023,T33HREGEN,Regeneration,20122,Economic Development,A2203,Training,175.00,CPT Ltd,Training,2041818,202303
Rother District Council,25/03/2023,T31HUMANRES,Human Resources,20171,Human Resources,A2203,Training,818.10,Croner Group Ltd,Training,2040235,202301
Rother District Council,25/03/2023,T31HUMANRES,Human Resources,20171,Human Resources,A2203,Training,101.81,Croner Group Ltd,Training,2040235,202301
Rother District Council,01/04/2023,T31HUMANRES,Human Resources,20171,Human Resources,D2922,Subscriptions,828.97,Croner-I,Subscriptions - Subscription to Organisations,2041422,202302
Rother District Council,30/05/2023,T341PRECEPTS,Precepts,42203,Parish Precepts,F1201,Parish precepts,"16,227.50",Crowhurst Parish Council,Parish precepts,2042059,202303
Rother District Council,04/04/2023,T33HOUSING,Housing,20337,Homes for Ukraine Accommodation,D2514,Accommodation Costs,"1,157.14",Crowhurst Park Ltd,Accommodation Costs,2040758,202301
Rother District Council,27/04/2023,T33HOUSING,Housing,20200,Housing Needs - HB (Housing Benefit),D2514,Accommodation Costs,257.14,Crowhurst Park Ltd,Accommodation Costs,2041073,202302
Rother District Council,27/04/2023,T33HOUSING,Housing,20200,Housing Needs - HB (Housing Benefit),D2514,Accommodation Costs,280.00,Crowhurst Park Ltd,Accommodation Costs,2041081,202302
Rother District Council,27/04/2023,T33HOUSING,Housing,20200,Housing Needs - HB (Housing Benefit),D2514,Accommodation Costs,257.14,Crowhurst Park Ltd,Accommodation Costs,2041240,202302
Rother District Council,05/05/2023,T33HOUSING,Housing,20200,Housing Needs - HB (Housing Benefit),D2514,Accommodation Costs,257.14,Crowhurst Park Ltd,Accommodation Costs,2041349,202302
Rother District Council,07/03/2023,T31DEMSERV,Democratic Services,20163,District Council Elections,D2513,Hired and Contracted services,250.00,Crowhurst Village Hall Committee,Hire of Premises (RDC) - Hire of Premises (RDC),2041621,202302
Rother District Council,06/06/2023,T33HREGEN,Regeneration,20155,Investment properties,B1100,Repairs to Premises,420.00,Crown Gas & Power Siteworks Ltd,Repairs to Premises - Repairs Refurbishment of premises,2041848,202303
Rother District Council,10/05/2023,T33HREGEN,Regeneration,20155,Investment properties,B2202,Gas,364.01,Crown Gas Gas & Power Ltd,Gas - Gas Charges,2041546,202302
Rother District Council,07/06/2023,T33HREGEN,Regeneration,20155,Investment properties,B2202,Gas,117.50,Crown Gas Gas & Power Ltd,Gas - Gas Charges,2042113,202303
Rother District Council,05/04/2023,T33NBHDSERV,Neighbourhood Services,20114,Bexhill Parks & Open Spaces,B1100,Repairs to Premises,"2,064.65",CS Engineering,Repairs to Premises - Parks - Playground Repairs,2040476,202301
Rother District Council,06/04/2023,T33NBHDSERV,Neighbourhood Services,20114,Bexhill Parks & Open Spaces,D1201,Equipment & Materials,"1,418.20",CS Engineering,Equipment & Materials - Parks- Playground Equipment,2040474,202301
Rother District Council,06/04/2023,T33NBHDSERV,Neighbourhood Services,20114,Bexhill Parks & Open Spaces,D1201,Equipment & Materials,"4,787.50",CS Engineering,Equipment & Materials - Parks- Playground Equipment,2040475,202301
Rother District Council,06/04/2023,T33NBHDSERV,Neighbourhood Services,20123,Cemeteries,D1201,Equipment & Materials,"1,051.55",CS Engineering,Equipment & Materials - Purchase of Signs,2040473,202301
Rother District Council,06/04/2023,T33NBHDSERV,Neighbourhood Services,20114,Bexhill Parks & Open Spaces,B1100,Repairs to Premises,330.90,CS Engineering,Repairs to Premises - Parks - Playground Repairs,2040471,202301
Rother District Council,06/04/2023,T33NBHDSERV,Neighbourhood Services,20114,Bexhill Parks & Open Spaces,B1100,Repairs to Premises,350.90,CS Engineering,Repairs to Premises - Parks - Playground Repairs,2040472,202301
Rother District Council,24/04/2023,T33NBHDSERV,Neighbourhood Services,20137,Car Parks,B1100,Repairs to Premises,"1,595.30",CS Engineering,Repairs to Premises - Car Park Maintenance,2040982,202301
Rother District Council,08/04/2023,T33PLANDEV,Planning Development Management,20246,Planning Applications,D2509,Consultants and Other Services,260.20,Curley Consultants,Consultants and other services - Consultants Fees,2040585,202301
Rother District Council,01/05/2023,T33PLANDEV,Planning Development Management,20246,Planning Applications,E2302,Third party payment private contractors,265.35,Curley Consultants,Third Party Private contractors,2041220,202302
Rother District Council,01/03/2023,T32DIGCUSSER,Digital & Customer Services,20242,Communications-Phones,D2621,Telephones,97.40,Daisy Communications PLC,Telephones,2039853,202301
Rother District Council,01/03/2023,T32DIGCUSSER,Digital & Customer Services,20180,Emergency Planning,D2621,Telephones,19.48,Daisy Communications PLC,Telephones,2039853,202301
Rother District Council,01/03/2023,T32DIGCUSSER,Digital & Customer Services,20239,Computer Services,D2621,Telephones,38.96,Daisy Communications PLC,Telephones,2039853,202301
Rother District Council,01/04/2023,T32DIGCUSSER,Digital & Customer Services,20242,Communications-Phones,D2621,Telephones,110.99,Daisy Communications PLC,Telephones,2040334,202301
Rother District Council,01/04/2023,T32DIGCUSSER,Digital & Customer Services,20180,Emergency Planning,D2621,Telephones,22.19,Daisy Communications PLC,Telephones,2040334,202301
Rother District Council,01/04/2023,T32DIGCUSSER,Digital & Customer Services,20239,Computer Services,D2621,Telephones,44.38,Daisy Communications PLC,Telephones,2040334,202301
Rother District Council,01/05/2023,T32DIGCUSSER,Digital & Customer Services,20242,Communications-Phones,D2621,Telephones,110.95,Daisy Communications PLC,Telephones,2041331,202303
Rother District Council,01/05/2023,T32DIGCUSSER,Digital & Customer Services,20180,Emergency Planning,D2621,Telephones,22.19,Daisy Communications PLC,Telephones,2041331,202303
Rother District Council,01/05/2023,T32DIGCUSSER,Digital & Customer Services,20239,Computer Services,D2621,Telephones,44.38,Daisy Communications PLC,Telephones,2041331,202303
Rother District Council,01/03/2023,T32ENVSERV,"Environmental Services, Licensing & Community Safety",32134,EH Pollution R + W Partnership,D2621,Telephones,19.43,Daisy Communications PLC,Telephones,2039853,202301
Rother District Council,01/04/2023,T32ENVSERV,"Environmental Services, Licensing & Community Safety",32134,EH Pollution R + W Partnership,D2621,Telephones,22.19,Daisy Communications PLC,Telephones,2040334,202301
Rother District Council,01/05/2023,T32ENVSERV,"Environmental Services, Licensing & Community Safety",32134,EH Pollution R + W Partnership,D2621,Telephones,22.19,Daisy Communications PLC,Telephones,2041331,202303
Rother District Council,01/03/2023,T33NBHDSERV,Neighbourhood Services,20102,Rother Museum Services,D2621,Telephones,19.48,Daisy Communications PLC,Telephones,2039853,202301
Rother District Council,01/03/2023,T33NBHDSERV,Neighbourhood Services,20107,Camber Beach & Foreshore,D2621,Telephones,38.96,Daisy Communications PLC,Telephones,2039853,202301
Rother District Council,01/04/2023,T33NBHDSERV,Neighbourhood Services,20102,Rother Museum Services,D2621,Telephones,22.19,Daisy Communications PLC,Telephones,2040334,202301
Rother District Council,01/04/2023,T33NBHDSERV,Neighbourhood Services,20107,Camber Beach & Foreshore,D2621,Telephones,44.38,Daisy Communications PLC,Telephones,2040334,202301
Rother District Council,01/05/2023,T33NBHDSERV,Neighbourhood Services,20102,Rother Museum Services,D2621,Telephones,22.19,Daisy Communications PLC,Telephones,2041331,202303
Rother District Council,01/05/2023,T33NBHDSERV,Neighbourhood Services,20107,Camber Beach & Foreshore,D2621,Telephones,46.08,Daisy Communications PLC,Telephones,2041331,202303
Rother District Council,31/03/2023,T33HOUSING,Housing,20200,Housing Needs - HB (Housing Benefit),D2514,Accommodation Costs,"7,085.36",Dale Saunders (Holdings) Ltd,Accommodation Costs,2042033,202303
Rother District Council,30/04/2023,T33HOUSING,Housing,20200,Housing Needs - HB (Housing Benefit),D2514,Accommodation Costs,"7,371.06",Dale Saunders (Holdings) Ltd,Accommodation Costs,2041267,202302
Rother District Council,31/05/2023,T33HOUSING,Housing,20200,Housing Needs - HB (Housing Benefit),D2514,Accommodation Costs,"8,856.70",Dale Saunders (Holdings) Ltd,Accommodation Costs,2042034,202303
Rother District Council,01/02/2023,T31DEMSERV,Democratic Services,20163,District Council Elections,D2513,Hired and Contracted services,250.00,Dallington Old School Village Hall,Hire of Premises (RDC) - Hire of Premises (RDC),2041670,202302
Rother District Council,30/05/2023,T341PRECEPTS,Precepts,42203,Parish Precepts,F1201,Parish precepts,"4,717.50",Dallington Parish Council,Parish precepts,2042060,202303
Rother District Council,31/03/2023,T31HUMANRES,Human Resources,20173,Administrative Offices - Town Hall,B2611,Contract cleaning,40.00,Data Shredding Services Ltd,Third party payment private contractors - Commercial Waste Collection Contract,2040735,202301
Rother District Council,30/04/2023,T31HUMANRES,Human Resources,20173,Administrative Offices - Town Hall,D2513,Hired and Contracted services,40.00,Data Shredding Services Ltd,Hired and contracted services - Charges-Confidential Office Waste,2042109,202303
Rother District Council,31/03/2023,T32ENVSERV,"Environmental Services, Licensing & Community Safety",32142,EH Taxi and Private Hire Licences R + W Partnership,D2513,Hired and Contracted services,380.00,DBS The Disclosure and Barring Service,Hired and contracted services - Service fee paid,2040594,202301
Rother District Council,30/04/2023,T32ENVSERV,"Environmental Services, Licensing & Community Safety",32142,EH Taxi and Private Hire Licences R + W Partnership,D2513,Hired and Contracted services,380.00,DBS The Disclosure and Barring Service,Hired and contracted services - Service fee paid,2041276,202302
Rother District Council,31/05/2023,T32ENVSERV,"Environmental Services, Licensing & Community Safety",32142,EH Taxi and Private Hire Licences R + W Partnership,D2513,Hired and Contracted services,342.00,DBS The Disclosure and Barring Service,Hired and contracted services - Service fee paid,2042271,202303
Rother District Council,23/05/2023,T31DEMSERV,Democratic Services,20163,District Council Elections,D2513,Hired and Contracted services,"13,996.00",De La Warr Pavilion (Enterprise) Ltd,Hire of Premises (RDC) - Hire of Premises (RDC),2041814,202303
Rother District Council,30/06/2023,T33HREGEN,Regeneration,20103,De La Warr Pav-Client,D2923,Grants made,"119,250.00",De La Warr Pavilion Charitable Trust,Grants made - Revenue Grants,2042283,202303
Rother District Council,30/06/2023,T3ZCAPITAL,Capital,70702,Capital - De La Warr Pavilion - Capital Grant,N1011,Capital Grants,"14,784.75",De La Warr Pavilion Charitable Trust,Capital Grants - Community Grants Scheme,2042283,202303
Rother District Council,25/05/2023,T31HUMANRES,Human Resources,20173,Administrative Offices - Town Hall,B1100,Repairs to Premises,170.00,Dean Mortimer,Repairs to Premises - Energy Performance Certificate,2042366,202303
Rother District Council,25/05/2023,T33HREGEN,Regeneration,20308,Amherst Road as Investment Property,B1100,Repairs to Premises,170.00,Dean Mortimer,Repairs to Premises - Energy Performance Certificate,2042366,202303
Rother District Council,14/06/2023,T33HREGEN,Regeneration,20153,"Elva Business Centre, Bexhill",B1100,Repairs to Premises,237.50,Dean Mortimer,Repairs to Premises - Energy Performance Certificate,2042367,202303
Rother District Council,14/06/2023,T33HREGEN,Regeneration,20155,Investment properties,B1100,Repairs to Premises,237.50,Dean Mortimer,Repairs to Premises - Energy Performance Certificate,2042367,202303
Rother District Council,14/06/2023,T33NBHDSERV,Neighbourhood Services,20114,Bexhill Parks & Open Spaces,B1100,Repairs to Premises,237.50,Dean Mortimer,Repairs to Premises - Energy Performance Certificate,2042367,202303
Rother District Council,14/06/2023,T33NBHDSERV,Neighbourhood Services,20115,Rye Area Parks & Gardens,B1100,Repairs to Premises,237.50,Dean Mortimer,Repairs to Premises - Energy Performance Certificate,2042367,202303
Rother District Council,30/03/2023,T33PLANDEV,Planning Development Management,20246,Planning Applications,A2203,Training,"1,750.00",Design South East Limited,Training,2040359,202301
Rother District Council,01/06/2023,T32REVBEN,Revenues & Benefits,20216,Cost Of Collection,D2635,Computer Licences,"8,000.00",Destin Solutions Ltd,Computer Licences - New Computer Software,2041893,202303
Rother District Council,04/05/2023,T33PLANDEV,Planning Development Management,20246,Planning Applications,D2509,Consultants and Other Services,"1,873.30",DGC (Historic Buildings) Consultants Ltd,Consultants and other services - Consultants Fees,2041299,202302
Rother District Council,05/06/2023,T33PLANDEV,Planning Development Management,20246,Planning Applications,D2509,Consultants and Other Services,"4,186.25",DGC (Historic Buildings) Consultants Ltd,Consultants and other services - Consultants Fees,2041968,202303
Rother District Council,04/05/2023,T33PLANPOL,Planning Policy,20250,Planning Policy,D2513,Hired and Contracted services,467.50,DGC (Historic Buildings) Consultants Ltd,Hired and contracted services - LDF Consultancy,2041298,202302
Rother District Council,11/04/2023,T33NBHDSERV,Neighbourhood Services,20133,Refuse Collection,E2302,Third party payment private contractors,"4,794.00",Diamond Hygiene Ltd,Third party payment private contractors - Commercial Waste Collection Contract,2040920,202301
Rother District Council,11/04/2023,T33NBHDSERV,Neighbourhood Services,20133,Refuse Collection,E2302,Third party payment private contractors,623.00,Diamond Hygiene Ltd,Third party payment private contractors - Commercial Waste Collection Contract,2040922,202301
Rother District Council,23/05/2023,T33HOUSING,Housing,20202,Rother Tenant Finder (prev Rother Letting Service),D2514,Accommodation Costs,50.00,Digital Sussex Ltd,Accommodation Costs - Homelessness services Housing Landlord Scheme-Rent payment,2041351,202302
Rother District Council,23/05/2023,T33HOUSING,Housing,20202,Rother Tenant Finder (prev Rother Letting Service),D2514,Accommodation Costs,50.00,Digital Sussex Ltd,Accommodation Costs - Homelessness services Housing Landlord Scheme-Rent payment,2041550,202302
Rother District Council,17/05/2023,T3ZCAPITAL,Capital,70751,Capital - Temporary Accommodation,N1005,Other fees,100.00,Digital Sussex Ltd,Other Fees - Capital exp Std VAT,2041804,202303
Rother District Council,17/05/2023,T3ZCAPITAL,Capital,70751,Capital - Temporary Accommodation,N1005,Other fees,90.00,Digital Sussex Ltd,Other Fees - Capital exp Std VAT,2041805,202303
Rother District Council,31/05/2023,T3ZCAPITAL,Capital,70751,Capital - Temporary Accommodation,D2513,Hired and Contracted services,90.00,Digital Sussex Ltd,Hired and contracted services - Service fee paid,2041807,202303
Rother District Council,31/05/2023,T3ZCAPITAL,Capital,70751,Capital - Temporary Accommodation,D2513,Hired and Contracted services,90.00,Digital Sussex Ltd,Hired and contracted services - Service fee paid,2041808,202303
Rother District Council,31/05/2023,T3ZCAPITAL,Capital,70751,Capital - Temporary Accommodation,D2513,Hired and Contracted services,90.00,Digital Sussex Ltd,Hired and contracted services - Service fee paid,2041809,202303
Rother District Council,04/06/2023,T3ZCAPITAL,Capital,70751,Capital - Temporary Accommodation,N1005,Other fees,100.00,Digital Sussex Ltd,Other Fees - Capital exp Std VAT,2041890,202303
Rother District Council,04/06/2023,T3ZCAPITAL,Capital,70751,Capital - Temporary Accommodation,N1005,Other fees,90.00,Digital Sussex Ltd,Other Fees - Capital exp Std VAT,2041891,202303
Rother District Council,05/05/2023,T31DEMSERV,Democratic Services,20160,Public Accountability C/Ex,D2922,Subscriptions,"3,116.40",District Councils Network,Subscriptions - Subscription to Organisations,2041687,202303
Rother District Council,27/04/2023,T33NBHDSERV,Neighbourhood Services,20128,Public Conveniences,D2509,Consultants and Other Services,"10,381.25",DK-CM Limited,Consultants and other services - Consultants Fees,2041187,202302
Rother District Council,26/05/2023,T33NBHDSERV,Neighbourhood Services,20128,Public Conveniences,D2509,Consultants and Other Services,"10,381.25",DK-CM Limited,Consultants and other services - Consultants Fees,2041899,202303
Rother District Council,26/05/2023,T3ZCAPITAL,Capital,70754,Capital - King Offa Residential Development Scheme,N1004,Architects & Consultant Fees,"1,495.00",Dorton Demolition & Excavation Limited,Architects & Consultant Fees Capital-Architect and Conslt Fees,2041927,202303
Rother District Council,31/03/2023,T32REVBEN,Revenues & Benefits,20216,Cost Of Collection,D2513,Hired and Contracted services,"11,215.21",DSI Billing Services Ltd,Hired and contracted services - DSI Billing Printing,2040717,202301
Rother District Council,31/03/2023,T32REVBEN,Revenues & Benefits,20216,Cost Of Collection,D2626,Postages,"31,856.59",DSI Billing Services Ltd,Postages - DSI Billing,2040434,202301
Rother District Council,04/04/2023,T32REVBEN,Revenues & Benefits,20216,Cost Of Collection,D2626,Postages,"1,023.16",DSI Billing Services Ltd,Postages - DSI Billing,2040435,202301
Rother District Council,11/04/2023,T32REVBEN,Revenues & Benefits,20216,Cost Of Collection,D2513,Hired and Contracted services,"1,666.26",DSI Billing Services Ltd,Hired and contracted services - DSI Billing Printing,2040861,202301
Rother District Council,11/04/2023,T32REVBEN,Revenues & Benefits,20216,Cost Of Collection,D2626,Postages,629.92,DSI Billing Services Ltd,Postages - DSI Billing,2040436,202301
Rother District Council,26/04/2023,T32REVBEN,Revenues & Benefits,20216,Cost Of Collection,D2513,Hired and Contracted services,665.49,DSI Billing Services Ltd,Hired and contracted services - DSI Billing Printing,2041034,202302
Rother District Council,26/04/2023,T32REVBEN,Revenues & Benefits,20216,Cost Of Collection,D2513,Hired and Contracted services,867.69,DSI Billing Services Ltd,Hired and contracted services - DSI Billing Printing,2041035,202302
Rother District Council,04/05/2023,T32REVBEN,Revenues & Benefits,20216,Cost Of Collection,D2513,Hired and Contracted services,"2,236.65",DSI Billing Services Ltd,Hired and contracted services - DSI Billing Printing,2041358,202302
Rother District Council,11/05/2023,T32REVBEN,Revenues & Benefits,20216,Cost Of Collection,D2626,Postages,705.65,DSI Billing Services Ltd,Postages - DSI Billing,2042425,202303
Rother District Council,12/05/2023,T32REVBEN,Revenues & Benefits,20216,Cost Of Collection,D2513,Hired and Contracted services,"1,436.40",DSI Billing Services Ltd,Hired and contracted services - DSI Billing Printing,2041744,202303
Rother District Council,17/05/2023,T32REVBEN,Revenues & Benefits,20216,Cost Of Collection,D2626,Postages,704.15,DSI Billing Services Ltd,Postages - DSI Billing,2042426,202303
Rother District Council,23/05/2023,T32REVBEN,Revenues & Benefits,20216,Cost Of Collection,D2626,Postages,"1,488.09",DSI Billing Services Ltd,Postages - DSI Billing,2042427,202303
Rother District Council,31/05/2023,T32REVBEN,Revenues & Benefits,20216,Cost Of Collection,D2626,Postages,769.39,DSI Billing Services Ltd,Postages - DSI Billing,2042428,202303
Rother District Council,08/06/2023,T32REVBEN,Revenues & Benefits,20216,Cost Of Collection,D2626,Postages,"1,352.56",DSI Billing Services Ltd,Postages - DSI Billing,2042429,202303
Rother District Council,09/06/2023,T32REVBEN,Revenues & Benefits,20216,Cost Of Collection,D2513,Hired and Contracted services,"1,447.99",DSI Billing Services Ltd,Hired and contracted services - DSI Billing Printing,2042430,202303
Rother District Council,13/06/2023,T32REVBEN,Revenues & Benefits,20216,Cost Of Collection,D2626,Postages,855.41,DSI Billing Services Ltd,Postages - DSI Billing,2042431,202303
Rother District Council,20/06/2023,T32REVBEN,Revenues & Benefits,20216,Cost Of Collection,D2626,Postages,713.88,DSI Billing Services Ltd,Postages - DSI Billing,2042432,202303
Rother District Council,04/06/2022,T31CHFFIN,Chief Finance Officer (S151),20222,Accountancy,D2513,Hired and Contracted services,500.00,Dun & Bradstreet Ltd,Hired and contracted services - Service fee paid,2041139,202302
Rother District Council,17/04/2023,T33HOUSING,Housing,20205,Housing Loans Account,D2514,Accommodation Costs,850.00,Dyer Property Ltd,Accommodation Costs - Homelessness services Deposit for Landlords,2040914,202301
Rother District Council,17/04/2023,T33HOUSING,Housing,20202,Rother Tenant Finder (prev Rother Letting Service),D2514,Accommodation Costs,"1,000.00",Dyer Property Ltd,Accommodation Costs - Homelessness services Housing Landlord Scheme-Rent payment,2040914,202301
Rother District Council,17/04/2023,T33HOUSING,Housing,20205,Housing Loans Account,D2514,Accommodation Costs,850.00,Dyer Property Ltd,Accommodation Costs - Homelessness services Rent in Advance for Homeless,2040914,202301
Rother District Council,16/06/2023,T32CORPPOL,Corporate Policy & Projects,20142,Performance Management,E1101,Third party payment other LAs,"5,475.00",East Sussex County Council,Third party payment other LAs - Health Overview Scrutiny Com Cont,2042196,202303
Rother District Council,30/03/2023,T32DEPUTYCHF,Deputy Chief Executive,20179,Communications,E1101,Third party payment other LAs,"3,600.00",East Sussex County Council,Third party payment other LAs - Communications-Officer costs,2040579,202301
Rother District Council,27/04/2023,T32DEPUTYCHF,Deputy Chief Executive,20179,Communications,E1101,Third party payment other LAs,"3,600.00",East Sussex County Council,Third party payment other LAs - Communications-Officer costs,2041360,202302
Rother District Council,25/05/2023,T32DEPUTYCHF,Deputy Chief Executive,20179,Communications,E1101,Third party payment other LAs,"3,600.00",East Sussex County Council,Third party payment other LAs - Communications-Officer costs,2041944,202303
Rother District Council,22/06/2023,T32DEPUTYCHF,Deputy Chief Executive,20179,Communications,E1101,Third party payment other LAs,"3,600.00",East Sussex County Council,Third party payment other LAs - Communications-Officer costs,2042222,202303
Rother District Council,05/04/2023,T32DIGCUSSER,Digital & Customer Services,20239,Computer Services,D2513,Hired and Contracted services,"1,908.72",East Sussex County Council,Hired and contracted services - Service fee paid,2040765,202301
Rother District Council,12/05/2023,T32ENVSERV,"Environmental Services, Licensing & Community Safety",20195,Caravan Licences & Travellers,D2513,Hired and Contracted services,"20,109.00",East Sussex County Council,Hired and contracted services - Service fee paid,2041675,202303
Rother District Council,27/06/2023,T32ENVSERV,"Environmental Services, Licensing & Community Safety",32134,EH Pollution R + W Partnership,D2922,Subscriptions,"8,000.00",East Sussex County Council,Subscriptions - Subscription to Organisations,2042327,202303
Rother District Council,07/06/2023,T33HREGEN,Regeneration,20118,Tourism,D2513,Hired and Contracted services,"3,314.10",East Sussex County Council,Hired and contracted services - 1066 Country Walk,2042373,202303
Rother District Council,07/06/2023,T33HREGEN,Regeneration,20118,Tourism,D2513,Hired and Contracted services,"3,000.00",East Sussex County Council,Hired and contracted services - 1066 Country Walk,2042374,202303
Rother District Council,14/06/2023,T33HREGEN,Regeneration,20101,Cultural Development,D2922,Subscriptions,"4,600.00",East Sussex County Council,Subscriptions - Marketing Arts Development Partnership,2042195,202303
Rother District Council,06/04/2023,T33NBHDSERV,Neighbourhood Services,20107,Camber Beach & Foreshore,D2513,Hired and Contracted services,724.00,East Sussex County Council,Hired and contracted services - Filming at Camber-ESCC Share of Income,2040593,202301
Rother District Council,19/04/2023,T33NBHDSERV,Neighbourhood Services,20111,Rye Sports Centre & Pool,D2520,Insurance,"2,813.83",East Sussex County Council,Insurance - Property building Insurance,2040846,202301
Rother District Council,17/05/2023,T33NBHDSERV,Neighbourhood Services,20132,Street & Beach Cleansing,D2513,Hired and Contracted services,157.25,East Sussex County Council,Hired and contracted services - Incineration of dead animals,2041754,202303
Rother District Council,19/05/2023,T33NBHDSERV,Neighbourhood Services,20111,Rye Sports Centre & Pool,D2520,Insurance,"3,308.97",East Sussex County Council,Insurance - Property building Insurance,2042391,202303
Rother District Council,19/05/2023,T33NBHDSERV,Neighbourhood Services,20110,Battle Sports Centre,B1100,Repairs to Premises,"6,000.00",East Sussex County Council,Repairs to Premises - Repairs/Maintenance - various,2042384,202303
Rother District Council,12/04/2023,T33PLANDEV,Planning Development Management,20246,Planning Applications,E1101,Third party payment other LAs,"10,991.00",East Sussex County Council,Third party payment other LAs - Fee Payments to ESCC,2040791,202301
Rother District Council,20/04/2023,T33PLANDEV,Planning Development Management,20259,Land Charges,E1101,Third party payment other LAs,"6,744.80",East Sussex County Council,Third party payment other LAs - Fee Payments to ESCC,2040904,202301
Rother District Council,19/05/2023,T33PLANDEV,Planning Development Management,20246,Planning Applications,D2513,Hired and Contracted services,"8,065.00",East Sussex County Council,Hired and contracted services - Plan-Ecological Advice,2042377,202303
Rother District Council,19/05/2023,T33PLANDEV,Planning Development Management,20259,Land Charges,E1101,Third party payment other LAs,969.00,East Sussex County Council,Third party payment other LAs - Fee Payments to ESCC,2042386,202303
Rother District Council,19/05/2023,T33PLANDEV,Planning Development Management,20259,Land Charges,E1101,Third party payment other LAs,"3,689.00",East Sussex County Council,Third party payment other LAs - Fee Payments to ESCC,2042396,202303
Rother District Council,22/03/2023,T33PLANPOL,Planning Policy,20255,Local Development Framework,D2513,Hired and Contracted services,"20,843.10",East Sussex County Council,Hired and contracted services - LDF Consultancy,2040417,202301
Rother District Council,22/03/2023,T33PLANPOL,Planning Policy,20255,Local Development Framework,D2513,Hired and Contracted services,"47,294.59",East Sussex County Council,Hired and contracted services - LDF Consultancy,2040418,202301
Rother District Council,19/05/2023,T33PLANPOL,Planning Policy,20253,Conservation & Preservation,D2513,Hired and Contracted services,"9,700.00",East Sussex County Council,Hired and contracted services - AONB Management,2042395,202303
Rother District Council,15/02/2023,T33NBHDSERV,Neighbourhood Services,20102,Rother Museum Services,B1100,Repairs to Premises,520.00,East Sussex Lifts Ltd,Repairs to Premises - Lift Repairs/ Maintenance cost,2040576,202301
Rother District Council,03/03/2023,T33NBHDSERV,Neighbourhood Services,20102,Rother Museum Services,B1100,Repairs to Premises,"5,125.00",East Sussex Lifts Ltd,Repairs to Premises - Lift Repairs/ Maintenance cost,2039538,202301
Rother District Council,26/04/2023,T31CHFFIN,Chief Finance Officer (S151),20214,Unapportion Central Overheads,D2513,Hired and Contracted services,"33,811.00",East Sussex Pension Fund,Hired and contracted services - Salary-Pension Fund ERS Unfunded,2041050,202301
Rother District Council,25/05/2023,T31CHFFIN,Chief Finance Officer (S151),20214,Unapportion Central Overheads,D2513,Hired and Contracted services,"34,694.12",East Sussex Pension Fund,Hired and contracted services - Salary-Pension Fund ERS Unfunded,2041695,202302
Rother District Council,17/04/2023,T31DEMSERV,Democratic Services,20163,District Council Elections,D1201,Equipment & Materials,"1,147.50",East Sussex Vision Support,Equipment & Materials - election only - equipment cost,2040825,202301
Rother District Council,05/06/2023,T33NBHDSERV,Neighbourhood Services,20109,Sports Development,D2927,Services Facilitated by External Grants,228.00,Eclipse Scarves Ltd,Services Facilitated by External Grants - Sports Development-Active Rother,2041906,202303
Rother District Council,31/03/2023,T33NBHDSERV,Neighbourhood Services,20114,Bexhill Parks & Open Spaces,D1201,Equipment & Materials,433.58,Eco Pond Ltd,Equipment & materials - Miscellaneous,2040714,202301
Rother District Council,08/09/2021,T31HUMANRES,Human Resources,20176,Administrative Offices - Print Room,B2201,Electricity,829.87,Ecotricity Ltd,Electricity - Electricity Charges,2040650,202301
Rother District Council,04/11/2022,T31HUMANRES,Human Resources,20173,Administrative Offices - Town Hall,B2201,Electricity,"14,341.49",Ecotricity Ltd,Electricity - Electricity Charges,2040318,202301
Rother District Council,04/02/2023,T31HUMANRES,Human Resources,20176,Administrative Offices - Print Room,B2201,Electricity,804.44,Ecotricity Ltd,Electricity - Electricity Charges,2040519,202301
Rother District Council,04/03/2023,T31HUMANRES,Human Resources,20176,Administrative Offices - Print Room,B2201,Electricity,719.84,Ecotricity Ltd,Electricity - Electricity Charges,2040557,202301
Rother District Council,11/04/2023,T31HUMANRES,Human Resources,20173,Administrative Offices - Town Hall,B2201,Electricity,"5,450.14",Ecotricity Ltd,Electricity - Electricity Charges,2040562,202301
Rother District Council,04/05/2023,T31HUMANRES,Human Resources,20173,Administrative Offices - Town Hall,B2201,Electricity,"3,461.32",Ecotricity Ltd,Electricity - Electricity Charges,2041224,202302
Rother District Council,04/06/2023,T31HUMANRES,Human Resources,20173,Administrative Offices - Town Hall,B2201,Electricity,"3,170.20",Ecotricity Ltd,Electricity,2041878,202303
Rother District Council,04/10/2022,T32ENVSERV,"Environmental Services, Licensing & Community Safety",20129,Community Safety - CCTV costs only,B2201,Electricity,60.69,Ecotricity Ltd,Electricity - Electricity Charges,2040312,202301
Rother District Council,08/01/2023,T32ENVSERV,"Environmental Services, Licensing & Community Safety",20129,Community Safety - CCTV costs only,B2201,Electricity,180.22,Ecotricity Ltd,Electricity - Electricity Charges,2040496,202301
Rother District Council,07/02/2023,T32ENVSERV,"Environmental Services, Licensing & Community Safety",20129,Community Safety - CCTV costs only,B2201,Electricity,175.38,Ecotricity Ltd,Electricity - Electricity Charges,2040531,202301
Rother District Council,04/11/2022,T33HOUSING,Housing,20261,"TA Purchases (prev - 41 Jameson Mews, Bexhill on Sea)",B2201,Electricity,380.66,Ecotricity Ltd,Electricity - Electricity Charges,2040347,202301
Rother District Council,04/12/2022,T33HOUSING,Housing,20261,"TA Purchases (prev - 41 Jameson Mews, Bexhill on Sea)",B2201,Electricity,408.49,Ecotricity Ltd,Electricity - Electricity Charges,2040438,202301
Rother District Council,04/01/2023,T33HOUSING,Housing,20261,"TA Purchases (prev - 41 Jameson Mews, Bexhill on Sea)",B2201,Electricity,300.95,Ecotricity Ltd,Electricity - Electricity Charges,2040443,202301
Rother District Council,08/01/2023,T33HOUSING,Housing,20261,"TA Purchases (prev - 41 Jameson Mews, Bexhill on Sea)",B2201,Electricity,74.84,Ecotricity Ltd,Electricity - Electricity Charges,2040497,202301
Rother District Council,04/02/2023,T33HOUSING,Housing,20261,"TA Purchases (prev - 41 Jameson Mews, Bexhill on Sea)",B2201,Electricity,307.02,Ecotricity Ltd,Electricity - Electricity Charges,2040522,202301
Rother District Council,07/02/2023,T33HOUSING,Housing,20261,"TA Purchases (prev - 41 Jameson Mews, Bexhill on Sea)",B2201,Electricity,71.77,Ecotricity Ltd,Electricity - Electricity Charges,2040529,202301
Rother District Council,04/03/2023,T33HOUSING,Housing,20261,"TA Purchases (prev - 41 Jameson Mews, Bexhill on Sea)",B2201,Electricity,287.48,Ecotricity Ltd,Electricity - Electricity Charges,2040559,202301
Rother District Council,04/11/2022,T33HREGEN,Regeneration,20145,Maintenance Services,B2201,Electricity,165.50,Ecotricity Ltd,Electricity - Electricity Charges,2040346,202301
Rother District Council,04/01/2023,T33HREGEN,Regeneration,20155,Investment properties,B2201,Electricity,55.63,Ecotricity Ltd,Electricity - Electricity Charges,2040444,202301
Rother District Council,04/01/2023,T33HREGEN,Regeneration,20148,Misc Land & Buildings,B2201,Electricity,181.83,Ecotricity Ltd,Electricity - Electricity Charges,2040493,202301
Rother District Council,04/01/2023,T33HREGEN,Regeneration,20145,Maintenance Services,B2201,Electricity,580.72,Ecotricity Ltd,Electricity - Electricity Charges,2040494,202301
Rother District Council,04/02/2023,T33HREGEN,Regeneration,20155,Investment properties,B2201,Electricity,53.49,Ecotricity Ltd,Electricity - Electricity Charges,2040514,202301
Rother District Council,04/02/2023,T33HREGEN,Regeneration,20148,Misc Land & Buildings,B2201,Electricity,194.15,Ecotricity Ltd,Electricity - Electricity Charges,2040518,202301
Rother District Council,04/02/2023,T33HREGEN,Regeneration,20145,Maintenance Services,B2201,Electricity,"1,533.95",Ecotricity Ltd,Electricity - Electricity Charges,2040520,202301
Rother District Council,04/02/2023,T33HREGEN,Regeneration,20154,Committee Property Account,B2201,Electricity,75.92,Ecotricity Ltd,Electricity - Electricity Charges,2040521,202301
Rother District Council,04/02/2023,T33HREGEN,Regeneration,20154,Committee Property Account,B2201,Electricity,75.91,Ecotricity Ltd,Electricity - Electricity Charges,2040521,202301
Rother District Council,04/02/2023,T33HREGEN,Regeneration,20154,Committee Property Account,B2201,Electricity,75.92,Ecotricity Ltd,Electricity - Electricity Charges,2040521,202301
Rother District Council,07/02/2023,T33HREGEN,Regeneration,20154,Committee Property Account,B2201,Electricity,68.53,Ecotricity Ltd,Electricity - Electricity Charges,2040525,202301
Rother District Council,07/02/2023,T33HREGEN,Regeneration,20154,Committee Property Account,B2201,Electricity,68.53,Ecotricity Ltd,Electricity - Electricity Charges,2040525,202301
Rother District Council,07/02/2023,T33HREGEN,Regeneration,20154,Committee Property Account,B2201,Electricity,68.53,Ecotricity Ltd,Electricity - Electricity Charges,2040525,202301
Rother District Council,07/02/2023,T33HREGEN,Regeneration,20154,Committee Property Account,B2201,Electricity,68.53,Ecotricity Ltd,Electricity - Electricity Charges,2040525,202301
Rother District Council,07/02/2023,T33HREGEN,Regeneration,20154,Committee Property Account,B2201,Electricity,"3,083.71",Ecotricity Ltd,Electricity - Electricity Charges,2040525,202301
Rother District Council,04/03/2023,T33HREGEN,Regeneration,20155,Investment properties,B2201,Electricity,52.68,Ecotricity Ltd,Electricity - Electricity Charges,2040532,202301
Rother District Council,04/03/2023,T33HREGEN,Regeneration,20154,Committee Property Account,B2201,Electricity,79.53,Ecotricity Ltd,Electricity - Electricity Charges,2040533,202301
Rother District Council,04/03/2023,T33HREGEN,Regeneration,20154,Committee Property Account,B2201,Electricity,79.53,Ecotricity Ltd,Electricity - Electricity Charges,2040533,202301
Rother District Council,04/03/2023,T33HREGEN,Regeneration,20154,Committee Property Account,B2201,Electricity,79.53,Ecotricity Ltd,Electricity - Electricity Charges,2040533,202301
Rother District Council,11/04/2023,T33HREGEN,Regeneration,20153,"Elva Business Centre, Bexhill",B2201,Electricity,"3,707.10",Ecotricity Ltd,Electricity - Electricity Charges,2040563,202301
Rother District Council,04/05/2023,T33HREGEN,Regeneration,20153,"Elva Business Centre, Bexhill",B2201,Electricity,"2,344.67",Ecotricity Ltd,Electricity - Electricity Charges,2041223,202302
Rother District Council,04/06/2023,T33HREGEN,Regeneration,20153,"Elva Business Centre, Bexhill",B2201,Electricity,"2,104.47",Ecotricity Ltd,Electricity - Electricity Charges,2041766,202303
Rother District Council,04/08/2022,T33NBHDSERV,Neighbourhood Services,20128,Public Conveniences,B2201,Electricity,11.54,Ecotricity Ltd,Electricity - Electricity Charges,2040310,202301
Rother District Council,04/09/2022,T33NBHDSERV,Neighbourhood Services,20128,Public Conveniences,B2201,Electricity,11.54,Ecotricity Ltd,Electricity - Electricity Charges,2040311,202301
Rother District Council,04/10/2022,T33NBHDSERV,Neighbourhood Services,20137,Car Parks,B2201,Electricity,8.09,Ecotricity Ltd,Electricity - Electricity Charges,2040312,202301
Rother District Council,04/10/2022,T33NBHDSERV,Neighbourhood Services,20138,Residual Highway Services,B2201,Electricity,6.73,Ecotricity Ltd,Electricity - Electricity Charges,2040312,202301
Rother District Council,04/10/2022,T33NBHDSERV,Neighbourhood Services,20128,Public Conveniences,B2201,Electricity,11.17,Ecotricity Ltd,Electricity - Electricity Charges,2040313,202301
Rother District Council,03/11/2022,T33NBHDSERV,Neighbourhood Services,20114,Bexhill Parks & Open Spaces,B2201,Electricity,27.69,Ecotricity Ltd,Electricity - Electricity Charges,2040314,202301
Rother District Council,03/11/2022,T33NBHDSERV,Neighbourhood Services,20128,Public Conveniences,B2201,Electricity,6.93,Ecotricity Ltd,Electricity - Electricity Charges,2040314,202301
Rother District Council,03/11/2022,T33NBHDSERV,Neighbourhood Services,20114,Bexhill Parks & Open Spaces,B2201,Electricity,13.29,Ecotricity Ltd,Electricity - Electricity Charges,2040315,202301
Rother District Council,03/11/2022,T33NBHDSERV,Neighbourhood Services,20128,Public Conveniences,B2201,Electricity,3.31,Ecotricity Ltd,Electricity - Electricity Charges,2040315,202301
Rother District Council,03/11/2022,T33NBHDSERV,Neighbourhood Services,20114,Bexhill Parks & Open Spaces,B2201,Electricity,14.42,Ecotricity Ltd,Electricity - Electricity Charges,2040316,202301
Rother District Council,03/11/2022,T33NBHDSERV,Neighbourhood Services,20128,Public Conveniences,B2201,Electricity,3.61,Ecotricity Ltd,Electricity - Electricity Charges,2040316,202301
Rother District Council,03/11/2022,T33NBHDSERV,Neighbourhood Services,20114,Bexhill Parks & Open Spaces,B2201,Electricity,13.72,Ecotricity Ltd,Electricity - Electricity Charges,2040317,202301
Rother District Council,03/11/2022,T33NBHDSERV,Neighbourhood Services,20128,Public Conveniences,B2201,Electricity,3.43,Ecotricity Ltd,Electricity - Electricity Charges,2040317,202301
Rother District Council,04/11/2022,T33NBHDSERV,Neighbourhood Services,20128,Public Conveniences,B2201,Electricity,632.34,Ecotricity Ltd,Electricity - Electricity Charges,2040320,202301
Rother District Council,04/11/2022,T33NBHDSERV,Neighbourhood Services,20128,Public Conveniences,B2201,Electricity,370.36,Ecotricity Ltd,Electricity - Electricity Charges,2040327,202301
Rother District Council,04/11/2022,T33NBHDSERV,Neighbourhood Services,20128,Public Conveniences,B2201,Electricity,189.32,Ecotricity Ltd,Electricity - Electricity Charges,2040331,202301
Rother District Council,04/11/2022,T33NBHDSERV,Neighbourhood Services,20128,Public Conveniences,B2201,Electricity,312.63,Ecotricity Ltd,Electricity - Electricity Charges,2040344,202301
Rother District Council,28/11/2022,T33NBHDSERV,Neighbourhood Services,20114,Bexhill Parks & Open Spaces,B2201,Electricity,31.96,Ecotricity Ltd,Electricity - Electricity Charges,2040354,202301
Rother District Council,28/11/2022,T33NBHDSERV,Neighbourhood Services,20128,Public Conveniences,B2201,Electricity,7.99,Ecotricity Ltd,Electricity - Electricity Charges,2040354,202301
Rother District Council,28/11/2022,T33NBHDSERV,Neighbourhood Services,20114,Bexhill Parks & Open Spaces,B2201,Electricity,137.57,Ecotricity Ltd,Electricity - Electricity Charges,2040371,202301
Rother District Council,28/11/2022,T33NBHDSERV,Neighbourhood Services,20128,Public Conveniences,B2201,Electricity,34.39,Ecotricity Ltd,Electricity - Electricity Charges,2040371,202301
Rother District Council,28/11/2022,T33NBHDSERV,Neighbourhood Services,20114,Bexhill Parks & Open Spaces,B2201,Electricity,113.89,Ecotricity Ltd,Electricity - Electricity Charges,2040372,202301
Rother District Council,28/11/2022,T33NBHDSERV,Neighbourhood Services,20128,Public Conveniences,B2201,Electricity,28.47,Ecotricity Ltd,Electricity - Electricity Charges,2040372,202301
Rother District Council,28/11/2022,T33NBHDSERV,Neighbourhood Services,20114,Bexhill Parks & Open Spaces,B2201,Electricity,170.02,Ecotricity Ltd,Electricity - Electricity Charges,2040374,202301
Rother District Council,28/11/2022,T33NBHDSERV,Neighbourhood Services,20128,Public Conveniences,B2201,Electricity,72.86,Ecotricity Ltd,Electricity - Electricity Charges,2040374,202301
Rother District Council,28/11/2022,T33NBHDSERV,Neighbourhood Services,20114,Bexhill Parks & Open Spaces,B2201,Electricity,96.59,Ecotricity Ltd,Electricity - Electricity Charges,2040376,202301
Rother District Council,28/11/2022,T33NBHDSERV,Neighbourhood Services,20128,Public Conveniences,B2201,Electricity,24.15,Ecotricity Ltd,Electricity - Electricity Charges,2040376,202301
Rother District Council,28/11/2022,T33NBHDSERV,Neighbourhood Services,20114,Bexhill Parks & Open Spaces,B2201,Electricity,24.62,Ecotricity Ltd,Electricity - Electricity Charges,2040377,202301
Rother District Council,28/11/2022,T33NBHDSERV,Neighbourhood Services,20128,Public Conveniences,B2201,Electricity,6.16,Ecotricity Ltd,Electricity - Electricity Charges,2040377,202301
Rother District Council,28/11/2022,T33NBHDSERV,Neighbourhood Services,20114,Bexhill Parks & Open Spaces,B2201,Electricity,75.61,Ecotricity Ltd,Electricity - Electricity Charges,2040379,202301
Rother District Council,28/11/2022,T33NBHDSERV,Neighbourhood Services,20128,Public Conveniences,B2201,Electricity,18.90,Ecotricity Ltd,Electricity - Electricity Charges,2040379,202301
Rother District Council,28/11/2022,T33NBHDSERV,Neighbourhood Services,20114,Bexhill Parks & Open Spaces,B2201,Electricity,77.37,Ecotricity Ltd,Electricity - Electricity Charges,2040381,202301
Rother District Council,28/11/2022,T33NBHDSERV,Neighbourhood Services,20128,Public Conveniences,B2201,Electricity,19.34,Ecotricity Ltd,Electricity - Electricity Charges,2040381,202301
Rother District Council,28/11/2022,T33NBHDSERV,Neighbourhood Services,20114,Bexhill Parks & Open Spaces,B2201,Electricity,24.86,Ecotricity Ltd,Electricity - Electricity Charges,2040385,202301
Rother District Council,28/11/2022,T33NBHDSERV,Neighbourhood Services,20128,Public Conveniences,B2201,Electricity,6.21,Ecotricity Ltd,Electricity - Electricity Charges,2040385,202301
Rother District Council,28/11/2022,T33NBHDSERV,Neighbourhood Services,20114,Bexhill Parks & Open Spaces,B2201,Electricity,21.46,Ecotricity Ltd,Electricity - Electricity Charges,2040386,202301
Rother District Council,28/11/2022,T33NBHDSERV,Neighbourhood Services,20128,Public Conveniences,B2201,Electricity,5.37,Ecotricity Ltd,Electricity - Electricity Charges,2040386,202301
Rother District Council,28/11/2022,T33NBHDSERV,Neighbourhood Services,20114,Bexhill Parks & Open Spaces,B2201,Electricity,21.11,Ecotricity Ltd,Electricity - Electricity Charges,2040389,202301
Rother District Council,28/11/2022,T33NBHDSERV,Neighbourhood Services,20128,Public Conveniences,B2201,Electricity,5.28,Ecotricity Ltd,Electricity - Electricity Charges,2040389,202301
Rother District Council,28/11/2022,T33NBHDSERV,Neighbourhood Services,20114,Bexhill Parks & Open Spaces,B2201,Electricity,22.42,Ecotricity Ltd,Electricity - Electricity Charges,2040391,202301
Rother District Council,28/11/2022,T33NBHDSERV,Neighbourhood Services,20128,Public Conveniences,B2201,Electricity,5.60,Ecotricity Ltd,Electricity - Electricity Charges,2040391,202301
Rother District Council,28/11/2022,T33NBHDSERV,Neighbourhood Services,20114,Bexhill Parks & Open Spaces,B2201,Electricity,53.46,Ecotricity Ltd,Electricity - Electricity Charges,2040394,202301
Rother District Council,28/11/2022,T33NBHDSERV,Neighbourhood Services,20128,Public Conveniences,B2201,Electricity,13.37,Ecotricity Ltd,Electricity - Electricity Charges,2040394,202301
Rother District Council,04/12/2022,T33NBHDSERV,Neighbourhood Services,20107,Camber Beach & Foreshore,B2201,Electricity,239.95,Ecotricity Ltd,Electricity - Electricity Charges,2040398,202301
Rother District Council,04/12/2022,T33NBHDSERV,Neighbourhood Services,20128,Public Conveniences,B2201,Electricity,369.96,Ecotricity Ltd,Electricity - Electricity Charges,2040399,202301
Rother District Council,04/12/2022,T33NBHDSERV,Neighbourhood Services,20128,Public Conveniences,B2201,Electricity,262.66,Ecotricity Ltd,Electricity - Electricity Charges,2040422,202301
Rother District Council,04/12/2022,T33NBHDSERV,Neighbourhood Services,20128,Public Conveniences,B2201,Electricity,144.41,Ecotricity Ltd,Electricity - Electricity Charges,2040432,202301
Rother District Council,04/12/2022,T33NBHDSERV,Neighbourhood Services,20128,Public Conveniences,B2201,Electricity,666.14,Ecotricity Ltd,Electricity - Electricity Charges,2040433,202301
Rother District Council,04/12/2022,T33NBHDSERV,Neighbourhood Services,20114,Bexhill Parks & Open Spaces,B2201,Electricity,282.15,Ecotricity Ltd,Electricity - Electricity Charges,2040441,202301
Rother District Council,04/01/2023,T33NBHDSERV,Neighbourhood Services,20128,Public Conveniences,B2201,Electricity,55.64,Ecotricity Ltd,Electricity - Electricity Charges,2040444,202301
Rother District Council,04/01/2023,T33NBHDSERV,Neighbourhood Services,20128,Public Conveniences,B2201,Electricity,117.50,Ecotricity Ltd,Electricity - Electricity Charges,2040446,202301
Rother District Council,04/01/2023,T33NBHDSERV,Neighbourhood Services,20114,Bexhill Parks & Open Spaces,B2201,Electricity,195.15,Ecotricity Ltd,Electricity - Electricity Charges,2040447,202301
Rother District Council,04/01/2023,T33NBHDSERV,Neighbourhood Services,20107,Camber Beach & Foreshore,B2201,Electricity,152.50,Ecotricity Ltd,Electricity - Electricity Charges,2040449,202301
Rother District Council,04/01/2023,T33NBHDSERV,Neighbourhood Services,20128,Public Conveniences,B2201,Electricity,247.28,Ecotricity Ltd,Electricity - Electricity Charges,2040451,202301
Rother District Council,04/01/2023,T33NBHDSERV,Neighbourhood Services,20128,Public Conveniences,B2201,Electricity,383.42,Ecotricity Ltd,Electricity - Electricity Charges,2040452,202301
Rother District Council,04/01/2023,T33NBHDSERV,Neighbourhood Services,20128,Public Conveniences,B2201,Electricity,112.10,Ecotricity Ltd,Electricity - Electricity Charges,2040453,202301
Rother District Council,04/01/2023,T33NBHDSERV,Neighbourhood Services,20128,Public Conveniences,B2201,Electricity,31.00,Ecotricity Ltd,Electricity - Electricity Charges,2040454,202301
Rother District Council,04/01/2023,T33NBHDSERV,Neighbourhood Services,20128,Public Conveniences,B2201,Electricity,469.93,Ecotricity Ltd,Electricity - Electricity Charges,2040489,202301
Rother District Council,04/01/2023,T33NBHDSERV,Neighbourhood Services,20128,Public Conveniences,B2201,Electricity,253.05,Ecotricity Ltd,Electricity - Electricity Charges,2040490,202301
Rother District Council,04/01/2023,T33NBHDSERV,Neighbourhood Services,20128,Public Conveniences,B2201,Electricity,181.83,Ecotricity Ltd,Electricity - Electricity Charges,2040491,202301
Rother District Council,04/01/2023,T33NBHDSERV,Neighbourhood Services,20128,Public Conveniences,B2201,Electricity,474.63,Ecotricity Ltd,Electricity - Electricity Charges,2040492,202301
Rother District Council,08/01/2023,T33NBHDSERV,Neighbourhood Services,20128,Public Conveniences,B2201,Electricity,79.91,Ecotricity Ltd,Electricity - Electricity Charges,2040495,202301
Rother District Council,08/01/2023,T33NBHDSERV,Neighbourhood Services,20137,Car Parks,B2201,Electricity,24.04,Ecotricity Ltd,Electricity - Electricity Charges,2040496,202301
Rother District Council,08/01/2023,T33NBHDSERV,Neighbourhood Services,20138,Residual Highway Services,B2201,Electricity,20.00,Ecotricity Ltd,Electricity - Electricity Charges,2040496,202301
Rother District Council,04/02/2023,T33NBHDSERV,Neighbourhood Services,20128,Public Conveniences,B2201,Electricity,242.28,Ecotricity Ltd,Electricity - Electricity Charges,2040498,202301
Rother District Council,04/02/2023,T33NBHDSERV,Neighbourhood Services,20114,Bexhill Parks & Open Spaces,B2201,Electricity,735.38,Ecotricity Ltd,Electricity - Electricity Charges,2040502,202301
Rother District Council,04/02/2023,T33NBHDSERV,Neighbourhood Services,20128,Public Conveniences,B2201,Electricity,314.99,Ecotricity Ltd,Electricity - Electricity Charges,2040504,202301
Rother District Council,04/02/2023,T33NBHDSERV,Neighbourhood Services,20128,Public Conveniences,B2201,Electricity,31.00,Ecotricity Ltd,Electricity - Electricity Charges,2040510,202301
Rother District Council,04/02/2023,T33NBHDSERV,Neighbourhood Services,20128,Public Conveniences,B2201,Electricity,484.33,Ecotricity Ltd,Electricity - Electricity Charges,2040512,202301
Rother District Council,04/02/2023,T33NBHDSERV,Neighbourhood Services,20128,Public Conveniences,B2201,Electricity,131.14,Ecotricity Ltd,Electricity - Electricity Charges,2040513,202301
Rother District Council,04/02/2023,T33NBHDSERV,Neighbourhood Services,20128,Public Conveniences,B2201,Electricity,53.49,Ecotricity Ltd,Electricity - Electricity Charges,2040514,202301
Rother District Council,04/02/2023,T33NBHDSERV,Neighbourhood Services,20128,Public Conveniences,B2201,Electricity,267.16,Ecotricity Ltd,Electricity - Electricity Charges,2040515,202301
Rother District Council,04/02/2023,T33NBHDSERV,Neighbourhood Services,20128,Public Conveniences,B2201,Electricity,482.49,Ecotricity Ltd,Electricity - Electricity Charges,2040516,202301
Rother District Council,04/02/2023,T33NBHDSERV,Neighbourhood Services,20128,Public Conveniences,B2201,Electricity,184.21,Ecotricity Ltd,Electricity - Electricity Charges,2040517,202301
Rother District Council,04/02/2023,T33NBHDSERV,Neighbourhood Services,20108,Bexhill Promenade & Foreshore,B2201,Electricity,75.92,Ecotricity Ltd,Electricity - Electricity Charges,2040521,202301
Rother District Council,04/02/2023,T33NBHDSERV,Neighbourhood Services,20114,Bexhill Parks & Open Spaces,B2201,Electricity,173.66,Ecotricity Ltd,Electricity - Electricity Charges,2040523,202301
Rother District Council,07/02/2023,T33NBHDSERV,Neighbourhood Services,20128,Public Conveniences,B2201,Electricity,80.09,Ecotricity Ltd,Electricity - Electricity Charges,2040524,202301
Rother District Council,07/02/2023,T33NBHDSERV,Neighbourhood Services,20108,Bexhill Promenade & Foreshore,B2201,Electricity,34.26,Ecotricity Ltd,Electricity - Electricity Charges,2040525,202301
Rother District Council,07/02/2023,T33NBHDSERV,Neighbourhood Services,20108,Bexhill Promenade & Foreshore,B2201,Electricity,34.26,Ecotricity Ltd,Electricity - Electricity Charges,2040525,202301
Rother District Council,07/02/2023,T33NBHDSERV,Neighbourhood Services,20137,Car Parks,B2201,Electricity,75.11,Ecotricity Ltd,Electricity - Electricity Charges,2040527,202301
Rother District Council,07/02/2023,T33NBHDSERV,Neighbourhood Services,20138,Residual Highway Services,B2201,Electricity,11.86,Ecotricity Ltd,Electricity - Electricity Charges,2040527,202301
Rother District Council,07/02/2023,T33NBHDSERV,Neighbourhood Services,20108,Bexhill Promenade & Foreshore,B2201,Electricity,11.86,Ecotricity Ltd,Electricity - Electricity Charges,2040527,202301
Rother District Council,07/02/2023,T33NBHDSERV,Neighbourhood Services,20137,Car Parks,B2201,Electricity,23.40,Ecotricity Ltd,Electricity - Electricity Charges,2040531,202301
Rother District Council,07/02/2023,T33NBHDSERV,Neighbourhood Services,20138,Residual Highway Services,B2201,Electricity,19.47,Ecotricity Ltd,Electricity - Electricity Charges,2040531,202301
Rother District Council,04/03/2023,T33NBHDSERV,Neighbourhood Services,20128,Public Conveniences,B2201,Electricity,52.68,Ecotricity Ltd,Electricity - Electricity Charges,2040532,202301
Rother District Council,04/03/2023,T33NBHDSERV,Neighbourhood Services,20108,Bexhill Promenade & Foreshore,B2201,Electricity,79.52,Ecotricity Ltd,Electricity - Electricity Charges,2040533,202301
Rother District Council,04/03/2023,T33NBHDSERV,Neighbourhood Services,20107,Camber Beach & Foreshore,B2201,Electricity,195.85,Ecotricity Ltd,Electricity - Electricity Charges,2040534,202301
Rother District Council,04/03/2023,T33NBHDSERV,Neighbourhood Services,20114,Bexhill Parks & Open Spaces,B2201,Electricity,691.93,Ecotricity Ltd,Electricity - Electricity Charges,2040536,202301
Rother District Council,04/03/2023,T33NBHDSERV,Neighbourhood Services,20128,Public Conveniences,B2201,Electricity,74.71,Ecotricity Ltd,Electricity - Electricity Charges,2040537,202301
Rother District Council,04/03/2023,T33NBHDSERV,Neighbourhood Services,20128,Public Conveniences,B2201,Electricity,28.00,Ecotricity Ltd,Electricity - Electricity Charges,2040538,202301
Rother District Council,04/03/2023,T33NBHDSERV,Neighbourhood Services,20128,Public Conveniences,B2201,Electricity,121.47,Ecotricity Ltd,Electricity - Electricity Charges,2040539,202301
Rother District Council,04/03/2023,T33NBHDSERV,Neighbourhood Services,20128,Public Conveniences,B2201,Electricity,222.33,Ecotricity Ltd,Electricity - Electricity Charges,2040541,202301
Rother District Council,04/03/2023,T33NBHDSERV,Neighbourhood Services,20128,Public Conveniences,B2201,Electricity,285.46,Ecotricity Ltd,Electricity - Electricity Charges,2040542,202301
Rother District Council,04/03/2023,T33NBHDSERV,Neighbourhood Services,20128,Public Conveniences,B2201,Electricity,167.05,Ecotricity Ltd,Electricity - Electricity Charges,2040543,202301
Rother District Council,04/03/2023,T33NBHDSERV,Neighbourhood Services,20128,Public Conveniences,B2201,Electricity,100.95,Ecotricity Ltd,Electricity - Electricity Charges,2040552,202301
Rother District Council,04/03/2023,T33NBHDSERV,Neighbourhood Services,20128,Public Conveniences,B2201,Electricity,219.53,Ecotricity Ltd,Electricity - Electricity Charges,2040554,202301
Rother District Council,04/03/2023,T33NBHDSERV,Neighbourhood Services,20128,Public Conveniences,B2201,Electricity,425.16,Ecotricity Ltd,Electricity - Electricity Charges,2040556,202301
Rother District Council,04/03/2023,T33NBHDSERV,Neighbourhood Services,20114,Bexhill Parks & Open Spaces,B2201,Electricity,173.94,Ecotricity Ltd,Electricity - Electricity Charges,2040558,202301
Rother District Council,04/04/2023,T33NBHDSERV,Neighbourhood Services,20125,Coast Protection,B2201,Electricity,"1,786.15",Ecotricity Ltd,Electricity - Electricity Charges,2040561,202301
Rother District Council,04/05/2023,T33NBHDSERV,Neighbourhood Services,20125,Coast Protection,B2201,Electricity,"1,477.92",Ecotricity Ltd,Electricity - Electricity Charges,2041225,202302
Rother District Council,04/06/2023,T33NBHDSERV,Neighbourhood Services,20125,Coast Protection,B2201,Electricity,"1,461.37",Ecotricity Ltd,Electricity - Electricity Charges,2041767,202303
Rother District Council,01/05/2023,T33HOUSING,Housing,20304,Housing First,B2201,Electricity,348.48,EDF Energy Customers plc,Electricity - Electricity Charges,2041348,202302
Rother District Council,09/05/2023,T33HOUSING,Housing,20304,Housing First,B2202,Gas,5.73,EDF Energy Customers plc,Gas - Gas Charges,2041585,202302
Rother District Council,09/05/2023,T33HOUSING,Housing,20304,Housing First,B2202,Gas,144.77,EDF Energy Customers plc,Gas - Gas Charges,2041585,202302
Rother District Council,11/05/2023,T33HOUSING,Housing,20304,Housing First,B2201,Electricity,329.42,EDF Energy Customers plc,Electricity - Electricity Charges,2041592,202302
Rother District Council,12/06/2023,T33HOUSING,Housing,20304,Housing First,B2201,Electricity,10.00,EDF Energy Customers plc,Electricity,2042091,202303
Rother District Council,12/06/2023,T33HOUSING,Housing,20304,Housing First,B2201,Electricity,291.44,EDF Energy Customers plc,Electricity - Electricity Charges,2042091,202303
Rother District Council,23/05/2023,T3ZCAPITAL,Capital,70751,Capital - Temporary Accommodation,N1001,Land & Property Purchase,"280,000.00",Edkins Millward Property Lawyers Ltd,Land & Property Purchase,2042289,202303
Rother District Council,23/02/2023,T33NBHDSERV,Neighbourhood Services,20123,Cemeteries,B1100,Repairs to Premises,"5,530.00",Elite Arborists,Repairs to Premises - Parks - Tree Works,2041371,202302
Rother District Council,30/03/2023,T33NBHDSERV,Neighbourhood Services,20124,Churchyards,B1100,Repairs to Premises,400.00,Elite Arborists,Repairs to Premises - Parks - Tree Works,2040484,202301
Rother District Council,30/03/2023,T33NBHDSERV,Neighbourhood Services,20114,Bexhill Parks & Open Spaces,B1100,Repairs to Premises,"1,382.50",Elite Arborists,Repairs to Premises - Parks - Tree Works,2041372,202302
Rother District Council,11/04/2023,T33NBHDSERV,Neighbourhood Services,20123,Cemeteries,B1100,Repairs to Premises,"1,450.00",Elite Arborists,Repairs to Premises - Parks - Tree Works,2041305,202302
Rother District Council,21/04/2023,T33NBHDSERV,Neighbourhood Services,20114,Bexhill Parks & Open Spaces,B1100,Repairs to Premises,600.00,Elite Arborists,Repairs to Premises - Parks - Tree Works,2041373,202302
Rother District Council,05/05/2023,T33NBHDSERV,Neighbourhood Services,20114,Bexhill Parks & Open Spaces,B1100,Repairs to Premises,"6,122.50",Elite Arborists,Repairs to Premises - Parks - Tree Works,2041350,202302
Rother District Council,12/05/2023,T33NBHDSERV,Neighbourhood Services,20114,Bexhill Parks & Open Spaces,B1100,Repairs to Premises,"1,382.50",Elite Arborists,Repairs to Premises - Parks - Tree Works,2041651,202303
Rother District Council,26/05/2023,T33NBHDSERV,Neighbourhood Services,20114,Bexhill Parks & Open Spaces,B1100,Repairs to Premises,"4,345.00",Elite Arborists,Repairs to Premises - Parks - Tree Works,2041956,202303
Rother District Council,04/04/2023,T3ZCAPITAL,Capital,70751,Capital - Temporary Accommodation,N1001,Land & Property Purchase,"265,000.00",Emin Read Solicitors,Land & Property Purchase,2042287,202303
Rother District Council,06/04/2023,T31DEMSERV,Democratic Services,20156,Representing Local Interest,D2513,Hired and Contracted services,345.00,Empress Coaches Ltd,Hired and contracted services - Coach Hire for Planning Site Visits,2040565,202301
Rother District Council,14/06/2023,T31DEMSERV,Democratic Services,20156,Representing Local Interest,D2513,Hired and Contracted services,345.00,Empress Coaches Ltd,Hired and contracted services - Coach Hire for Planning Site Visits,2042399,202303
Rother District Council,24/04/2023,T32ENVSERV,"Environmental Services, Licensing & Community Safety",32134,EH Pollution R + W Partnership,D1201,Equipment & Materials,450.00,Enviro Technology Services Ltd,Equipment & Materials - EnvH- Pollution Equipment,2040949,202301
Rother District Council,10/03/2023,T32ENVSERV,"Environmental Services, Licensing & Community Safety",32134,EH Pollution R + W Partnership,D2922,Subscriptions,335.00,Environmental Protection UK,Subscriptions - Subscription to Organisations,2041645,202303
Rother District Council,06/03/2023,T33HOUSING,Housing,20304,Housing First,B2201,Electricity,32.70,EON Next,Electricity - Electricity Charges,2040304,202301
Rother District Council,01/04/2023,T33HOUSING,Housing,20261,"TA Purchases (prev - 41 Jameson Mews, Bexhill on Sea)",B2201,Electricity,115.27,EON Next,Electricity - Electricity Charges,2040667,202301
Rother District Council,01/04/2023,T33HOUSING,Housing,20261,"TA Purchases (prev - 41 Jameson Mews, Bexhill on Sea)",B2201,Electricity,10.00,EON Next,Electricity - Electricity Charges,2040667,202301
Rother District Council,06/04/2023,T33HOUSING,Housing,20304,Housing First,B2201,Electricity,37.88,EON Next,Electricity - Electricity Charges,2040648,202301
Rother District Council,09/04/2023,T33HOUSING,Housing,20261,"TA Purchases (prev - 41 Jameson Mews, Bexhill on Sea)",B2201,Electricity,0.89,EON Next,Electricity - Electricity Charges,2040798,202301
Rother District Council,09/04/2023,T33HOUSING,Housing,20261,"TA Purchases (prev - 41 Jameson Mews, Bexhill on Sea)",B2202,Gas,1.39,EON Next,Gas - Gas Charges,2040798,202301
Rother District Council,01/05/2023,T33HOUSING,Housing,20261,"TA Purchases (prev - 41 Jameson Mews, Bexhill on Sea)",B2202,Gas,80.16,EON Next,Gas - Gas Charges,2041366,202302
Rother District Council,01/05/2023,T33HOUSING,Housing,20261,"TA Purchases (prev - 41 Jameson Mews, Bexhill on Sea)",B2202,Gas,10.00,EON Next,Interest Paid - Late Invoice Payment Fee,2041366,202302
Rother District Council,05/05/2023,T33HOUSING,Housing,20261,"TA Purchases (prev - 41 Jameson Mews, Bexhill on Sea)",B2201,Electricity,34.50,EON Next,Electricity,2041583,202302
Rother District Council,05/05/2023,T33HOUSING,Housing,20261,"TA Purchases (prev - 41 Jameson Mews, Bexhill on Sea)",B2201,Electricity,-18.10,EON Next,Electricity,2041583,202302
Rother District Council,05/05/2023,T33HOUSING,Housing,20261,"TA Purchases (prev - 41 Jameson Mews, Bexhill on Sea)",B2202,Gas,19.95,EON Next,Gas - Gas Charges,2041583,202302
Rother District Council,05/05/2023,T33HOUSING,Housing,20261,"TA Purchases (prev - 41 Jameson Mews, Bexhill on Sea)",B2202,Gas,-19.99,EON Next,Gas - Gas Charges,2041583,202302
Rother District Council,06/05/2023,T33HOUSING,Housing,20304,Housing First,B2201,Electricity,48.99,EON Next,Electricity - Electricity Charges,2041442,202302
Rother District Council,21/05/2023,T33HOUSING,Housing,20304,Housing First,B2201,Electricity,117.06,EON Next,Electricity - Electricity Charges,2041729,202303
Rother District Council,03/06/2023,T3ZCAPITAL,Capital,70751,Capital - Temporary Accommodation,N1005,Other fees,255.00,Erica Slotnick t/a Blusher Brush,Other Fees - Capital exp Std VAT,2041981,202303
Rother District Council,04/04/2023,T33PLANDEV,Planning Development Management,20246,Planning Applications,D2513,Hired and Contracted services,"2,950.00",ET Planning Ltd,Hired and contracted services - Valuation Services,2040508,202301
Rother District Council,30/05/2023,T341PRECEPTS,Precepts,42203,Parish Precepts,F1201,Parish precepts,"35,800.00",Etchingham Parish Council,Parish precepts,2042061,202303
Rother District Council,30/03/2023,T31DEMSERV,Democratic Services,20163,District Council Elections,D2513,Hired and Contracted services,275.00,Etchingham Trust for Sports and Recreation,Hire of Premises (RDC) - Hire of Premises (RDC),2041755,202303
Rother District Council,06/04/2023,T33NBHDSERV,Neighbourhood Services,20114,Bexhill Parks & Open Spaces,D2513,Hired and Contracted services,"1,296.38",EW Burrow Nursery Ltd t/a English Woodlands,Hired and contracted services - Levelling Up Parks Fund- tree/plants supply and planting c/c 20114,2040582,202301
Rother District Council,07/02/2023,T31DEMSERV,Democratic Services,20163,District Council Elections,D2513,Hired and Contracted services,250.00,Ewhurst and  Staplecross Village Hall,Hire of Premises (RDC) - Hire of Premises (RDC),2041490,202302
Rother District Council,15/05/2023,T3ZCAPITAL,Capital,70714,Capital - Community Grants,N1011,Capital Grants,450.00,Ewhurst and  Staplecross Village Hall,Capital Grants - Community Grants Scheme,2041439,202302
Rother District Council,30/05/2023,T341PRECEPTS,Precepts,42203,Parish Precepts,F1201,Parish precepts,"38,671.50",Ewhurst Parish Council,Parish precepts,2042062,202303
Rother District Council,01/03/2023,T32ENVSERV,"Environmental Services, Licensing & Community Safety",32143,EH Licences and Registration R + W Partnership,D2513,Hired and Contracted services,470.20,Fairfield House Veterinary Surgery,Hired and contracted services - EnvH-Veterinary Services for Licens,2040706,202301
Rother District Council,09/03/2023,T32ENVSERV,"Environmental Services, Licensing & Community Safety",32143,EH Licences and Registration R + W Partnership,D2513,Hired and Contracted services,567.36,Fairfield House Veterinary Surgery,Hired and contracted services - EnvH-Veterinary Services for Licens,2041543,202302
Rother District Council,19/04/2023,T32ENVSERV,"Environmental Services, Licensing & Community Safety",32143,EH Licences and Registration R + W Partnership,D2513,Hired and Contracted services,890.00,Fairfield House Veterinary Surgery,Hired and contracted services - EnvH-Veterinary Services for Licens,2040994,202301
Rother District Council,30/05/2023,T341PRECEPTS,Precepts,42203,Parish Precepts,F1201,Parish precepts,"45,000.00",Fairlight Parish Council,Parish precepts,2042063,202303
Rother District Council,04/05/2023,T31DEMSERV,Democratic Services,20163,District Council Elections,D2513,Hired and Contracted services,120.00,Fairlight Village Hall,Hire of Premises (RDC) - Hire of Premises (RDC),2041884,202303
Rother District Council,16/06/2023,T3ZCAPITAL,Capital,70706,Capital - Disabled Facilities Grant,N1012,Capital Advances,215.00,Ferret Information Systems Ltd,Capital Advances Disabled Facilities Grant,2042403,202303
Rother District Council,19/04/2023,T3ZCAPITAL,Capital,70754,Capital - King Offa Residential Development Scheme,N1003,Construction/Conversion,"4,801.00",First Fence Ltd,Construction/Conversion Capital-Contract Payments - General,2040865,202301
Rother District Council,29/03/2023,T33HREGEN,Regeneration,20136,Regeneration,D2513,Hired and Contracted services,"4,000.00",Flatland Projects CIC,Hired and contracted services - Service fee paid,2040574,202301
Rother District Council,04/05/2023,T33HREGEN,Regeneration,20338,7-12 Beeching Road Studios ( Regeneration Project ),D2513,Hired and Contracted services,"5,500.00",Flatland Projects CIC,Hired and contracted services - Service fee paid,2042218,202303
Rother District Council,10/05/2023,T33NBHDSERV,Neighbourhood Services,20137,Car Parks,B1100,Repairs to Premises,892.50,Fleet (Line Markers) Ltd,Repairs to Premises - White Lining in Car Parks,2041386,202302
Rother District Council,11/05/2023,T33NBHDSERV,Neighbourhood Services,20114,Bexhill Parks & Open Spaces,D2513,Hired and Contracted services,650.00,Flow Construction Design Ltd,Hired and contracted services - Parks-Consultants Fees,2041783,202303
Rother District Council,19/04/2023,T33NBHDSERV,Neighbourhood Services,20137,Car Parks,D2513,Hired and Contracted services,91.76,Flowbird Smart City UK Ltd,Hired and contracted services - Car Parks-Card payments transaction fee,2040940,202301
Rother District Council,22/05/2023,T33NBHDSERV,Neighbourhood Services,20137,Car Parks,D2513,Hired and Contracted services,66.08,Flowbird Smart City UK Ltd,Hired and contracted services - Car Parks-Card payments transaction fee,2041742,202303
Rother District Council,24/05/2023,T33NBHDSERV,Neighbourhood Services,20137,Car Parks,D1201,Equipment & Materials,"1,460.00",Flowbird Smart City UK Ltd,Equipment & Materials - Car Parks Tickets,2041743,202303
Rother District Council,24/05/2023,T33NBHDSERV,Neighbourhood Services,20137,Car Parks,D1201,Equipment & Materials,60.00,Flowbird Smart City UK Ltd,Equipment & Materials - Carriage/Handling Charge,2041743,202303
Rother District Council,28/04/2023,T33HREGEN,Regeneration,20146,West Trading Estate,B1100,Repairs to Premises,337.50,Foxhills Tree Services Ltd,Repairs to Premises - Parks - Tree Works,2041150,202302
Rother District Council,11/04/2023,T33NBHDSERV,Neighbourhood Services,20114,Bexhill Parks & Open Spaces,B1100,Repairs to Premises,536.00,Foxhills Tree Services Ltd,Repairs to Premises - Parks - Tree Works,2040583,202301
Rother District Council,19/05/2023,T33NBHDSERV,Neighbourhood Services,20114,Bexhill Parks & Open Spaces,B1100,Repairs to Premises,"1,600.00",Foxhills Tree Services Ltd,Repairs to Premises - Parks - Tree Works,2041689,202303
Rother District Council,22/05/2023,T31DEMSERV,Democratic Services,20163,District Council Elections,D2513,Hired and Contracted services,900.00,Freedom Leisure,Hire of Premises (RDC) - Hire of Premises (RDC),2041829,202303
Rother District Council,28/04/2023,T33NBHDSERV,Neighbourhood Services,20112,Bexhill Leisure Centre,B1100,Repairs to Premises,"18,847.00",Freedom Leisure,Repairs to Premises - Heating Maintenance,2041221,202302
Rother District Council,28/04/2023,T33NBHDSERV,Neighbourhood Services,20112,Bexhill Leisure Centre,B1100,Repairs to Premises,"3,908.57",Freedom Leisure,Repairs to Premises - Heating Maintenance,2041222,202302
Rother District Council,12/04/2023,T33HOUSING,Housing,20200,Housing Needs - HB (Housing Benefit),D2508,Removals and Storage,450.00,Friendly Pete,Removals and Storage,2040607,202301
Rother District Council,16/04/2023,T33HOUSING,Housing,20200,Housing Needs - HB (Housing Benefit),D2508,Removals and Storage,185.00,Friendly Pete,Removals and Storage,2040777,202301
Rother District Council,21/02/2023,T33NBHDSERV,Neighbourhood Services,20128,Public Conveniences,D2513,Hired and Contracted services,121.00,Fuzion 4 Limited,Hired and contracted services - CCTV System Maintenance,2040165,202301
Rother District Council,21/03/2023,T33NBHDSERV,Neighbourhood Services,20108,Bexhill Promenade & Foreshore,D2513,Hired and Contracted services,121.00,Fuzion 4 Limited,Hired and contracted services - Maintenance Agreement-CCTV,2040615,202301
Rother District Council,17/04/2023,T33NBHDSERV,Neighbourhood Services,20114,Bexhill Parks & Open Spaces,D2513,Hired and Contracted services,105.00,Fuzion 4 Limited,Hired and contracted services - CCTV System Maintenance,2040838,202301
Rother District Council,18/04/2023,T33NBHDSERV,Neighbourhood Services,20114,Bexhill Parks & Open Spaces,D2513,Hired and Contracted services,561.00,Fuzion 4 Limited,Hired and contracted services - Maintenance Agreement-CCTV,2040856,202301
Rother District Council,16/05/2023,T33NBHDSERV,Neighbourhood Services,20114,Bexhill Parks & Open Spaces,D2513,Hired and Contracted services,236.00,Fuzion 4 Limited,Hired and contracted services - Maintenance Agreement-CCTV,2041680,202303
Rother District Council,23/05/2023,T33NBHDSERV,Neighbourhood Services,20114,Bexhill Parks & Open Spaces,D1201,Equipment & Materials,275.00,Fuzion 4 Limited,Equipment & Materials - CCTV,2041876,202303
Rother District Council,24/04/2023,T33HOUSING,Housing,20200,Housing Needs - HB (Housing Benefit),D2508,Removals and Storage,240.00,G & R Removals Sussex,Removals and Storage,2040984,202301
Rother District Council,06/06/2023,T33HOUSING,Housing,20200,Housing Needs - HB (Housing Benefit),D2508,Removals and Storage,120.00,G & R Removals Sussex,Removals and Storage,2041994,202303
Rother District Council,08/06/2023,T33HOUSING,Housing,20200,Housing Needs - HB (Housing Benefit),D2508,Removals and Storage,320.00,G & R Removals Sussex,Removals and Storage,2042267,202303
Rother District Council,22/03/2023,T32CORPPOL,Corporate Policy & Projects,20272,Major Projects unit,D2513,Hired and Contracted services,"3,400.00","G2V Recruitment Group Ltd, t/a Vivid Resourcing",Hired and contracted services - Service fee paid,2040416,202301
Rother District Council,12/04/2023,T32CORPPOL,Corporate Policy & Projects,20272,Major Projects unit,D2513,Hired and Contracted services,"2,720.00","G2V Recruitment Group Ltd, t/a Vivid Resourcing",Hired and contracted services - Service fee paid,2040636,202301
Rother District Council,19/04/2023,T32CORPPOL,Corporate Policy & Projects,20272,Major Projects unit,D2513,Hired and Contracted services,"2,720.00","G2V Recruitment Group Ltd, t/a Vivid Resourcing",Hired and contracted services - Service fee paid,2040870,202301
Rother District Council,05/04/2023,T33PLANDEV,Planning Development Management,20246,Planning Applications,A1110,Agency Staff,"3,100.00","G2V Recruitment Group Ltd, t/a Vivid Resourcing",Agency Staff,2040771,202301
Rother District Council,12/04/2023,T33PLANDEV,Planning Development Management,20246,Planning Applications,A1110,Agency Staff,"2,760.00","G2V Recruitment Group Ltd, t/a Vivid Resourcing",Agency Staff,2040637,202301
Rother District Council,19/04/2023,T33PLANDEV,Planning Development Management,20246,Planning Applications,A1110,Agency Staff,"2,760.00","G2V Recruitment Group Ltd, t/a Vivid Resourcing",Agency Staff,2040871,202301
Rother District Council,26/04/2023,T33PLANDEV,Planning Development Management,20246,Planning Applications,A1110,Agency Staff,"2,760.00","G2V Recruitment Group Ltd, t/a Vivid Resourcing",Agency Staff,2041038,202302
Rother District Council,03/05/2023,T33PLANDEV,Planning Development Management,20246,Planning Applications,A1110,Agency Staff,"2,760.00","G2V Recruitment Group Ltd, t/a Vivid Resourcing",Agency Staff,2041260,202302
Rother District Council,10/05/2023,T33PLANDEV,Planning Development Management,20246,Planning Applications,A1110,Agency Staff,"2,760.00","G2V Recruitment Group Ltd, t/a Vivid Resourcing",Agency Staff,2041388,202302
Rother District Council,17/05/2023,T33PLANDEV,Planning Development Management,20246,Planning Applications,A1110,Agency Staff,"2,415.00","G2V Recruitment Group Ltd, t/a Vivid Resourcing",Agency Staff,2041629,202302
Rother District Council,31/05/2023,T33PLANDEV,Planning Development Management,20246,Planning Applications,A1110,Agency Staff,"4,485.00","G2V Recruitment Group Ltd, t/a Vivid Resourcing",Agency Staff,2041780,202303
Rother District Council,29/03/2023,T3ZCAPITAL,Capital,70777,Capital - LUF De La Warr Pavilion Project,N1004,Architects & Consultant Fees,"3,060.00","G2V Recruitment Group Ltd, t/a Vivid Resourcing",Architects & Consultants Fees - Project support consultancy,2040560,202301
Rother District Council,05/04/2023,T3ZCAPITAL,Capital,70777,Capital - LUF De La Warr Pavilion Project,N1004,Architects & Consultant Fees,"3,400.00","G2V Recruitment Group Ltd, t/a Vivid Resourcing",Architects & Consultants Fees - Project support consultancy,2040649,202301
Rother District Council,26/04/2023,T3ZCAPITAL,Capital,70777,Capital - LUF De La Warr Pavilion Project,N1004,Architects & Consultant Fees,"3,400.00","G2V Recruitment Group Ltd, t/a Vivid Resourcing",Architects & Consultants Fees - Project support consultancy,2041036,202301
Rother District Council,03/05/2023,T3ZCAPITAL,Capital,70777,Capital - LUF De La Warr Pavilion Project,N1004,Architects & Consultant Fees,"3,400.00","G2V Recruitment Group Ltd, t/a Vivid Resourcing",Architects & Consultants Fees - Project support consultancy,2041259,202302
Rother District Council,10/05/2023,T3ZCAPITAL,Capital,70777,Capital - LUF De La Warr Pavilion Project,N1004,Architects & Consultant Fees,"2,720.00","G2V Recruitment Group Ltd, t/a Vivid Resourcing",Architects & Consultants Fees - Project support consultancy,2041387,202302
Rother District Council,17/05/2023,T3ZCAPITAL,Capital,70777,Capital - LUF De La Warr Pavilion Project,N1004,Architects & Consultant Fees,"2,720.00","G2V Recruitment Group Ltd, t/a Vivid Resourcing",Architects & Consultants Fees - Project support consultancy,2041628,202302
Rother District Council,31/05/2023,T3ZCAPITAL,Capital,70777,Capital - LUF De La Warr Pavilion Project,N1004,Architects & Consultant Fees,"3,400.00","G2V Recruitment Group Ltd, t/a Vivid Resourcing",Architects & Consultants Fees - Project support consultancy,2041779,202303
Rother District Council,06/03/2023,T32DIGCUSSER,Digital & Customer Services,20242,Communications-Phones,D2621,Telephones,5.20,GCI National Business / Nasstar,Telephones - KCOM Smartnumber Charges,2040410,202301
Rother District Council,01/04/2023,T32DIGCUSSER,Digital & Customer Services,20242,Communications-Phones,D2621,Telephones,650.24,GCI National Business / Nasstar,Telephones - KCOM Smartnumber Charges,2040598,202301
